Workbook

Sheet ورودی نیروها
C2: ↓ | D2: نیروهای ناشی از ترکیب بار(های) گره(های) مورد نظر در این قسمت وارد شود. (واحد Kgf.cm) | M2: ابعاد و حالت‏های برش دوطرفه گره(ها) در این قسمت وارد شود | S2: راهنمای حالت‏های برش دوطرفه
B3: → | C3: Story | D3: Point | E3: Load | F3: FX | G3: FY | H3: FZ | I3: MX | J3: MY | K3: MZ | M3: Point | N3: Lx (cm) | O3: Ly (cm) | P3: حالت | Q3: b0 (cm)(اختیاری)
C4: BASE | D4: 1 | E4: ACIB01 | F4: 1743.46 | G4: -1540.08 | H4: 134656.05 | I4: 150327.855 | J4: 190986.196 | K4: -1333.145 | M4: 1 | N4: 60 | O4: 45 | P4: 4
C5: BASE | D5: 1 | E5: ACIB02 | F5: 2162.06 | G5: -1324.68 | H5: 146088.64 | I5: 124336.697 | J5: 236246.203 | K5: -1690.927 | M5: 2 | N5: 60 | O5: 45 | P5: 2
C6: BASE | D6: 1 | E6: ACIS01 | F6: -7568.43 | G6: -3778.04 | H6: 96993.21 | I6: 741201.721 | J6: -2065589.064 | K6: -14113.342 | M6: 3 | N6: 60 | O6: 45 | P6: 2
C7: BASE | D7: 1 | E7: ACIS02 | F7: -8091.76 | G7: -3315.96 | H7: 56567.05 | I7: 695981.724 | J7: -2123014.525 | K7: -13717.197 | M7: 4 | N7: 60 | O7: 45 | P7: 4
C8: BASE | D8: 1 | E8: ACIS03 | F8: -7730.02 | G8: 543.31 | H8: 80429.57 | I8: -570154.321 | J8: -2108300.302 | K8: -7775.137 | M8: 5 | N8: 70 | O8: 45 | P8: 2
C9: BASE | D9: 1 | E9: ACIS04 | F9: -8253.35 | G9: 1005.4 | H9: 40003.41 | I9: -615374.318 | J9: -2165725.763 | K9: -7378.992 | M9: 6 | N9: 80 | O9: 45 | P9: 1
C10: BASE | D10: 1 | E10: ACIS05 | F10: 12076.72 | G10: -3651.29 | H10: 229171.99 | I10: 867434.525 | J10: 2583810.357 | K10: 4408.311 | M10: 7 | N10: 80 | O10: 45 | P10: 1
C11: BASE | D11: 1 | E11: ACIS06 | F11: 11553.39 | G11: -3189.21 | H11: 188745.83 | I11: 822214.528 | J11: 2526384.896 | K11: 4804.456 | M11: 8 | N11: 70 | O11: 45 | P11: 2
C12: BASE | D12: 1 | E12: ACIS07 | F12: 11915.13 | G12: 670.06 | H12: 212608.35 | I12: -443921.517 | J12: 2541099.119 | K12: 10746.516 | M12: 9 | N12: 70 | O12: 45 | P12: 2
C13: BASE | D13: 1 | E13: ACIS08 | F13: 11391.8 | G13: 1132.15 | H13: 172182.19 | I13: -489141.514 | J13: 2483673.658 | K13: 11142.661 | M13: 10 | N13: 70 | O13: 45 | P13: 1
C14: BASE | D14: 1 | E14: ACIS09 | F14: -8156.15 | G14: -4533.4 | H14: 95174.28 | I14: 962586.627 | J14: -2203914.344 | K14: 4823.346 | M14: 11 | N14: 70 | O14: 45 | P14: 1
C15: BASE | D15: 1 | E15: ACIS10 | F15: -8679.48 | G15: -4071.32 | H15: 54748.12 | I15: 917366.63 | J15: -2261339.805 | K15: 5219.491 | M15: 12 | N15: 70 | O15: 45 | P15: 2
C16: BASE | D16: 1 | E16: ACIS11 | F16: -8317.74 | G16: -212.05 | H16: 78610.64 | I16: -348769.415 | J16: -2246625.583 | K16: 11161.551 | M16: 13 | N16: 60 | O16: 45 | P16: 4
C17: BASE | D17: 1 | E17: ACIS12 | F17: -7117.94 | G17: -3948.51 | H17: 64934.37 | I17: 893626.354 | J17: -1891886.057 | K17: 3768.112 | M17: 14 | N17: 50 | O17: 45 | P17: 3
C18: BASE | D18: 1 | E18: ACIS13 | F18: 12664.44 | G18: -2895.93 | H18: 230990.92 | I18: 646049.619 | J18: 2722135.638 | K18: -14528.376 | M18: 15 | N18: 60 | O18: 45 | P18: 3
C19: BASE | D19: 1 | E19: ACIS14 | F19: 12141.11 | G19: -2433.85 | H19: 190564.76 | I19: 600829.622 | J19: 2664710.177 | K19: -14132.231 | M19: 16 | N19: 60 | O19: 45 | P19: 3
C20: BASE | D20: 1 | E20: ACIS15 | F20: 12502.85 | G20: 1425.42 | H20: 214427.28 | I20: -665306.423 | J20: 2679424.399 | K20: -8190.172 | M20: 17 | N20: 50 | O20: 45 | P20: 3
C21: BASE | D21: 1 | E21: ACIS16 | F21: 11979.52 | G21: 1887.51 | H21: 174001.12 | I21: -710526.42 | J21: 2621998.938 | K21: -7794.026 | M21: 18 | N21: 60 | O21: 45 | P21: 4
C22: BASE | D22: 1 | E22: ACIS17 | F22: -6980.71 | G22: -3022.68 | H22: 98812.14 | I22: 519816.815 | J22: -1927263.783 | K22: -33050.03
C23: BASE | D23: 1 | E23: ACIS18 | F23: -7504.04 | G23: -2560.6 | H23: 58385.98 | I23: 474596.818 | J23: -1984689.244 | K23: -32653.885
C24: BASE | D24: 1 | E24: ACIS19 | F24: -7142.3 | G24: 1298.68 | H24: 82248.51 | I24: -791539.227 | J24: -1969975.022 | K24: -26711.825
C25: BASE | D25: 1 | E25: ACIS20 | F25: -7504.04 | G25: -2560.6 | H25: 58385.98 | I25: 474596.818 | J25: -1984689.244 | K25: -32653.885
C26: BASE | D26: 1 | E26: ACIS21 | F26: 11489 | G26: -4406.66 | H26: 227353.05 | I26: 1088819.431 | J26: 2445485.077 | K26: 23344.999
C27: BASE | D27: 1 | E27: ACIS22 | F27: 10965.67 | G27: -3944.57 | H27: 186926.9 | I27: 1043599.434 | J27: 2388059.616 | K27: 23741.144
C28: BASE | D28: 1 | E28: ACIS23 | F28: 11327.41 | G28: -85.3 | H28: 210789.42 | I28: -222536.611 | J28: 2402773.838 | K28: 29683.204
C29: BASE | D29: 1 | E29: ACIS24 | F29: 10804.08 | G29: 376.78 | H29: 170363.26 | I29: -267756.608 | J29: 2345348.377 | K29: 30079.349
C30: BASE | D30: 1 | E30: ACIS25 | F30: -504.1 | G30: -8775.26 | H30: 162580.02 | I30: 2315298.585 | J30: -388469.488 | K30: -15025.336
C31: BASE | D31: 1 | E31: ACIS26 | F31: -1027.44 | G31: -8313.18 | H31: 122153.86 | I31: 2270078.588 | J31: -445894.949 | K31: -14629.191
C32: BASE | D32: 1 | E32: ACIS27 | F32: 5389.44 | G32: -8737.24 | H32: 202233.66 | I32: 2353168.426 | J32: 1006350.338 | K32: -9468.84
C33: BASE | D33: 1 | E33: ACIS28 | F33: -1027.44 | G33: -8313.18 | H33: 122153.86 | I33: 2270078.588 | J33: -445894.949 | K33: -14629.191
C34: BASE | D34: 1 | E34: ACIS29 | F34: -1042.74 | G34: 5629.26 | H34: 107367.9 | I34: -2055888.222 | J34: -530840.283 | K34: 6102.014
C35: BASE | D35: 1 | E35: ACIS30 | F35: -1566.08 | G35: 6091.34 | H35: 66941.74 | I35: -2101108.219 | J35: -588265.744 | K35: 6498.159
C36: BASE | D36: 1 | E36: ACIS31 | F36: 4850.8 | G36: 5667.28 | H36: 147021.54 | I36: -2018018.381 | J36: 863979.543 | K36: 11658.51
C37: BASE | D37: 1 | E37: ACIS32 | F37: 4327.47 | G37: 6129.37 | H37: 106595.38 | I37: -2063238.378 | J37: 806554.082 | K37: 12054.655
C38: BASE | D38: 1 | E38: ACIS34 | F38: 179.17 | G38: -7897.11 | H38: 164699.94 | I38: 2057900.827 | J38: -227643.092 | K38: -37043.717
C39: BASE | D39: 1 | E39: ACIS35 | F39: 6072.72 | G39: -7859.09 | H39: 204353.57 | I39: 2095770.668 | J39: 1167176.734 | K39: -31487.221
C40: BASE | D40: 1 | E40: ACIS36 | F40: 5549.38 | G40: -7397 | H40: 163927.41 | I40: 2050550.671 | J40: 1109751.273 | K40: -31091.076
C41: BASE | D41: 1 | E41: ACIS37 | F41: -1726.02 | G41: 4751.11 | H41: 105247.99 | I41: -1798490.464 | J41: -691666.679 | K41: 28120.395
C42: BASE | D42: 1 | E42: ACIS38 | F42: -2249.35 | G42: 5213.19 | H42: 64821.83 | I42: -1843710.461 | J42: -749092.14 | K42: 28516.54
C43: BASE | D43: 1 | E43: ACIS39 | F43: 4167.53 | G43: 4789.13 | H43: 144901.62 | I43: -1760620.623 | J43: 703153.147 | K43: 33676.891
C44: BASE | D44: 1 | E44: ACIS40 | F44: 3644.19 | G44: 5251.22 | H44: 104475.46 | I44: -1805840.62 | J44: 645727.686 | K44: 34073.036
C45: BASE | D45: 1 | E45: ACIS41 | F45: -1187.38 | G45: -9653.41 | H45: 160460.11 | I45: 2572696.343 | J45: -549295.884 | K45: 6993.045
C46: BASE | D46: 1 | E46: ACIS42 | F46: -1710.71 | G46: -9191.33 | H46: 120033.95 | I46: 2527476.346 | J46: -606721.345 | K46: 7389.19
C47: BASE | D47: 1 | E47: ACIS43 | F47: 4706.17 | G47: -9615.39 | H47: 200113.74 | I47: 2610566.185 | J47: 845523.943 | K47: 12549.541
C48: BASE | D48: 1 | E48: ACIS44 | F48: 4182.83 | G48: -9153.3 | H48: 159687.58 | I48: 2565346.187 | J48: 788098.482 | K48: 12945.686
C49: BASE | D49: 1 | E49: ACIS45 | F49: -359.47 | G49: 6507.41 | H49: 109487.82 | I49: -2313285.981 | J49: -370013.888 | K49: -15916.367
C50: BASE | D50: 1 | E50: ACIS46 | F50: -882.8 | G50: 6969.49 | H50: 69061.66 | I50: -2358505.978 | J50: -427439.349 | K50: -15520.222
C51: BASE | D51: 1 | E51: ACIS47 | F51: 5534.08 | G51: 6545.43 | H51: 149141.45 | I51: -2275416.139 | J51: 1024805.939 | K51: -10359.871
C52: BASE | D52: 1 | E52: ACIS48 | F52: 5010.75 | G52: 7007.52 | H52: 108715.29 | I52: -2320636.137 | J52: 967380.478 | K52: -9963.726
C53: BASE | D53: 1 | E53: ACIS49 | F53: -8359.32 | G53: -3445.14 | H53: 48970.11 | I53: 711810.953 | J53: -2151854.521 | K53: -13485.024
C54: BASE | D54: 1 | E54: ACIS50 | F54: -8882.65 | G54: -2983.06 | H54: 8543.95 | I54: 666590.956 | J54: -2209279.982 | K54: -13088.879
C55: BASE | D55: 1 | E55: ACIS51 | F55: -8520.91 | G55: 876.21 | H55: 32406.48 | I55: -599545.09 | J55: -2194565.759 | K55: -7146.819
C56: BASE | D56: 1 | E56: ACIS52 | F56: -9044.24 | G56: 1338.3 | H56: -8019.68 | I56: -644765.087 | J56: -2251991.22 | K56: -6750.674
C57: BASE | D57: 1 | E57: ACIS54 | F57: 11285.83 | G57: -3318.4 | H57: 181148.89 | I57: 838043.757 | J57: 2497544.9 | K57: 5036.63
C58: BASE | D58: 1 | E58: ACIS55 | F58: 11124.24 | G58: 1002.96 | H58: 164585.25 | I58: -473312.285 | J58: 2454833.662 | K58: 11374.835
C59: BASE | D59: 1 | E59: ACIS56 | F59: 10600.91 | G59: 1465.04 | H59: 124159.1 | I59: -518532.283 | J59: 2397408.201 | K59: 11770.98
C60: BASE | D60: 1 | E60: ACIS57 | F60: -8947.04 | G60: -4200.5 | H60: 47151.18 | I60: 933195.859 | J60: -2290179.801 | K60: 5451.664
C61: BASE | D61: 1 | E61: ACIS58 | F61: -9470.37 | G61: -3738.42 | H61: 6725.02 | I61: 887975.862 | J61: -2347605.262 | K61: 5847.809
C62: BASE | D62: 1 | E62: ACIS59 | F62: -9108.63 | G62: 120.85 | H62: 30587.55 | I62: -378160.184 | J62: -2332891.04 | K62: 11789.869
C63: BASE | D63: 1 | E63: ACIS60 | F63: -9631.96 | G63: 582.93 | H63: -9838.61 | I63: -423380.181 | J63: -2390316.501 | K63: 12186.014
C64: BASE | D64: 1 | E64: ACIS61 | F64: 11873.55 | G64: -2563.03 | H64: 182967.82 | I64: 616658.851 | J64: 2635870.181 | K64: -13900.058
C65: BASE | D65: 1 | E65: ACIS62 | F65: 11350.22 | G65: -2100.95 | H65: 142541.66 | I65: 571438.854 | J65: 2578444.72 | K65: -13503.913
C66: BASE | D66: 1 | E66: ACIS64 | F66: 11711.96 | G66: 1758.32 | H66: 166404.19 | I66: -694697.191 | J66: 2593158.942 | K66: -7561.853
C67: BASE | D67: 1 | E67: ACIS65 | F67: -7771.6 | G67: -2689.78 | H67: 50789.05 | I67: 490426.047 | J67: -2013529.24 | K67: -32421.711
C68: BASE | D68: 1 | E68: ACIS67 | F68: -8294.93 | G68: -2227.7 | H68: 10362.89 | I68: 445206.05 | J68: -2070954.701 | K68: -32025.566
C69: BASE | D69: 1 | E69: ACIS68 | F69: -8456.52 | G69: 2093.66 | H69: -6200.75 | I69: -866149.993 | J69: -2113665.94 | K69: -25687.361
C70: BASE | D70: 1 | E70: ACIS69 | F70: 10698.11 | G70: -4073.76 | H70: 179329.96 | I70: 1059428.663 | J70: 2359219.62 | K70: 23973.317
C71: BASE | D71: 1 | E71: ACIS70 | F71: 10174.78 | G71: -3611.67 | H71: 138903.8 | I71: 1014208.666 | J71: 2301794.159 | K71: 24369.462
C72: BASE | D72: 1 | E72: ACIS71 | F72: 10536.52 | G72: 247.6 | H72: 162766.32 | I72: -251927.379 | J72: 2316508.381 | K72: 30311.522
C73: BASE | D73: 1 | E73: ACIS72 | F73: 10013.19 | G73: 709.68 | H73: 122340.16 | I73: -297147.377 | J73: 2259082.92 | K73: 30707.667
C74: BASE | D74: 1 | E74: ACIS73 | F74: -1294.99 | G74: -8442.36 | H74: 114556.93 | I74: 2285907.817 | J74: -474734.945 | K74: -14397.017
C75: BASE | D75: 1 | E75: ACIS74 | F75: -1818.32 | G75: -7980.28 | H75: 74130.77 | I75: 2240687.82 | J75: -532160.406 | K75: -14000.872
C76: BASE | D76: 1 | E76: ACIS75 | F76: 4598.55 | G76: -8404.34 | H76: 154210.56 | I76: 2323777.658 | J76: 920084.881 | K76: -8840.521
C77: BASE | D77: 1 | E77: ACIS76 | F77: 4075.22 | G77: -7942.26 | H77: 113784.4 | I77: 2278557.661 | J77: 862659.42 | K77: -8444.376
C78: BASE | D78: 1 | E78: ACIS78 | F78: -1833.63 | G78: 5962.16 | H78: 59344.81 | I78: -2085278.991 | J78: -617105.74 | K78: 6730.332
C79: BASE | D79: 1 | E79: ACIS79 | F79: 4059.92 | G79: 6000.18 | H79: 98998.44 | I79: -2047409.149 | J79: 777714.086 | K79: 12286.828
C80: BASE | D80: 1 | E80: ACIS80 | F80: 3536.58 | G80: 6462.26 | H80: 58572.28 | I80: -2092629.147 | J80: 720288.625 | K80: 12682.973
C81: BASE | D81: 1 | E81: ACIS81 | F81: -611.72 | G81: -7564.21 | H81: 116676.84 | I81: 2028510.058 | J81: -313908.549 | K81: -36415.398
C82: BASE | D82: 1 | E82: ACIS82 | F82: -1135.05 | G82: -7102.13 | H82: 76250.68 | I82: 1983290.061 | J82: -371334.01 | K82: -36019.253
C83: BASE | D83: 1 | E83: ACIS83 | F83: 5281.83 | G83: -7526.19 | H83: 156330.48 | I83: 2066379.9 | J83: 1080911.277 | K83: -30858.902
C84: BASE | D84: 1 | E84: ACIS84 | F84: 4758.5 | G84: -7064.11 | H84: 115904.32 | I84: 2021159.902 | J84: 1023485.816 | K84: -30462.757
C85: BASE | D85: 1 | E85: ACIS85 | F85: -2516.91 | G85: 5084.01 | H85: 57224.89 | I85: -1827881.232 | J85: -777932.136 | K85: 28748.713
C86: BASE | D86: 1 | E86: ACIS86 | F86: -3040.24 | G86: 5546.09 | H86: 16798.73 | I86: -1873101.229 | J86: -835357.597 | K86: 29144.858
C87: BASE | D87: 1 | E87: ACIS87 | F87: 3376.64 | G87: 5122.03 | H87: 96878.53 | I87: -1790011.391 | J87: 616887.69 | K87: 34305.209
C88: BASE | D88: 1 | E88: ACIS88 | F88: 2853.31 | G88: 5584.11 | H88: 56452.37 | I88: -1835231.388 | J88: 559462.229 | K88: 34701.354
C89: BASE | D89: 1 | E89: ACIS89 | F89: -1978.27 | G89: -9320.51 | H89: 112437.01 | I89: 2543305.575 | J89: -635561.341 | K89: 7621.363
C90: BASE | D90: 1 | E90: ACIS90 | F90: -2501.6 | G90: -8858.43 | H90: 72010.85 | I90: 2498085.578 | J90: -692986.802 | K90: 8017.508
C91: BASE | D91: 1 | E91: ACIS91 | F91: 3915.28 | G91: -9282.49 | H91: 152090.64 | I91: 2581175.416 | J91: 759258.486 | K91: 13177.859
C92: BASE | D92: 1 | E92: ACIS92 | F92: 3391.95 | G92: -8820.41 | H92: 111664.49 | I92: 2535955.419 | J92: 701833.025 | K92: 13574.004
C93: BASE | D93: 1 | E93: ACIS93 | F93: -1150.35 | G93: 6840.31 | H93: 61464.72 | I93: -2342676.749 | J93: -456279.345 | K93: -15288.049
C94: BASE | D94: 1 | E94: ACIS94 | F94: -1673.69 | G94: 7302.39 | H94: 21038.56 | I94: -2387896.746 | J94: -513704.806 | K94: -14891.903
C95: BASE | D95: 1 | E95: ACIS95 | F95: 4743.19 | G95: 6878.33 | H95: 101118.36 | I95: -2304806.908 | J95: 938540.482 | K95: -9731.553
C96: BASE | D96: 1 | E96: ACIS96 | F96: 4219.86 | G96: 7340.41 | H96: 60692.2 | I96: -2350026.905 | J96: 881115.021 | K96: -9335.407
C97: BASE | D97: 2 | E97: ACIB01 | F97: 974.71 | G97: -3562.72 | H97: 216010.37 | I97: 385255.272 | J97: 106267.976 | K97: -1333.145
C98: BASE | D98: 2 | E98: ACIB02 | F98: 614.16 | G98: -4612.07 | H98: 239089.38 | I98: 499539.914 | J98: 66697.421 | K98: -1690.927
C99: BASE | D99: 2 | E99: ACIS01 | F99: -15697.29 | G99: -5016.35 | H99: 291994.18 | I99: 775226.868 | J99: -3890324.57 | K99: -14113.342
C100: BASE | D100: 2 | E100: ACIS02 | F100: -15990.17 | G100: -3947.69 | H100: 227207.05 | I100: 659609.727 | J100: -3922428.84 | K100: -13717.197
C101: BASE | D101: 2 | E101: ACIS03 | F101: -16399.62 | G101: -2315.9 | H101: 284095.35 | I101: -21951.152 | J101: -4010461.01 | K101: -7775.137
C102: BASE | D102: 2 | E102: ACIS04 | F102: -16692.51 | G102: -1247.23 | H102: 219308.21 | I102: -137568.293 | J102: -4042565.28 | K102: -7378.992
C103: BASE | D103: 2 | E103: ACIS05 | F103: 18086.81 | G103: -6808.17 | H103: 218417.32 | I103: 1009657.29 | J103: 4194252.181 | K103: 4408.311
C104: BASE | D104: 2 | E104: ACIS06 | F104: 17793.93 | G104: -5739.51 | H104: 153630.18 | I104: 894040.149 | J104: 4162147.916 | K104: 4804.456
C105: BASE | D105: 2 | E105: ACIS07 | F105: 17384.48 | G105: -4107.72 | H105: 210518.48 | I105: 212479.27 | J105: 4074115.742 | K105: 10746.516
C106: BASE | D106: 2 | E106: ACIS08 | F106: 17091.59 | G106: -3039.06 | H106: 145731.35 | I106: 96862.129 | J106: 4042011.476 | K106: 11142.661
C107: BASE | D107: 2 | E107: ACIS09 | F107: -16670.94 | G107: -5170.83 | H107: 294901.55 | I107: 829350.989 | J107: -4126831.64 | K107: 4823.346
C108: BASE | D108: 2 | E108: ACIS10 | F108: -16963.82 | G108: -4102.16 | H108: 230114.41 | I108: 713733.848 | J108: -4158935.91 | K108: 5219.491
C109: BASE | D109: 2 | E109: ACIS11 | F109: -17373.27 | G109: -2470.37 | H109: 287002.72 | I109: 32172.97 | J109: -4246968.08 | K109: 11161.551
C110: BASE | D110: 2 | E110: ACIS12 | F110: -14283.97 | G110: -4213.38 | H110: 224160.04 | I110: 723197.512 | J110: -3517116.59 | K110: 3768.112
C111: BASE | D111: 2 | E111: ACIS13 | F111: 19060.46 | G111: -6653.7 | H111: 215509.95 | I111: 955533.168 | J111: 4430759.254 | K111: -14528.376
C112: BASE | D112: 2 | E112: ACIS14 | F112: 18767.58 | G112: -5585.03 | H112: 150722.81 | I112: 839916.027 | J112: 4398654.988 | K112: -14132.231
C113: BASE | D113: 2 | E113: ACIS15 | F113: 18358.13 | G113: -3953.24 | H113: 207611.12 | I113: 158355.148 | J113: 4310622.814 | K113: -8190.172
C114: BASE | D114: 2 | E114: ACIS16 | F114: 18065.24 | G114: -2884.58 | H114: 142823.98 | I114: 42738.007 | J114: 4278518.549 | K114: -7794.026
C115: BASE | D115: 2 | E115: ACIS17 | F115: -14723.64 | G115: -4861.87 | H115: 289086.82 | I115: 721102.746 | J115: -3653817.5 | K115: -33050.03
C116: BASE | D116: 2 | E116: ACIS18 | F116: -15016.52 | G116: -3793.21 | H116: 224299.68 | I116: 605485.605 | J116: -3685921.77 | K116: -32653.885
C117: BASE | D117: 2 | E117: ACIS19 | F117: -15425.97 | G117: -2161.42 | H117: 281187.98 | I117: -76075.274 | J117: -3773953.94 | K117: -26711.825
C118: BASE | D118: 2 | E118: ACIS20 | F118: -15016.52 | G118: -3793.21 | H118: 224299.68 | I118: 605485.605 | J118: -3685921.77 | K118: -32653.885
C119: BASE | D119: 2 | E119: ACIS21 | F119: 17113.16 | G119: -6962.65 | H119: 221324.69 | I119: 1063781.412 | J119: 3957745.109 | K119: 23344.999
C120: BASE | D120: 2 | E120: ACIS22 | F120: 16820.28 | G120: -5893.99 | H120: 156537.55 | I120: 948164.271 | J120: 3925640.843 | K120: 23741.144
C121: BASE | D121: 2 | E121: ACIS23 | F121: 16410.82 | G121: -4262.2 | H121: 213425.85 | I121: 266603.392 | J121: 3837608.669 | K121: 29683.204
C122: BASE | D122: 2 | E122: ACIS24 | F122: 16117.94 | G122: -3193.53 | H122: 148638.71 | I122: 150986.251 | J122: 3805504.404 | K122: 30079.349
C123: BASE | D123: 2 | E123: ACIS25 | F123: -3053.46 | G123: -8794.02 | H123: 275457.59 | I123: 1787318.538 | J123: -920563.529 | K123: -15025.336
C124: BASE | D124: 2 | E124: ACIS26 | F124: -3346.35 | G124: -7725.35 | H124: 210670.45 | I124: 1671701.397 | J124: -952667.795 | K124: -14629.191
C125: BASE | D125: 2 | E125: ACIS27 | F125: 7081.77 | G125: -9331.56 | H125: 253384.53 | I125: 1857647.665 | J125: 1504809.497 | K125: -9468.84
C126: BASE | D126: 2 | E126: ACIS28 | F126: -3346.35 | G126: -7725.35 | H126: 210670.45 | I126: 1671701.397 | J126: -952667.795 | K126: -14629.191
C127: BASE | D127: 2 | E127: ACIS29 | F127: -5394.58 | G127: 207.49 | H127: 249128.14 | I127: -869941.527 | J127: -1321018.327 | K127: 6102.014
C128: BASE | D128: 2 | E128: ACIS30 | F128: -5687.46 | G128: 1276.16 | H128: 184341 | I128: -985558.668 | J128: -1353122.593 | K128: 6498.159
C129: BASE | D129: 2 | E129: ACIS31 | F129: 4740.65 | G129: -330.05 | H129: 227055.08 | I129: -799612.401 | J129: 1104354.699 | K129: 11658.51
C130: BASE | D130: 2 | E130: ACIS32 | F130: 4447.77 | G130: 738.61 | H130: 162267.94 | I130: -915229.542 | J130: 1072250.433 | K130: 12054.655
C131: BASE | D131: 2 | E131: ACIS34 | F131: -1921.5 | G131: -8614.44 | H131: 272068.89 | I131: 1724390.515 | J131: -645582.527 | K131: -37043.717
C132: BASE | D132: 2 | E132: ACIS35 | F132: 8213.73 | G132: -9151.99 | H132: 249995.83 | I132: 1794719.642 | J132: 1779790.499 | K132: -31487.221
C133: BASE | D133: 2 | E133: ACIS36 | F133: 7920.84 | G133: -8083.32 | H133: 185208.69 | I133: 1679102.501 | J133: 1747686.233 | K133: -31091.076
C134: BASE | D134: 2 | E134: ACIS37 | F134: -6526.54 | G134: 27.92 | H134: 252516.84 | I134: -807013.504 | J134: -1595999.329 | K134: 28120.395
C135: BASE | D135: 2 | E135: ACIS38 | F135: -6819.42 | G135: 1096.58 | H135: 187729.7 | I135: -922630.645 | J135: -1628103.595 | K135: 28516.54
C136: BASE | D136: 2 | E136: ACIS39 | F136: 3608.69 | G136: -509.63 | H136: 230443.78 | I136: -736684.377 | J136: 829373.697 | K136: 33676.891
C137: BASE | D137: 2 | E137: ACIS40 | F137: 3315.81 | G137: 559.03 | H137: 165656.64 | I137: -852301.518 | J137: 797269.431 | K137: 34073.036
C138: BASE | D138: 2 | E138: ACIS41 | F138: -4185.42 | G138: -8973.59 | H138: 278846.29 | I138: 1850246.562 | J138: -1195544.531 | K138: 6993.045
C139: BASE | D139: 2 | E139: ACIS42 | F139: -4478.31 | G139: -7904.93 | H139: 214059.15 | I139: 1734629.421 | J139: -1227648.797 | K139: 7389.19
C140: BASE | D140: 2 | E140: ACIS43 | F140: 5949.81 | G140: -9511.14 | H140: 256773.23 | I140: 1920575.688 | J140: 1229828.495 | K140: 12549.541
C141: BASE | D141: 2 | E141: ACIS44 | F141: 5656.92 | G141: -8442.48 | H141: 191986.09 | I141: 1804958.547 | J141: 1197724.229 | K141: 12945.686
C142: BASE | D142: 2 | E142: ACIS45 | F142: -4262.62 | G142: 387.07 | H142: 245739.44 | I142: -932869.551 | J142: -1046037.325 | K142: -15916.367
C143: BASE | D143: 2 | E143: ACIS46 | F143: -4555.5 | G143: 1455.73 | H143: 180952.3 | I143: -1048486.692 | J143: -1078141.591 | K143: -15520.222
C144: BASE | D144: 2 | E144: ACIS47 | F144: 5872.61 | G144: -150.48 | H144: 223666.38 | I144: -862540.424 | J144: 1379335.701 | K144: -10359.871
C145: BASE | D145: 2 | E145: ACIS48 | F145: 5579.73 | G145: 918.19 | H145: 158879.24 | I145: -978157.565 | J145: 1347231.435 | K145: -9963.726
C146: BASE | D146: 2 | E146: ACIS49 | F146: -15767.84 | G146: -3278.97 | H146: 211995.23 | I146: 586846.473 | J146: -3897852.9 | K146: -13485.024
C147: BASE | D147: 2 | E147: ACIS50 | F147: -16060.73 | G147: -2210.31 | H147: 147208.09 | I147: 471229.332 | J147: -3929957.16 | K147: -13088.879
C148: BASE | D148: 2 | E148: ACIS51 | F148: -16470.18 | G148: -578.52 | H148: 204096.39 | I148: -210331.547 | J148: -4017989.34 | K148: -7146.819
C149: BASE | D149: 2 | E149: ACIS52 | F149: -16763.06 | G149: 490.15 | H149: 139309.25 | I149: -325948.688 | J149: -4050093.6 | K149: -6750.674
C150: BASE | D150: 2 | E150: ACIS54 | F150: 18016.26 | G150: -5070.79 | H150: 138418.36 | I150: 821276.895 | J150: 4186723.856 | K150: 5036.63
C151: BASE | D151: 2 | E151: ACIS55 | F151: 17313.92 | G151: -2370.34 | H151: 130519.53 | I151: 24098.875 | J151: 4066587.417 | K151: 11374.835
C152: BASE | D152: 2 | E152: ACIS56 | F152: 17021.04 | G152: -1301.68 | H152: 65732.39 | I152: -91518.266 | J152: 4034483.152 | K152: 11770.98
C153: BASE | D153: 2 | E153: ACIS57 | F153: -16741.49 | G153: -3433.45 | H153: 214902.6 | I153: 640970.595 | J153: -4134359.97 | K153: 5451.664
C154: BASE | D154: 2 | E154: ACIS58 | F154: -17034.38 | G154: -2364.78 | H154: 150115.46 | I154: 525353.454 | J154: -4166464.24 | K154: 5847.809
C155: BASE | D155: 2 | E155: ACIS59 | F155: -17443.83 | G155: -732.99 | H155: 207003.76 | I155: -156207.425 | J155: -4254496.41 | K155: 11789.869
C156: BASE | D156: 2 | E156: ACIS60 | F156: -17736.71 | G156: 335.67 | H156: 142216.62 | I156: -271824.566 | J156: -4286600.67 | K156: 12186.014
C157: BASE | D157: 2 | E157: ACIS61 | F157: 18989.91 | G157: -4916.32 | H157: 135511 | I157: 767152.773 | J157: 4423230.929 | K157: -13900.058
C158: BASE | D158: 2 | E158: ACIS62 | F158: 18697.02 | G158: -3847.65 | H158: 70723.86 | I158: 651535.632 | J158: 4391126.663 | K158: -13503.913
C159: BASE | D159: 2 | E159: ACIS64 | F159: 18287.57 | G159: -2215.86 | H159: 127612.16 | I159: -30025.246 | J159: 4303094.49 | K159: -7561.853
C160: BASE | D160: 2 | E160: ACIS65 | F160: -14794.19 | G160: -3124.49 | H160: 209087.86 | I160: 532722.351 | J160: -3661345.82 | K160: -32421.711
C161: BASE | D161: 2 | E161: ACIS67 | F161: -15087.08 | G161: -2055.83 | H161: 144300.72 | I161: 417105.21 | J161: -3693450.09 | K161: -32025.566
C162: BASE | D162: 2 | E162: ACIS68 | F162: -15789.41 | G162: 644.62 | H162: 136401.89 | I162: -380072.81 | J162: -3813586.53 | K162: -25687.361
C163: BASE | D163: 2 | E163: ACIS69 | F163: 17042.61 | G163: -5225.27 | H163: 141325.73 | I163: 875401.017 | J163: 3950216.784 | K163: 23973.317
C164: BASE | D164: 2 | E164: ACIS70 | F164: 16749.72 | G164: -4156.61 | H164: 76538.59 | I164: 759783.876 | J164: 3918112.519 | K164: 24369.462
C165: BASE | D165: 2 | E165: ACIS71 | F165: 16340.27 | G165: -2524.82 | H165: 133426.9 | I165: 78222.997 | J165: 3830080.345 | K165: 30311.522
C166: BASE | D166: 2 | E166: ACIS72 | F166: 16047.39 | G166: -1456.15 | H166: 68639.76 | I166: -37394.144 | J166: 3797976.079 | K166: 30707.667
C167: BASE | D167: 2 | E167: ACIS73 | F167: -3124.02 | G167: -7056.64 | H167: 195458.63 | I167: 1598938.144 | J167: -928091.854 | K167: -14397.017
C168: BASE | D168: 2 | E168: ACIS74 | F168: -3416.9 | G168: -5987.97 | H168: 130671.49 | I168: 1483321.003 | J168: -960196.12 | K168: -14000.872
C169: BASE | D169: 2 | E169: ACIS75 | F169: 7011.21 | G169: -7594.18 | H169: 173385.57 | I169: 1669267.27 | J169: 1497281.172 | K169: -8840.521
C170: BASE | D170: 2 | E170: ACIS76 | F170: 6718.33 | G170: -6525.52 | H170: 108598.43 | I170: 1553650.129 | J170: 1465176.906 | K170: -8444.376
C171: BASE | D171: 2 | E171: ACIS78 | F171: -5465.13 | G171: 1944.87 | H171: 169129.18 | I171: -1058321.922 | J171: -1328546.652 | K171: 6730.332
C172: BASE | D172: 2 | E172: ACIS79 | F172: 4670.1 | G172: 1407.33 | H172: 147056.12 | I172: -987992.795 | J172: 1096826.374 | K172: 12286.828
C173: BASE | D173: 2 | E173: ACIS80 | F173: 4377.21 | G173: 2475.99 | H173: 82268.98 | I173: -1103609.936 | J173: 1064722.109 | K173: 12682.973
C174: BASE | D174: 2 | E174: ACIS81 | F174: -1992.06 | G174: -6877.06 | H174: 192069.93 | I174: 1536010.12 | J174: -653110.852 | K174: -36415.398
C175: BASE | D175: 2 | E175: ACIS82 | F175: -2284.94 | G175: -5808.4 | H175: 127282.79 | I175: 1420392.979 | J175: -685215.118 | K175: -36019.253
C176: BASE | D176: 2 | E176: ACIS83 | F176: 8143.17 | G176: -7414.61 | H176: 169996.87 | I176: 1606339.247 | J176: 1772262.174 | K176: -30858.902
C177: BASE | D177: 2 | E177: ACIS84 | F177: 7850.29 | G177: -6345.94 | H177: 105209.74 | I177: 1490722.106 | J177: 1740157.909 | K177: -30462.757
C178: BASE | D178: 2 | E178: ACIS85 | F178: -6597.09 | G178: 1765.3 | H178: 172517.88 | I178: -995393.899 | J178: -1603527.654 | K178: 28748.713
C179: BASE | D179: 2 | E179: ACIS86 | F179: -6889.98 | G179: 2833.96 | H179: 107730.74 | I179: -1111011.04 | J179: -1635631.92 | K179: 29144.858
C180: BASE | D180: 2 | E180: ACIS87 | F180: 3538.14 | G180: 1227.75 | H180: 150444.82 | I180: -925064.772 | J180: 821845.372 | K180: 34305.209
C181: BASE | D181: 2 | E181: ACIS88 | F181: 3245.25 | G181: 2296.41 | H181: 85657.68 | I181: -1040681.913 | J181: 789741.106 | K181: 34701.354
C182: BASE | D182: 2 | E182: ACIS89 | F182: -4255.98 | G182: -7236.21 | H182: 198847.33 | I182: 1661866.167 | J182: -1203072.856 | K182: 7621.363
C183: BASE | D183: 2 | E183: ACIS90 | F183: -4548.86 | G183: -6167.55 | H183: 134060.19 | I183: 1546249.026 | J183: -1235177.122 | K183: 8017.508
C184: BASE | D184: 2 | E184: ACIS91 | F184: 5879.25 | G184: -7773.76 | H184: 176774.27 | I184: 1732195.294 | J184: 1222300.17 | K184: 13177.859
C185: BASE | D185: 2 | E185: ACIS92 | F185: 5586.37 | G185: -6705.1 | H185: 111987.13 | I185: 1616578.153 | J185: 1190195.904 | K185: 13574.004
C186: BASE | D186: 2 | E186: ACIS93 | F186: -4333.17 | G186: 2124.45 | H186: 165740.48 | I186: -1121249.945 | J186: -1053565.65 | K186: -15288.049
C187: BASE | D187: 2 | E187: ACIS94 | F187: -4626.06 | G187: 3193.12 | H187: 100953.34 | I187: -1236867.086 | J187: -1085669.915 | K187: -14891.903
C188: BASE | D188: 2 | E188: ACIS95 | F188: 5802.06 | G188: 1586.9 | H188: 143667.42 | I188: -1050920.819 | J188: 1371807.376 | K188: -9731.553
C189: BASE | D189: 2 | E189: ACIS96 | F189: 5509.17 | G189: 2655.57 | H189: 78880.28 | I189: -1166537.96 | J189: 1339703.111 | K189: -9335.407
C190: BASE | D190: 3 | E190: ACIB01 | F190: -845.59 | G190: -3601.51 | H190: 215231.66 | I190: 394668.922 | J190: -89759.703 | K190: -1333.145
C191: BASE | D191: 3 | E191: ACIB02 | F191: -486.61 | G191: -4662.65 | H191: 238183.19 | I191: 511631.719 | J191: -51844.85 | K191: -1690.927
C192: BASE | D192: 3 | E192: ACIS01 | F192: -17627.36 | G192: -6872.91 | H192: 218984.94 | I192: 1033643.868 | J192: -4097980.67 | K192: -14113.342
C193: BASE | D193: 3 | E193: ACIS02 | F193: -17374.46 | G193: -5793.27 | H193: 154411.38 | I193: 915288.854 | J193: -4071308.99 | K193: -13717.197
C194: BASE | D194: 3 | E194: ACIS03 | F194: -17546.9 | G194: -4074.79 | H194: 208050.2 | I194: 201206.463 | J194: -4133813.44 | K194: -7775.137
C195: BASE | D195: 3 | E195: ACIS04 | F195: -17293.99 | G195: -2995.15 | H195: 143476.64 | I195: 82851.449 | J195: -4107141.76 | K195: -7378.992
C196: BASE | D196: 3 | E196: ACIS05 | F196: 16142.14 | G196: -5148.43 | H196: 292615.55 | I196: 810403.935 | J196: 3984633.035 | K196: 4408.311
C197: BASE | D197: 3 | E197: ACIS06 | F197: 16395.04 | G197: -4068.78 | H197: 228042 | I197: 692048.922 | J197: 4011304.712 | K197: 4804.456
C198: BASE | D198: 3 | E198: ACIS07 | F198: 16222.61 | G198: -2350.31 | H198: 281680.82 | I198: -22033.47 | J198: 3948800.263 | K198: 10746.516
C199: BASE | D199: 3 | E199: ACIS08 | F199: 16475.51 | G199: -1270.66 | H199: 217107.26 | I199: -140388.483 | J199: 3975471.94 | K199: 11142.661
C200: BASE | D200: 3 | E200: ACIS09 | F200: -18601.62 | G200: -6724.17 | H200: 216077.92 | I200: 980945.715 | J200: -4334541.85 | K200: 4823.346
C201: BASE | D201: 3 | E201: ACIS10 | F201: -18348.72 | G201: -5644.52 | H201: 151504.37 | I201: 862590.701 | J201: -4307870.18 | K201: 5219.491
... 1476 more rows

Sheet محاسبات برش دو طرفه گره(ها)
K2: کنترل تنش برشی دو طرفه بر اساس آیین‏نامه ACI 318-08 | AM2: راهنمای حالت‏های برش دوطرفه
B4: f'c= | C4: 250 | D4: Kg/cm2 | J4: مقاومت فشاری مشخصه نمونه استوانه استاندارد
B5: φ= | C5: 0.75 | J5: ضریب کاهش مقاومت برشی | AK5: تهیه کننده:
B6: d= | C6: 90 | D6: cm | J6: عمق موثر (فاصله دورترین تار فشاری بتن تا محور میلگردهای کششی) | AK6: شرو وارتومیان
B7: fys= | C7: 4000 | D7: Kg/cm2 | J7: مقاومت مشخصه میلگردهای عرضی | AA7: Ratio Max= | AB7: 1 | AK7: کارشناس ارشد عمران - سازه
B8: dbs= | C8: 20 | D8: mm | J8: قطر میلگردهای عرضی | AA8: (Av/S)req Max= | AB8: =SUBTOTAL(4,AG11:AG1048576) -> 0.5199852751 | AK8: تلفن همراه: 3831738-912-98+
AK9: Email: sh.vartoumian@gmail.com
B10: Story | C10: Point Label | D10: Load Combo | F10: Vu (Kgf) | G10: Mux (Kgf.cm) | H10: Muy (Kgf.cm) | I10: Lx (cm) | J10: Ly (cm) | K10: حالت | L10: bx (cm) | M10: by (cm) | N10: b0 (cm) | O10: Jcx/Cy (cm3) | P10: Jcx/C'y (cm3) | Q10: Jcy/Cx (cm3) | R10: Jcy/C'x (cm3) | S10: βc | T10: αs | U10: vc (Kg.cm2) | V10: γvx | W10: γvy | X10: Muvx (Kgf.cm) | Y10: Muvy (Kgf.cm) | Z10: Ac (cm2) | AA10: vu (Kg.cm2) | AB10: Ratio | AC10: Vn (Kgf) | AD10: 3Vc (Kgf) | AE10: Vn≤3Vc | AF10: d≥150mm OR d≥16dbs | AG10: (Av/S)req
B11: ='ورودی نیروها'!C4 -> BASE | C11: ='ورودی نیروها'!D4 -> 1 | D11: ='ورودی نیروها'!E4 -> ACIB01 | E11: =CONCATENATE(C11," - ",D11) -> 1 - ACIB01 | F11: =ABS('ورودی نیروها'!H4) -> 134656.05 | G11: =ABS('ورودی نیروها'!I4) -> 150327.855 | H11: =ABS('ورودی نیروها'!J4) -> 190986.196 | I11: =VLOOKUP(C11,'ورودی نیروها'!M$4:P$1000000,2,FALSE) -> 60 | J11: =VLOOKUP(C11,'ورودی نیروها'!M$4:P$1000000,3,FALSE) -> 45 | K11: =VLOOKUP(C11,'ورودی نیروها'!M$4:P$1000000,4,FALSE) -> 4 | L11: =IF(OR(K11=1,K11=2),I11+$C$6,I11+($C$6/2)) -> 105 | M11: =IF(OR(K11=1,K11=3),J11+$C$6,J11+($C$6/2)) -> 90 | N11: =IF(VLOOKUP(C11,'ورودی نیروها'!M$4:Q$1048576,5,FALSE)=0,IF(K11=1,2*L11+2*M11,IF(K11=2,L11+2*M11,IF(K11=3,2*L11+M11,L11+M11))),VLOOKUP(C11,'ورودی نیروها'!M$4:Q$1048576,5,FALSE)) -> 195 | O11: =IF(K11=1,(L11*$C$6*(L11+3*M11)+$C$6^3)/3,IF(K11=2,(2*M11^2*$C$6*(M11+2*L11)+$C$6^3*(2*M11+L11))/(6*M11),IF(K11=3,M11*$C$6*(M11+6*L11)/6,($C$6*(L11+4*M11)+$C$6^3*(L11+M11))/(6*L11)))) -> 225709.2857 | P11: =IF(K11=1,(L11*$C$6*(L11+3*M11)+$C$6^3)/3,IF(K11=2,(2*M11^2*$C$6*(M11+2*L11)+$C$6^3*(2*M11+L11))/(6*(L11+M11)),IF(K11=3,(M11*$C$6*(M11+6*L11)+$C$6^3)/6,(L11^2*$C$6*(L11+4*M11)+$C$6^3*(L11+M11))/(6*(L11+2*M11))))) -> 352953.9474 | Q11: =IF(K11=1,(M11*$C$6*(M11+3*L11)+$C$6^3)/3,IF(K11=2,L11*$C$6*(L11+6*M11)/6,IF(K11=3,(2*L11^2*$C$6*(L11+2*M11)+$C$6^3*(2*L11+M11))/(6*L11),($C$6*(M11+4*L11)+$C$6^3*(M11+L11))/(6*M11)))) -> 263335 | R11: =IF(K11=1,(M11*$C$6*(M11+3*L11)+$C$6^3)/3,IF(K11=2,(L11*$C$6*(L11+6*M11)+$C$6^3)/6,IF(K11=3,(2*L11^2*$C$6*(L11+2*M11)+$C$6^3*(2*L11+M11))/(6*(M11+L11)),(M11^2*$C$6*(M11+4*L11)+$C$6^3*(M11+L11))/(6*(M11+2*L11))))) -> 285525 | S11: =MAX(I11:J11)/MIN(I11:J11) -> 1.333333333 | T11: =IF(K11=1,40,IF(K11=4,20,30)) -> 20 | U11: =MIN(0.53*$C$5*(1+(2/S11))*SQRT($C$4),0.53*$C$5*(1+((T11*$C$6)/(2*N11)))*SQRT($C$4),1.06*$C$5*SQRT($C$4)) -> 12.5700537 | V11: =1-(1/((1+(2/3)*SQRT(L11/M11)))) -> 0.4186324689 | W11: =1-(1/((1+(2/3)*SQRT(M11/L11)))) -> 0.3816524151 | X11: =V11*G11 -> 62932.12108 | Y11: =W11*H11 -> 72890.34296 | Z11: =N11*$C$6 -> 17550 | AA11: =(F11/Z11)+(X11/MIN(O11:P11))+(Y11/MIN(Q11:R11)) -> 8.228325792 | AB11: =AA11/U11 -> 0.6545975052 | AC11: =IF(AB11<=1,"-",F11/$C$5) -> - | AD11: =IF(AB11<=1,"-",3*U11*N11*$C$6/$C$5) -> - | AE11: =IF(AB11<=1,"-",IF(AC11<=AD11,"OK","NOT OK")) -> - | AF11: =IF(AB11<=1,"-",IF(OR($C$6>=15,$C$6>=16*($C$8/10)),"OK","NOT OK")) -> - | AG11: =IF(OR(AE11="NOT OK",AF11="NOT OK"),"CANT USE",IF(AB11<=1,"-",(AA11-U11)*N11/($C$5*$C$7))) -> -
B12: ='ورودی نیروها'!C5 -> BASE | C12: ='ورودی نیروها'!D5 -> 1 | D12: ='ورودی نیروها'!E5 -> ACIB02 | E12: =CONCATENATE(C12," - ",D12) -> 1 - ACIB02 | F12: =ABS('ورودی نیروها'!H5) -> 146088.64 | G12: =ABS('ورودی نیروها'!I5) -> 124336.697 | H12: =ABS('ورودی نیروها'!J5) -> 236246.203 | I12: =VLOOKUP(C12,'ورودی نیروها'!M$4:P$1000000,2,FALSE) -> 60 | J12: =VLOOKUP(C12,'ورودی نیروها'!M$4:P$1000000,3,FALSE) -> 45 | K12: =VLOOKUP(C12,'ورودی نیروها'!M$4:P$1000000,4,FALSE) -> 4 | L12: =IF(OR(K12=1,K12=2),I12+$C$6,I12+($C$6/2)) -> 105 | M12: =IF(OR(K12=1,K12=3),J12+$C$6,J12+($C$6/2)) -> 90 | N12: =IF(VLOOKUP(C12,'ورودی نیروها'!M$4:Q$1048576,5,FALSE)=0,IF(K12=1,2*L12+2*M12,IF(K12=2,L12+2*M12,IF(K12=3,2*L12+M12,L12+M12))),VLOOKUP(C12,'ورودی نیروها'!M$4:Q$1048576,5,FALSE)) -> 195 | O12: =IF(K12=1,(L12*$C$6*(L12+3*M12)+$C$6^3)/3,IF(K12=2,(2*M12^2*$C$6*(M12+2*L12)+$C$6^3*(2*M12+L12))/(6*M12),IF(K12=3,M12*$C$6*(M12+6*L12)/6,($C$6*(L12+4*M12)+$C$6^3*(L12+M12))/(6*L12)))) -> 225709.2857 | P12: =IF(K12=1,(L12*$C$6*(L12+3*M12)+$C$6^3)/3,IF(K12=2,(2*M12^2*$C$6*(M12+2*L12)+$C$6^3*(2*M12+L12))/(6*(L12+M12)),IF(K12=3,(M12*$C$6*(M12+6*L12)+$C$6^3)/6,(L12^2*$C$6*(L12+4*M12)+$C$6^3*(L12+M12))/(6*(L12+2*M12))))) -> 352953.9474 | Q12: =IF(K12=1,(M12*$C$6*(M12+3*L12)+$C$6^3)/3,IF(K12=2,L12*$C$6*(L12+6*M12)/6,IF(K12=3,(2*L12^2*$C$6*(L12+2*M12)+$C$6^3*(2*L12+M12))/(6*L12),($C$6*(M12+4*L12)+$C$6^3*(M12+L12))/(6*M12)))) -> 263335 | R12: =IF(K12=1,(M12*$C$6*(M12+3*L12)+$C$6^3)/3,IF(K12=2,(L12*$C$6*(L12+6*M12)+$C$6^3)/6,IF(K12=3,(2*L12^2*$C$6*(L12+2*M12)+$C$6^3*(2*L12+M12))/(6*(M12+L12)),(M12^2*$C$6*(M12+4*L12)+$C$6^3*(M12+L12))/(6*(M12+2*L12))))) -> 285525 | S12: =MAX(I12:J12)/MIN(I12:J12) -> 1.333333333 | T12: =IF(K12=1,40,IF(K12=4,20,30)) -> 20 | U12: =MIN(0.53*$C$5*(1+(2/S12))*SQRT($C$4),0.53*$C$5*(1+((T12*$C$6)/(2*N12)))*SQRT($C$4),1.06*$C$5*SQRT($C$4)) -> 12.5700537 | V12: =1-(1/((1+(2/3)*SQRT(L12/M12)))) -> 0.4186324689 | W12: =1-(1/((1+(2/3)*SQRT(M12/L12)))) -> 0.3816524151 | X12: =V12*G12 -> 52051.37844 | Y12: =W12*H12 -> 90163.93394 | Z12: =N12*$C$6 -> 17550 | AA12: =(F12/Z12)+(X12/MIN(O12:P12))+(Y12/MIN(Q12:R12)) -> 8.897144031 | AB12: =AA12/U12 -> 0.7078047751 | AC12: =IF(AB12<=1,"-",F12/$C$5) -> - | AD12: =IF(AB12<=1,"-",3*U12*N12*$C$6/$C$5) -> - | AE12: =IF(AB12<=1,"-",IF(AC12<=AD12,"OK","NOT OK")) -> - | AF12: =IF(AB12<=1,"-",IF(OR($C$6>=15,$C$6>=16*($C$8/10)),"OK","NOT OK")) -> - | AG12: =IF(OR(AE12="NOT OK",AF12="NOT OK"),"CANT USE",IF(AB12<=1,"-",(AA12-U12)*N12/($C$5*$C$7))) -> -
B13: ='ورودی نیروها'!C6 -> BASE | C13: ='ورودی نیروها'!D6 -> 1 | D13: ='ورودی نیروها'!E6 -> ACIS01 | E13: 1 - ACIS01 | F13: =ABS('ورودی نیروها'!H6) -> 96993.21 | G13: =ABS('ورودی نیروها'!I6) -> 741201.721 | H13: =ABS('ورودی نیروها'!J6) -> 2065589.064 | I13: =VLOOKUP(C13,'ورودی نیروها'!M$4:P$1000000,2,FALSE) -> 60 | J13: =VLOOKUP(C13,'ورودی نیروها'!M$4:P$1000000,3,FALSE) -> 45 | K13: =VLOOKUP(C13,'ورودی نیروها'!M$4:P$1000000,4,FALSE) -> 4 | L13: 105 | M13: 90 | N13: =IF(VLOOKUP(C13,'ورودی نیروها'!M$4:Q$1048576,5,FALSE)=0,IF(K13=1,2*L13+2*M13,IF(K13=2,L13+2*M13,IF(K13=3,2*L13+M13,L13+M13))),VLOOKUP(C13,'ورودی نیروها'!M$4:Q$1048576,5,FALSE)) -> 195 | O13: 225709.2857 | P13: 352953.9474 | Q13: 263335 | R13: 285525 | S13: 1.333333333 | T13: 20 | U13: 12.5700537 | V13: 0.4186324689 | W13: 0.3816524151 | X13: 310291.1064 | Y13: 788337.055 | Z13: 17550 | AA13: 9.89508259 | AB13: 0.7871949339 | AC13: - | AD13: - | AE13: - | AF13: - | AG13: -
B14: ='ورودی نیروها'!C7 -> BASE | C14: ='ورودی نیروها'!D7 -> 1 | D14: ='ورودی نیروها'!E7 -> ACIS02 | E14: 1 - ACIS02 | F14: =ABS('ورودی نیروها'!H7) -> 56567.05 | G14: =ABS('ورودی نیروها'!I7) -> 695981.724 | H14: =ABS('ورودی نیروها'!J7) -> 2123014.525 | I14: =VLOOKUP(C14,'ورودی نیروها'!M$4:P$1000000,2,FALSE) -> 60 | J14: =VLOOKUP(C14,'ورودی نیروها'!M$4:P$1000000,3,FALSE) -> 45 | K14: =VLOOKUP(C14,'ورودی نیروها'!M$4:P$1000000,4,FALSE) -> 4 | L14: 105 | M14: 90 | N14: =IF(VLOOKUP(C14,'ورودی نیروها'!M$4:Q$1048576,5,FALSE)=0,IF(K14=1,2*L14+2*M14,IF(K14=2,L14+2*M14,IF(K14=3,2*L14+M14,L14+M14))),VLOOKUP(C14,'ورودی نیروها'!M$4:Q$1048576,5,FALSE)) -> 195 | O14: 225709.2857 | P14: 352953.9474 | Q14: 263335 | R14: 285525 | S14: 1.333333333 | T14: 20 | U14: 12.5700537 | V14: 0.4186324689 | W14: 0.3816524151 | X14: 291360.5474 | Y14: 810253.6208 | Z14: 17550 | AA14: 7.590953206 | AB14: 0.6038918677 | AC14: - | AD14: - | AE14: - | AF14: - | AG14: -
B15: ='ورودی نیروها'!C8 -> BASE | C15: ='ورودی نیروها'!D8 -> 1 | D15: ='ورودی نیروها'!E8 -> ACIS03 | E15: 1 - ACIS03 | F15: =ABS('ورودی نیروها'!H8) -> 80429.57 | G15: =ABS('ورودی نیروها'!I8) -> 570154.321 | H15: =ABS('ورودی نیروها'!J8) -> 2108300.302 | I15: =VLOOKUP(C15,'ورودی نیروها'!M$4:P$1000000,2,FALSE) -> 60 | J15: =VLOOKUP(C15,'ورودی نیروها'!M$4:P$1000000,3,FALSE) -> 45 | K15: =VLOOKUP(C15,'ورودی نیروها'!M$4:P$1000000,4,FALSE) -> 4 | L15: 105 | M15: 90 | N15: =IF(VLOOKUP(C15,'ورودی نیروها'!M$4:Q$1048576,5,FALSE)=0,IF(K15=1,2*L15+2*M15,IF(K15=2,L15+2*M15,IF(K15=3,2*L15+M15,L15+M15))),VLOOKUP(C15,'ورودی نیروها'!M$4:Q$1048576,5,FALSE)) -> 195 | O15: 225709.2857 | P15: 352953.9474 | Q15: 263335 | R15: 285525 | S15: 1.333333333 | T15: 20 | U15: 12.5700537 | V15: 0.4186324689 | W15: 0.3816524151 | X15: 238685.111 | Y15: 804637.9021 | Z15: 17550 | AA15: 8.69593822 | AB15: 0.6917980168 | AC15: - | AD15: - | AE15: - | AF15: - | AG15: -
B16: ='ورودی نیروها'!C9 -> BASE | C16: ='ورودی نیروها'!D9 -> 1 | D16: ='ورودی نیروها'!E9 -> ACIS04 | E16: 1 - ACIS04 | F16: =ABS('ورودی نیروها'!H9) -> 40003.41 | G16: =ABS('ورودی نیروها'!I9) -> 615374.318 | H16: =ABS('ورودی نیروها'!J9) -> 2165725.763 | I16: =VLOOKUP(C16,'ورودی نیروها'!M$4:P$1000000,2,FALSE) -> 60 | J16: =VLOOKUP(C16,'ورودی نیروها'!M$4:P$1000000,3,FALSE) -> 45 | K16: =VLOOKUP(C16,'ورودی نیروها'!M$4:P$1000000,4,FALSE) -> 4 | L16: 105 | M16: 90 | N16: =IF(VLOOKUP(C16,'ورودی نیروها'!M$4:Q$1048576,5,FALSE)=0,IF(K16=1,2*L16+2*M16,IF(K16=2,L16+2*M16,IF(K16=3,2*L16+M16,L16+M16))),VLOOKUP(C16,'ورودی نیروها'!M$4:Q$1048576,5,FALSE)) -> 195 | O16: 225709.2857 | P16: 352953.9474 | Q16: 263335 | R16: 285525 | S16: 1.333333333 | T16: 20 | U16: 12.5700537 | V16: 0.4186324689 | W16: 0.3816524151 | X16: 257615.67 | Y16: 826554.468 | Z16: 17550 | AA16: 6.559551681 | AB16: 0.521839591 | AC16: - | AD16: - | AE16: - | AF16: - | AG16: -
B17: ='ورودی نیروها'!C10 -> BASE | C17: ='ورودی نیروها'!D10 -> 1 | D17: ='ورودی نیروها'!E10 -> ACIS05 | E17: 1 - ACIS05 | F17: =ABS('ورودی نیروها'!H10) -> 229171.99 | G17: =ABS('ورودی نیروها'!I10) -> 867434.525 | H17: =ABS('ورودی نیروها'!J10) -> 2583810.357 | I17: =VLOOKUP(C17,'ورودی نیروها'!M$4:P$1000000,2,FALSE) -> 60 | J17: =VLOOKUP(C17,'ورودی نیروها'!M$4:P$1000000,3,FALSE) -> 45 | K17: =VLOOKUP(C17,'ورودی نیروها'!M$4:P$1000000,4,FALSE) -> 4 | L17: 105 | M17: 90 | N17: =IF(VLOOKUP(C17,'ورودی نیروها'!M$4:Q$1048576,5,FALSE)=0,IF(K17=1,2*L17+2*M17,IF(K17=2,L17+2*M17,IF(K17=3,2*L17+M17,L17+M17))),VLOOKUP(C17,'ورودی نیروها'!M$4:Q$1048576,5,FALSE)) -> 195 | O17: 225709.2857 | P17: 352953.9474 | Q17: 263335 | R17: 285525 | S17: 1.333333333 | T17: 20 | U17: 12.5700537 | V17: 0.4186324689 | W17: 0.3816524151 | X17: 363136.2568 | Y17: 986117.463 | Z17: 17550 | AA17: 18.41182636 | AB17: 1.464737288 | AC17: 305562.6533 | AD17: 882417.7697 | AE17: OK | AF17: OK | AG17: 0.3797152232
B18: ='ورودی نیروها'!C11 -> BASE | C18: ='ورودی نیروها'!D11 -> 1 | D18: ='ورودی نیروها'!E11 -> ACIS06 | E18: 1 - ACIS06 | F18: =ABS('ورودی نیروها'!H11) -> 188745.83 | G18: =ABS('ورودی نیروها'!I11) -> 822214.528 | H18: =ABS('ورودی نیروها'!J11) -> 2526384.896 | I18: =VLOOKUP(C18,'ورودی نیروها'!M$4:P$1000000,2,FALSE) -> 60 | J18: =VLOOKUP(C18,'ورودی نیروها'!M$4:P$1000000,3,FALSE) -> 45 | K18: =VLOOKUP(C18,'ورودی نیروها'!M$4:P$1000000,4,FALSE) -> 4 | L18: 105 | M18: 90 | N18: =IF(VLOOKUP(C18,'ورودی نیروها'!M$4:Q$1048576,5,FALSE)=0,IF(K18=1,2*L18+2*M18,IF(K18=2,L18+2*M18,IF(K18=3,2*L18+M18,L18+M18))),VLOOKUP(C18,'ورودی نیروها'!M$4:Q$1048576,5,FALSE)) -> 195 | O18: 225709.2857 | P18: 352953.9474 | Q18: 263335 | R18: 285525 | S18: 1.333333333 | T18: 20 | U18: 12.5700537 | V18: 0.4186324689 | W18: 0.3816524151 | X18: 344205.6978 | Y18: 964200.8971 | Z18: 17550 | AA18: 15.9412431 | AB18: 1.268192124 | AC18: 251661.1067 | AD18: 882417.7697 | AE18: OK | AF18: OK | AG18: 0.2191273112
B19: ='ورودی نیروها'!C12 -> BASE | C19: ='ورودی نیروها'!D12 -> 1 | D19: ='ورودی نیروها'!E12 -> ACIS07 | E19: 1 - ACIS07 | F19: =ABS('ورودی نیروها'!H12) -> 212608.35 | G19: =ABS('ورودی نیروها'!I12) -> 443921.517 | H19: =ABS('ورودی نیروها'!J12) -> 2541099.119 | I19: =VLOOKUP(C19,'ورودی نیروها'!M$4:P$1000000,2,FALSE) -> 60 | J19: =VLOOKUP(C19,'ورودی نیروها'!M$4:P$1000000,3,FALSE) -> 45 | K19: =VLOOKUP(C19,'ورودی نیروها'!M$4:P$1000000,4,FALSE) -> 4 | L19: 105 | M19: 90 | N19: =IF(VLOOKUP(C19,'ورودی نیروها'!M$4:Q$1048576,5,FALSE)=0,IF(K19=1,2*L19+2*M19,IF(K19=2,L19+2*M19,IF(K19=3,2*L19+M19,L19+M19))),VLOOKUP(C19,'ورودی نیروها'!M$4:Q$1048576,5,FALSE)) -> 195 | O19: 225709.2857 | P19: 352953.9474 | Q19: 263335 | R19: 285525 | S19: 1.333333333 | T19: 20 | U19: 12.5700537 | V19: 0.4186324689 | W19: 0.3816524151 | X19: 185839.9606 | Y19: 969816.6159 | Z19: 17550 | AA19: 16.62062033 | AB19: 1.322239406 | AC19: 283477.8 | AD19: 882417.7697 | AE19: OK | AF19: OK | AG19: 0.2632868312
B20: ='ورودی نیروها'!C13 -> BASE | C20: ='ورودی نیروها'!D13 -> 1 | D20: ='ورودی نیروها'!E13 -> ACIS08 | E20: 1 - ACIS08 | F20: =ABS('ورودی نیروها'!H13) -> 172182.19 | G20: =ABS('ورودی نیروها'!I13) -> 489141.514 | H20: =ABS('ورودی نیروها'!J13) -> 2483673.658 | I20: =VLOOKUP(C20,'ورودی نیروها'!M$4:P$1000000,2,FALSE) -> 60 | J20: =VLOOKUP(C20,'ورودی نیروها'!M$4:P$1000000,3,FALSE) -> 45 | K20: =VLOOKUP(C20,'ورودی نیروها'!M$4:P$1000000,4,FALSE) -> 4 | L20: 105 | M20: 90 | N20: =IF(VLOOKUP(C20,'ورودی نیروها'!M$4:Q$1048576,5,FALSE)=0,IF(K20=1,2*L20+2*M20,IF(K20=2,L20+2*M20,IF(K20=3,2*L20+M20,L20+M20))),VLOOKUP(C20,'ورودی نیروها'!M$4:Q$1048576,5,FALSE)) -> 195 | O20: 225709.2857 | P20: 352953.9474 | Q20: 263335 | R20: 285525 | S20: 1.333333333 | T20: 20 | U20: 12.5700537 | V20: 0.4186324689 | W20: 0.3816524151 | X20: 204770.5196 | Y20: 947900.05 | Z20: 17550 | AA20: 14.31777992 | AB20: 1.139038882 | AC20: 229576.2533 | AD20: 882417.7697 | AE20: OK | AF20: OK | AG20: 0.1136022042
B21: ='ورودی نیروها'!C14 -> BASE | C21: ='ورودی نیروها'!D14 -> 1 | D21: ='ورودی نیروها'!E14 -> ACIS09 | E21: 1 - ACIS09 | F21: =ABS('ورودی نیروها'!H14) -> 95174.28 | G21: =ABS('ورودی نیروها'!I14) -> 962586.627 | H21: =ABS('ورودی نیروها'!J14) -> 2203914.344 | I21: =VLOOKUP(C21,'ورودی نیروها'!M$4:P$1000000,2,FALSE) -> 60 | J21: =VLOOKUP(C21,'ورودی نیروها'!M$4:P$1000000,3,FALSE) -> 45 | K21: =VLOOKUP(C21,'ورودی نیروها'!M$4:P$1000000,4,FALSE) -> 4 | L21: 105 | M21: 90 | N21: =IF(VLOOKUP(C21,'ورودی نیروها'!M$4:Q$1048576,5,FALSE)=0,IF(K21=1,2*L21+2*M21,IF(K21=2,L21+2*M21,IF(K21=3,2*L21+M21,L21+M21))),VLOOKUP(C21,'ورودی نیروها'!M$4:Q$1048576,5,FALSE)) -> 195 | O21: 225709.2857 | P21: 352953.9474 | Q21: 263335 | R21: 285525 | S21: 1.333333333 | T21: 20 | U21: 12.5700537 | V21: 0.4186324689 | W21: 0.3816524151 | X21: 402970.0162 | Y21: 841129.2321 | Z21: 17550 | AA21: 10.40252707 | AB21: 0.8275642506 | AC21: - | AD21: - | AE21: - | AF21: - | AG21: -
B22: ='ورودی نیروها'!C15 -> BASE | C22: ='ورودی نیروها'!D15 -> 1 | D22: ='ورودی نیروها'!E15 -> ACIS10 | E22: 1 - ACIS10 | F22: =ABS('ورودی نیروها'!H15) -> 54748.12 | G22: =ABS('ورودی نیروها'!I15) -> 917366.63 | H22: =ABS('ورودی نیروها'!J15) -> 2261339.805 | I22: =VLOOKUP(C22,'ورودی نیروها'!M$4:P$1000000,2,FALSE) -> 60 | J22: =VLOOKUP(C22,'ورودی نیروها'!M$4:P$1000000,3,FALSE) -> 45 | K22: =VLOOKUP(C22,'ورودی نیروها'!M$4:P$1000000,4,FALSE) -> 4 | L22: 105 | M22: 90 | N22: =IF(VLOOKUP(C22,'ورودی نیروها'!M$4:Q$1048576,5,FALSE)=0,IF(K22=1,2*L22+2*M22,IF(K22=2,L22+2*M22,IF(K22=3,2*L22+M22,L22+M22))),VLOOKUP(C22,'ورودی نیروها'!M$4:Q$1048576,5,FALSE)) -> 195 | O22: 225709.2857 | P22: 352953.9474 | Q22: 263335 | R22: 285525 | S22: 1.333333333 | T22: 20 | U22: 12.5700537 | V22: 0.4186324689 | W22: 0.3816524151 | X22: 384039.4572 | Y22: 863045.798 | Z22: 17550 | AA22: 8.098397685 | AB22: 0.6442611844 | AC22: - | AD22: - | AE22: - | AF22: - | AG22: -
B23: ='ورودی نیروها'!C16 -> BASE | C23: ='ورودی نیروها'!D16 -> 1 | D23: ='ورودی نیروها'!E16 -> ACIS11 | E23: 1 - ACIS11 | F23: =ABS('ورودی نیروها'!H16) -> 78610.64 | G23: =ABS('ورودی نیروها'!I16) -> 348769.415 | H23: =ABS('ورودی نیروها'!J16) -> 2246625.583 | I23: =VLOOKUP(C23,'ورودی نیروها'!M$4:P$1000000,2,FALSE) -> 60 | J23: =VLOOKUP(C23,'ورودی نیروها'!M$4:P$1000000,3,FALSE) -> 45 | K23: =VLOOKUP(C23,'ورودی نیروها'!M$4:P$1000000,4,FALSE) -> 4 | L23: 105 | M23: 90 | N23: =IF(VLOOKUP(C23,'ورودی نیروها'!M$4:Q$1048576,5,FALSE)=0,IF(K23=1,2*L23+2*M23,IF(K23=2,L23+2*M23,IF(K23=3,2*L23+M23,L23+M23))),VLOOKUP(C23,'ورودی نیروها'!M$4:Q$1048576,5,FALSE)) -> 195 | O23: 225709.2857 | P23: 352953.9474 | Q23: 263335 | R23: 285525 | S23: 1.333333333 | T23: 20 | U23: 12.5700537 | V23: 0.4186324689 | W23: 0.3816524151 | X23: 146006.2013 | Y23: 857430.0797 | Z23: 17550 | AA23: 8.382158979 | AB23: 0.6668355744 | AC23: - | AD23: - | AE23: - | AF23: - | AG23: -
B24: ='ورودی نیروها'!C17 -> BASE | C24: ='ورودی نیروها'!D17 -> 1 | D24: ='ورودی نیروها'!E17 -> ACIS12 | E24: 1 - ACIS12 | F24: =ABS('ورودی نیروها'!H17) -> 64934.37 | G24: =ABS('ورودی نیروها'!I17) -> 893626.354 | H24: =ABS('ورودی نیروها'!J17) -> 1891886.057 | I24: =VLOOKUP(C24,'ورودی نیروها'!M$4:P$1000000,2,FALSE) -> 60 | J24: =VLOOKUP(C24,'ورودی نیروها'!M$4:P$1000000,3,FALSE) -> 45 | K24: =VLOOKUP(C24,'ورودی نیروها'!M$4:P$1000000,4,FALSE) -> 4 | L24: 105 | M24: 90 | N24: =IF(VLOOKUP(C24,'ورودی نیروها'!M$4:Q$1048576,5,FALSE)=0,IF(K24=1,2*L24+2*M24,IF(K24=2,L24+2*M24,IF(K24=3,2*L24+M24,L24+M24))),VLOOKUP(C24,'ورودی نیروها'!M$4:Q$1048576,5,FALSE)) -> 195 | O24: 225709.2857 | P24: 352953.9474 | Q24: 263335 | R24: 285525 | S24: 1.333333333 | T24: 20 | U24: 12.5700537 | V24: 0.4186324689 | W24: 0.3816524151 | X24: 374101.0068 | Y24: 722042.8828 | Z24: 17550 | AA24: 8.099327986 | AB24: 0.6443351938 | AC24: - | AD24: - | AE24: - | AF24: - | AG24: -
B25: ='ورودی نیروها'!C18 -> BASE | C25: ='ورودی نیروها'!D18 -> 1 | D25: ='ورودی نیروها'!E18 -> ACIS13 | E25: 1 - ACIS13 | F25: =ABS('ورودی نیروها'!H18) -> 230990.92 | G25: =ABS('ورودی نیروها'!I18) -> 646049.619 | H25: =ABS('ورودی نیروها'!J18) -> 2722135.638 | I25: =VLOOKUP(C25,'ورودی نیروها'!M$4:P$1000000,2,FALSE) -> 60 | J25: =VLOOKUP(C25,'ورودی نیروها'!M$4:P$1000000,3,FALSE) -> 45 | K25: =VLOOKUP(C25,'ورودی نیروها'!M$4:P$1000000,4,FALSE) -> 4 | L25: 105 | M25: 90 | N25: =IF(VLOOKUP(C25,'ورودی نیروها'!M$4:Q$1048576,5,FALSE)=0,IF(K25=1,2*L25+2*M25,IF(K25=2,L25+2*M25,IF(K25=3,2*L25+M25,L25+M25))),VLOOKUP(C25,'ورودی نیروها'!M$4:Q$1048576,5,FALSE)) -> 195 | O25: 225709.2857 | P25: 352953.9474 | Q25: 263335 | R25: 285525 | S25: 1.333333333 | T25: 20 | U25: 12.5700537 | V25: 0.4186324689 | W25: 0.3816524151 | X25: 270457.347 | Y25: 1038909.641 | Z25: 17550 | AA25: 18.30533259 | AB25: 1.456265266 | AC25: 307987.8933 | AD25: 882417.7697 | AE25: OK | AF25: OK | AG25: 0.3727931281
B26: ='ورودی نیروها'!C19 -> BASE | C26: ='ورودی نیروها'!D19 -> 1 | D26: ='ورودی نیروها'!E19 -> ACIS14 | E26: 1 - ACIS14 | F26: =ABS('ورودی نیروها'!H19) -> 190564.76 | G26: =ABS('ورودی نیروها'!I19) -> 600829.622 | H26: =ABS('ورودی نیروها'!J19) -> 2664710.177 | I26: =VLOOKUP(C26,'ورودی نیروها'!M$4:P$1000000,2,FALSE) -> 60 | J26: =VLOOKUP(C26,'ورودی نیروها'!M$4:P$1000000,3,FALSE) -> 45 | K26: =VLOOKUP(C26,'ورودی نیروها'!M$4:P$1000000,4,FALSE) -> 4 | L26: 105 | M26: 90 | N26: =IF(VLOOKUP(C26,'ورودی نیروها'!M$4:Q$1048576,5,FALSE)=0,IF(K26=1,2*L26+2*M26,IF(K26=2,L26+2*M26,IF(K26=3,2*L26+M26,L26+M26))),VLOOKUP(C26,'ورودی نیروها'!M$4:Q$1048576,5,FALSE)) -> 195 | O26: 225709.2857 | P26: 352953.9474 | Q26: 263335 | R26: 285525 | S26: 1.333333333 | T26: 20 | U26: 12.5700537 | V26: 0.4186324689 | W26: 0.3816524151 | X26: 251526.788 | Y26: 1016993.075 | Z26: 17550 | AA26: 15.83474933 | AB26: 1.259720102 | AC26: 254086.3467 | AD26: 882417.7697 | AE26: OK | AF26: OK | AG26: 0.2122052161
B27: ='ورودی نیروها'!C20 -> BASE | C27: ='ورودی نیروها'!D20 -> 1 | D27: ='ورودی نیروها'!E20 -> ACIS15 | E27: 1 - ACIS15 | F27: =ABS('ورودی نیروها'!H20) -> 214427.28 | G27: =ABS('ورودی نیروها'!I20) -> 665306.423 | H27: =ABS('ورودی نیروها'!J20) -> 2679424.399 | I27: =VLOOKUP(C27,'ورودی نیروها'!M$4:P$1000000,2,FALSE) -> 60 | J27: =VLOOKUP(C27,'ورودی نیروها'!M$4:P$1000000,3,FALSE) -> 45 | K27: =VLOOKUP(C27,'ورودی نیروها'!M$4:P$1000000,4,FALSE) -> 4 | L27: 105 | M27: 90 | N27: =IF(VLOOKUP(C27,'ورودی نیروها'!M$4:Q$1048576,5,FALSE)=0,IF(K27=1,2*L27+2*M27,IF(K27=2,L27+2*M27,IF(K27=3,2*L27+M27,L27+M27))),VLOOKUP(C27,'ورودی نیروها'!M$4:Q$1048576,5,FALSE)) -> 195 | O27: 225709.2857 | P27: 352953.9474 | Q27: 263335 | R27: 285525 | S27: 1.333333333 | T27: 20 | U27: 12.5700537 | V27: 0.4186324689 | W27: 0.3816524151 | X27: 278518.8704 | Y27: 1022608.793 | Z27: 17550 | AA27: 17.33535028 | AB27: 1.379099143 | AC27: 285903.04 | AD27: 882417.7697 | AE27: OK | AF27: OK | AG27: 0.3097442779
B28: ='ورودی نیروها'!C21 -> BASE | C28: ='ورودی نیروها'!D21 -> 1 | D28: ='ورودی نیروها'!E21 -> ACIS16 | E28: 1 - ACIS16 | F28: =ABS('ورودی نیروها'!H21) -> 174001.12 | G28: =ABS('ورودی نیروها'!I21) -> 710526.42 | H28: =ABS('ورودی نیروها'!J21) -> 2621998.938 | I28: =VLOOKUP(C28,'ورودی نیروها'!M$4:P$1000000,2,FALSE) -> 60 | J28: =VLOOKUP(C28,'ورودی نیروها'!M$4:P$1000000,3,FALSE) -> 45 | K28: =VLOOKUP(C28,'ورودی نیروها'!M$4:P$1000000,4,FALSE) -> 4 | L28: 105 | M28: 90 | N28: =IF(VLOOKUP(C28,'ورودی نیروها'!M$4:Q$1048576,5,FALSE)=0,IF(K28=1,2*L28+2*M28,IF(K28=2,L28+2*M28,IF(K28=3,2*L28+M28,L28+M28))),VLOOKUP(C28,'ورودی نیروها'!M$4:Q$1048576,5,FALSE)) -> 195 | O28: 225709.2857 | P28: 352953.9474 | Q28: 263335 | R28: 285525 | S28: 1.333333333 | T28: 20 | U28: 12.5700537 | V28: 0.4186324689 | W28: 0.3816524151 | X28: 297449.4294 | Y28: 1000692.227 | Z28: 17550 | AA28: 15.03250987 | AB28: 1.19589862 | AC28: 232001.4933 | AD28: 882417.7697 | AE28: OK | AF28: OK | AG28: 0.1600596509
B29: ='ورودی نیروها'!C22 -> BASE | C29: ='ورودی نیروها'!D22 -> 1 | D29: ='ورودی نیروها'!E22 -> ACIS17 | E29: 1 - ACIS17 | F29: =ABS('ورودی نیروها'!H22) -> 98812.14 | G29: =ABS('ورودی نیروها'!I22) -> 519816.815 | H29: =ABS('ورودی نیروها'!J22) -> 1927263.783 | I29: =VLOOKUP(C29,'ورودی نیروها'!M$4:P$1000000,2,FALSE) -> 60 | J29: =VLOOKUP(C29,'ورودی نیروها'!M$4:P$1000000,3,FALSE) -> 45 | K29: =VLOOKUP(C29,'ورودی نیروها'!M$4:P$1000000,4,FALSE) -> 4 | L29: 105 | M29: 90 | N29: =IF(VLOOKUP(C29,'ورودی نیروها'!M$4:Q$1048576,5,FALSE)=0,IF(K29=1,2*L29+2*M29,IF(K29=2,L29+2*M29,IF(K29=3,2*L29+M29,L29+M29))),VLOOKUP(C29,'ورودی نیروها'!M$4:Q$1048576,5,FALSE)) -> 195 | O29: 225709.2857 | P29: 352953.9474 | Q29: 263335 | R29: 285525 | S29: 1.333333333 | T29: 20 | U29: 12.5700537 | V29: 0.4186324689 | W29: 0.3816524151 | X29: 217612.1966 | Y29: 735544.8774 | Z29: 17550 | AA29: 9.38763811 | AB29: 0.746825617 | AC29: - | AD29: - | AE29: - | AF29: - | AG29: -
B30: ='ورودی نیروها'!C23 -> BASE | C30: ='ورودی نیروها'!D23 -> 1 | D30: ='ورودی نیروها'!E23 -> ACIS18 | E30: 1 - ACIS18 | F30: =ABS('ورودی نیروها'!H23) -> 58385.98 | G30: =ABS('ورودی نیروها'!I23) -> 474596.818 | H30: =ABS('ورودی نیروها'!J23) -> 1984689.244 | I30: =VLOOKUP(C30,'ورودی نیروها'!M$4:P$1000000,2,FALSE) -> 60 | J30: =VLOOKUP(C30,'ورودی نیروها'!M$4:P$1000000,3,FALSE) -> 45 | K30: =VLOOKUP(C30,'ورودی نیروها'!M$4:P$1000000,4,FALSE) -> 4 | L30: 105 | M30: 90 | N30: =IF(VLOOKUP(C30,'ورودی نیروها'!M$4:Q$1048576,5,FALSE)=0,IF(K30=1,2*L30+2*M30,IF(K30=2,L30+2*M30,IF(K30=3,2*L30+M30,L30+M30))),VLOOKUP(C30,'ورودی نیروها'!M$4:Q$1048576,5,FALSE)) -> 195 | O30: 225709.2857 | P30: 352953.9474 | Q30: 263335 | R30: 285525 | S30: 1.333333333 | T30: 20 | U30: 12.5700537 | V30: 0.4186324689 | W30: 0.3816524151 | X30: 198681.6376 | Y30: 757461.4433 | Z30: 17550 | AA30: 7.083508725 | AB30: 0.5635225509 | AC30: - | AD30: - | AE30: - | AF30: - | AG30: -
B31: ='ورودی نیروها'!C24 -> BASE | C31: ='ورودی نیروها'!D24 -> 1 | D31: ='ورودی نیروها'!E24 -> ACIS19 | E31: 1 - ACIS19 | F31: =ABS('ورودی نیروها'!H24) -> 82248.51 | G31: =ABS('ورودی نیروها'!I24) -> 791539.227 | H31: =ABS('ورودی نیروها'!J24) -> 1969975.022 | I31: =VLOOKUP(C31,'ورودی نیروها'!M$4:P$1000000,2,FALSE) -> 60 | J31: =VLOOKUP(C31,'ورودی نیروها'!M$4:P$1000000,3,FALSE) -> 45 | K31: =VLOOKUP(C31,'ورودی نیروها'!M$4:P$1000000,4,FALSE) -> 4 | L31: 105 | M31: 90 | N31: =IF(VLOOKUP(C31,'ورودی نیروها'!M$4:Q$1048576,5,FALSE)=0,IF(K31=1,2*L31+2*M31,IF(K31=2,L31+2*M31,IF(K31=3,2*L31+M31,L31+M31))),VLOOKUP(C31,'ورودی نیروها'!M$4:Q$1048576,5,FALSE)) -> 195 | O31: 225709.2857 | P31: 352953.9474 | Q31: 263335 | R31: 285525 | S31: 1.333333333 | T31: 20 | U31: 12.5700537 | V31: 0.4186324689 | W31: 0.3816524151 | X31: 331364.0208 | Y31: 751845.7249 | Z31: 17550 | AA31: 9.009718032 | AB31: 0.7167605046 | AC31: - | AD31: - | AE31: - | AF31: - | AG31: -
B32: ='ورودی نیروها'!C25 -> BASE | C32: ='ورودی نیروها'!D25 -> 1 | D32: ='ورودی نیروها'!E25 -> ACIS20 | E32: 1 - ACIS20 | F32: =ABS('ورودی نیروها'!H25) -> 58385.98 | G32: =ABS('ورودی نیروها'!I25) -> 474596.818 | H32: =ABS('ورودی نیروها'!J25) -> 1984689.244 | I32: =VLOOKUP(C32,'ورودی نیروها'!M$4:P$1000000,2,FALSE) -> 60 | J32: =VLOOKUP(C32,'ورودی نیروها'!M$4:P$1000000,3,FALSE) -> 45 | K32: =VLOOKUP(C32,'ورودی نیروها'!M$4:P$1000000,4,FALSE) -> 4 | L32: 105 | M32: 90 | N32: =IF(VLOOKUP(C32,'ورودی نیروها'!M$4:Q$1048576,5,FALSE)=0,IF(K32=1,2*L32+2*M32,IF(K32=2,L32+2*M32,IF(K32=3,2*L32+M32,L32+M32))),VLOOKUP(C32,'ورودی نیروها'!M$4:Q$1048576,5,FALSE)) -> 195 | O32: 225709.2857 | P32: 352953.9474 | Q32: 263335 | R32: 285525 | S32: 1.333333333 | T32: 20 | U32: 12.5700537 | V32: 0.4186324689 | W32: 0.3816524151 | X32: 198681.6376 | Y32: 757461.4433 | Z32: 17550 | AA32: 7.083508725 | AB32: 0.5635225509 | AC32: - | AD32: - | AE32: - | AF32: - | AG32: -
B33: ='ورودی نیروها'!C26 -> BASE | C33: ='ورودی نیروها'!D26 -> 1 | D33: ='ورودی نیروها'!E26 -> ACIS21 | E33: 1 - ACIS21 | F33: =ABS('ورودی نیروها'!H26) -> 227353.05 | G33: =ABS('ورودی نیروها'!I26) -> 1088819.431 | H33: =ABS('ورودی نیروها'!J26) -> 2445485.077 | I33: =VLOOKUP(C33,'ورودی نیروها'!M$4:P$1000000,2,FALSE) -> 60 | J33: =VLOOKUP(C33,'ورودی نیروها'!M$4:P$1000000,3,FALSE) -> 45 | K33: =VLOOKUP(C33,'ورودی نیروها'!M$4:P$1000000,4,FALSE) -> 4 | L33: 105 | M33: 90 | N33: =IF(VLOOKUP(C33,'ورودی نیروها'!M$4:Q$1048576,5,FALSE)=0,IF(K33=1,2*L33+2*M33,IF(K33=2,L33+2*M33,IF(K33=3,2*L33+M33,L33+M33))),VLOOKUP(C33,'ورودی نیروها'!M$4:Q$1048576,5,FALSE)) -> 195 | O33: 225709.2857 | P33: 352953.9474 | Q33: 263335 | R33: 285525 | S33: 1.333333333 | T33: 20 | U33: 12.5700537 | V33: 0.4186324689 | W33: 0.3816524151 | X33: 455815.1665 | Y33: 933325.2858 | Z33: 17550 | AA33: 18.51831957 | AB33: 1.473209265 | AC33: 303137.4 | AD33: 882417.7697 | AE33: OK | AF33: OK | AG33: 0.3866372814
B34: ='ورودی نیروها'!C27 -> BASE | C34: ='ورودی نیروها'!D27 -> 1 | D34: ='ورودی نیروها'!E27 -> ACIS22 | E34: 1 - ACIS22 | F34: =ABS('ورودی نیروها'!H27) -> 186926.9 | G34: =ABS('ورودی نیروها'!I27) -> 1043599.434 | H34: =ABS('ورودی نیروها'!J27) -> 2388059.616 | I34: =VLOOKUP(C34,'ورودی نیروها'!M$4:P$1000000,2,FALSE) -> 60 | J34: =VLOOKUP(C34,'ورودی نیروها'!M$4:P$1000000,3,FALSE) -> 45 | K34: =VLOOKUP(C34,'ورودی نیروها'!M$4:P$1000000,4,FALSE) -> 4 | L34: 105 | M34: 90 | N34: =IF(VLOOKUP(C34,'ورودی نیروها'!M$4:Q$1048576,5,FALSE)=0,IF(K34=1,2*L34+2*M34,IF(K34=2,L34+2*M34,IF(K34=3,2*L34+M34,L34+M34))),VLOOKUP(C34,'ورودی نیروها'!M$4:Q$1048576,5,FALSE)) -> 195 | O34: 225709.2857 | P34: 352953.9474 | Q34: 263335 | R34: 285525 | S34: 1.333333333 | T34: 20 | U34: 12.5700537 | V34: 0.4186324689 | W34: 0.3816524151 | X34: 436884.6076 | Y34: 911408.7199 | Z34: 17550 | AA34: 16.04773687 | AB34: 1.276664146 | AC34: 249235.8667 | AD34: 882417.7697 | AE34: OK | AF34: OK | AG34: 0.2260494064
B35: ='ورودی نیروها'!C28 -> BASE | C35: ='ورودی نیروها'!D28 -> 1 | D35: ='ورودی نیروها'!E28 -> ACIS23 | E35: 1 - ACIS23 | F35: =ABS('ورودی نیروها'!H28) -> 210789.42 | G35: =ABS('ورودی نیروها'!I28) -> 222536.611 | H35: =ABS('ورودی نیروها'!J28) -> 2402773.838 | I35: =VLOOKUP(C35,'ورودی نیروها'!M$4:P$1000000,2,FALSE) -> 60 | J35: =VLOOKUP(C35,'ورودی نیروها'!M$4:P$1000000,3,FALSE) -> 45 | K35: =VLOOKUP(C35,'ورودی نیروها'!M$4:P$1000000,4,FALSE) -> 4 | L35: 105 | M35: 90 | N35: =IF(VLOOKUP(C35,'ورودی نیروها'!M$4:Q$1048576,5,FALSE)=0,IF(K35=1,2*L35+2*M35,IF(K35=2,L35+2*M35,IF(K35=3,2*L35+M35,L35+M35))),VLOOKUP(C35,'ورودی نیروها'!M$4:Q$1048576,5,FALSE)) -> 195 | O35: 225709.2857 | P35: 352953.9474 | Q35: 263335 | R35: 285525 | S35: 1.333333333 | T35: 20 | U35: 12.5700537 | V35: 0.4186324689 | W35: 0.3816524151 | X35: 93161.05088 | Y35: 917024.4383 | Z35: 17550 | AA35: 15.90589038 | AB35: 1.265379669 | AC35: 281052.56 | AD35: 882417.7697 | AE35: OK | AF35: OK | AG35: 0.2168293845
B36: ='ورودی نیروها'!C29 -> BASE | C36: ='ورودی نیروها'!D29 -> 1 | D36: ='ورودی نیروها'!E29 -> ACIS24 | E36: 1 - ACIS24 | F36: =ABS('ورودی نیروها'!H29) -> 170363.26 | G36: =ABS('ورودی نیروها'!I29) -> 267756.608 | H36: =ABS('ورودی نیروها'!J29) -> 2345348.377 | I36: =VLOOKUP(C36,'ورودی نیروها'!M$4:P$1000000,2,FALSE) -> 60 | J36: =VLOOKUP(C36,'ورودی نیروها'!M$4:P$1000000,3,FALSE) -> 45 | K36: =VLOOKUP(C36,'ورودی نیروها'!M$4:P$1000000,4,FALSE) -> 4 | L36: 105 | M36: 90 | N36: =IF(VLOOKUP(C36,'ورودی نیروها'!M$4:Q$1048576,5,FALSE)=0,IF(K36=1,2*L36+2*M36,IF(K36=2,L36+2*M36,IF(K36=3,2*L36+M36,L36+M36))),VLOOKUP(C36,'ورودی نیروها'!M$4:Q$1048576,5,FALSE)) -> 195 | O36: 225709.2857 | P36: 352953.9474 | Q36: 263335 | R36: 285525 | S36: 1.333333333 | T36: 20 | U36: 12.5700537 | V36: 0.4186324689 | W36: 0.3816524151 | X36: 112091.6099 | Y36: 895107.8724 | Z36: 17550 | AA36: 13.60304997 | AB36: 1.082179145 | AC36: 227151.0133 | AD36: 882417.7697 | AE36: OK | AF36: OK | AG36: 0.06714475742
B37: ='ورودی نیروها'!C30 -> BASE | C37: ='ورودی نیروها'!D30 -> 1 | D37: ='ورودی نیروها'!E30 -> ACIS25 | E37: 1 - ACIS25 | F37: =ABS('ورودی نیروها'!H30) -> 162580.02 | G37: =ABS('ورودی نیروها'!I30) -> 2315298.585 | H37: =ABS('ورودی نیروها'!J30) -> 388469.488 | I37: =VLOOKUP(C37,'ورودی نیروها'!M$4:P$1000000,2,FALSE) -> 60 | J37: =VLOOKUP(C37,'ورودی نیروها'!M$4:P$1000000,3,FALSE) -> 45 | K37: =VLOOKUP(C37,'ورودی نیروها'!M$4:P$1000000,4,FALSE) -> 4 | L37: 105 | M37: 90 | N37: =IF(VLOOKUP(C37,'ورودی نیروها'!M$4:Q$1048576,5,FALSE)=0,IF(K37=1,2*L37+2*M37,IF(K37=2,L37+2*M37,IF(K37=3,2*L37+M37,L37+M37))),VLOOKUP(C37,'ورودی نیروها'!M$4:Q$1048576,5,FALSE)) -> 195 | O37: 225709.2857 | P37: 352953.9474 | Q37: 263335 | R37: 285525 | S37: 1.333333333 | T37: 20 | U37: 12.5700537 | V37: 0.4186324689 | W37: 0.3816524151 | X37: 969259.1628 | Y37: 148260.3183 | Z37: 17550 | AA37: 14.1211104 | AB37: 1.123393005 | AC37: 216773.36 | AD37: 882417.7697 | AE37: OK | AF37: OK | AG37: 0.1008186854
B38: ='ورودی نیروها'!C31 -> BASE | C38: ='ورودی نیروها'!D31 -> 1 | D38: ='ورودی نیروها'!E31 -> ACIS26 | E38: 1 - ACIS26 | F38: =ABS('ورودی نیروها'!H31) -> 122153.86 | G38: =ABS('ورودی نیروها'!I31) -> 2270078.588 | H38: =ABS('ورودی نیروها'!J31) -> 445894.949 | I38: =VLOOKUP(C38,'ورودی نیروها'!M$4:P$1000000,2,FALSE) -> 60 | J38: =VLOOKUP(C38,'ورودی نیروها'!M$4:P$1000000,3,FALSE) -> 45 | K38: =VLOOKUP(C38,'ورودی نیروها'!M$4:P$1000000,4,FALSE) -> 4 | L38: 105 | M38: 90 | N38: =IF(VLOOKUP(C38,'ورودی نیروها'!M$4:Q$1048576,5,FALSE)=0,IF(K38=1,2*L38+2*M38,IF(K38=2,L38+2*M38,IF(K38=3,2*L38+M38,L38+M38))),VLOOKUP(C38,'ورودی نیروها'!M$4:Q$1048576,5,FALSE)) -> 195 | O38: 225709.2857 | P38: 352953.9474 | Q38: 263335 | R38: 285525 | S38: 1.333333333 | T38: 20 | U38: 12.5700537 | V38: 0.4186324689 | W38: 0.3816524151 | X38: 950328.6038 | Y38: 170176.8842 | Z38: 17550 | AA38: 11.81698101 | AB38: 0.9400899388 | AC38: - | AD38: - | AE38: - | AF38: - | AG38: -
B39: ='ورودی نیروها'!C32 -> BASE | C39: ='ورودی نیروها'!D32 -> 1 | D39: ='ورودی نیروها'!E32 -> ACIS27 | E39: 1 - ACIS27 | F39: =ABS('ورودی نیروها'!H32) -> 202233.66 | G39: =ABS('ورودی نیروها'!I32) -> 2353168.426 | H39: =ABS('ورودی نیروها'!J32) -> 1006350.338 | I39: =VLOOKUP(C39,'ورودی نیروها'!M$4:P$1000000,2,FALSE) -> 60 | J39: =VLOOKUP(C39,'ورودی نیروها'!M$4:P$1000000,3,FALSE) -> 45 | K39: =VLOOKUP(C39,'ورودی نیروها'!M$4:P$1000000,4,FALSE) -> 4 | L39: 105 | M39: 90 | N39: =IF(VLOOKUP(C39,'ورودی نیروها'!M$4:Q$1048576,5,FALSE)=0,IF(K39=1,2*L39+2*M39,IF(K39=2,L39+2*M39,IF(K39=3,2*L39+M39,L39+M39))),VLOOKUP(C39,'ورودی نیروها'!M$4:Q$1048576,5,FALSE)) -> 195 | O39: 225709.2857 | P39: 352953.9474 | Q39: 263335 | R39: 285525 | S39: 1.333333333 | T39: 20 | U39: 12.5700537 | V39: 0.4186324689 | W39: 0.3816524151 | X39: 985112.7078 | Y39: 384076.037 | Z39: 17550 | AA39: 17.34631291 | AB39: 1.379971265 | AC39: 269644.88 | AD39: 882417.7697 | AE39: OK | AF39: OK | AG39: 0.3104568485
B40: ='ورودی نیروها'!C33 -> BASE | C40: ='ورودی نیروها'!D33 -> 1 | D40: ='ورودی نیروها'!E33 -> ACIS28 | E40: 1 - ACIS28 | F40: =ABS('ورودی نیروها'!H33) -> 122153.86 | G40: =ABS('ورودی نیروها'!I33) -> 2270078.588 | H40: =ABS('ورودی نیروها'!J33) -> 445894.949 | I40: =VLOOKUP(C40,'ورودی نیروها'!M$4:P$1000000,2,FALSE) -> 60 | J40: =VLOOKUP(C40,'ورودی نیروها'!M$4:P$1000000,3,FALSE) -> 45 | K40: =VLOOKUP(C40,'ورودی نیروها'!M$4:P$1000000,4,FALSE) -> 4 | L40: 105 | M40: 90 | N40: =IF(VLOOKUP(C40,'ورودی نیروها'!M$4:Q$1048576,5,FALSE)=0,IF(K40=1,2*L40+2*M40,IF(K40=2,L40+2*M40,IF(K40=3,2*L40+M40,L40+M40))),VLOOKUP(C40,'ورودی نیروها'!M$4:Q$1048576,5,FALSE)) -> 195 | O40: 225709.2857 | P40: 352953.9474 | Q40: 263335 | R40: 285525 | S40: 1.333333333 | T40: 20 | U40: 12.5700537 | V40: 0.4186324689 | W40: 0.3816524151 | X40: 950328.6038 | Y40: 170176.8842 | Z40: 17550 | AA40: 11.81698101 | AB40: 0.9400899388 | AC40: - | AD40: - | AE40: - | AF40: - | AG40: -
B41: ='ورودی نیروها'!C34 -> BASE | C41: ='ورودی نیروها'!D34 -> 1 | D41: ='ورودی نیروها'!E34 -> ACIS29 | E41: 1 - ACIS29 | F41: =ABS('ورودی نیروها'!H34) -> 107367.9 | G41: =ABS('ورودی نیروها'!I34) -> 2055888.222 | H41: =ABS('ورودی نیروها'!J34) -> 530840.283 | I41: =VLOOKUP(C41,'ورودی نیروها'!M$4:P$1000000,2,FALSE) -> 60 | J41: =VLOOKUP(C41,'ورودی نیروها'!M$4:P$1000000,3,FALSE) -> 45 | K41: =VLOOKUP(C41,'ورودی نیروها'!M$4:P$1000000,4,FALSE) -> 4 | L41: 105 | M41: 90 | N41: =IF(VLOOKUP(C41,'ورودی نیروها'!M$4:Q$1048576,5,FALSE)=0,IF(K41=1,2*L41+2*M41,IF(K41=2,L41+2*M41,IF(K41=3,2*L41+M41,L41+M41))),VLOOKUP(C41,'ورودی نیروها'!M$4:Q$1048576,5,FALSE)) -> 195 | O41: 225709.2857 | P41: 352953.9474 | Q41: 263335 | R41: 285525 | S41: 1.333333333 | T41: 20 | U41: 12.5700537 | V41: 0.4186324689 | W41: 0.3816524151 | X41: 860661.5621 | Y41: 202596.4761 | Z41: 17550 | AA41: 10.70031992 | AB41: 0.8512549091 | AC41: - | AD41: - | AE41: - | AF41: - | AG41: -
B42: ='ورودی نیروها'!C35 -> BASE | C42: ='ورودی نیروها'!D35 -> 1 | D42: ='ورودی نیروها'!E35 -> ACIS30 | E42: 1 - ACIS30 | F42: =ABS('ورودی نیروها'!H35) -> 66941.74 | G42: =ABS('ورودی نیروها'!I35) -> 2101108.219 | H42: =ABS('ورودی نیروها'!J35) -> 588265.744 | I42: =VLOOKUP(C42,'ورودی نیروها'!M$4:P$1000000,2,FALSE) -> 60 | J42: =VLOOKUP(C42,'ورودی نیروها'!M$4:P$1000000,3,FALSE) -> 45 | K42: =VLOOKUP(C42,'ورودی نیروها'!M$4:P$1000000,4,FALSE) -> 4 | L42: 105 | M42: 90 | N42: =IF(VLOOKUP(C42,'ورودی نیروها'!M$4:Q$1048576,5,FALSE)=0,IF(K42=1,2*L42+2*M42,IF(K42=2,L42+2*M42,IF(K42=3,2*L42+M42,L42+M42))),VLOOKUP(C42,'ورودی نیروها'!M$4:Q$1048576,5,FALSE)) -> 195 | O42: 225709.2857 | P42: 352953.9474 | Q42: 263335 | R42: 285525 | S42: 1.333333333 | T42: 20 | U42: 12.5700537 | V42: 0.4186324689 | W42: 0.3816524151 | X42: 879592.1211 | Y42: 224513.0419 | Z42: 17550 | AA42: 8.56393338 | AB42: 0.6812964833 | AC42: - | AD42: - | AE42: - | AF42: - | AG42: -
B43: ='ورودی نیروها'!C36 -> BASE | C43: ='ورودی نیروها'!D36 -> 1 | D43: ='ورودی نیروها'!E36 -> ACIS31 | E43: 1 - ACIS31 | F43: =ABS('ورودی نیروها'!H36) -> 147021.54 | G43: =ABS('ورودی نیروها'!I36) -> 2018018.381 | H43: =ABS('ورودی نیروها'!J36) -> 863979.543 | I43: =VLOOKUP(C43,'ورودی نیروها'!M$4:P$1000000,2,FALSE) -> 60 | J43: =VLOOKUP(C43,'ورودی نیروها'!M$4:P$1000000,3,FALSE) -> 45 | K43: =VLOOKUP(C43,'ورودی نیروها'!M$4:P$1000000,4,FALSE) -> 4 | L43: 105 | M43: 90 | N43: =IF(VLOOKUP(C43,'ورودی نیروها'!M$4:Q$1048576,5,FALSE)=0,IF(K43=1,2*L43+2*M43,IF(K43=2,L43+2*M43,IF(K43=3,2*L43+M43,L43+M43))),VLOOKUP(C43,'ورودی نیروها'!M$4:Q$1048576,5,FALSE)) -> 195 | O43: 225709.2857 | P43: 352953.9474 | Q43: 263335 | R43: 285525 | S43: 1.333333333 | T43: 20 | U43: 12.5700537 | V43: 0.4186324689 | W43: 0.3816524151 | X43: 844808.017 | Y43: 329739.8792 | Z43: 17550 | AA43: 13.3723678 | AB43: 1.06382742 | AC43: 196028.72 | AD43: 882417.7697 | AE43: OK | AF43: OK | AG43: 0.05215041649
B44: ='ورودی نیروها'!C37 -> BASE | C44: ='ورودی نیروها'!D37 -> 1 | D44: ='ورودی نیروها'!E37 -> ACIS32 | E44: 1 - ACIS32 | F44: =ABS('ورودی نیروها'!H37) -> 106595.38 | G44: =ABS('ورودی نیروها'!I37) -> 2063238.378 | H44: =ABS('ورودی نیروها'!J37) -> 806554.082 | I44: =VLOOKUP(C44,'ورودی نیروها'!M$4:P$1000000,2,FALSE) -> 60 | J44: =VLOOKUP(C44,'ورودی نیروها'!M$4:P$1000000,3,FALSE) -> 45 | K44: =VLOOKUP(C44,'ورودی نیروها'!M$4:P$1000000,4,FALSE) -> 4 | L44: 105 | M44: 90 | N44: =IF(VLOOKUP(C44,'ورودی نیروها'!M$4:Q$1048576,5,FALSE)=0,IF(K44=1,2*L44+2*M44,IF(K44=2,L44+2*M44,IF(K44=3,2*L44+M44,L44+M44))),VLOOKUP(C44,'ورودی نیروها'!M$4:Q$1048576,5,FALSE)) -> 195 | O44: 225709.2857 | P44: 352953.9474 | Q44: 263335 | R44: 285525 | S44: 1.333333333 | T44: 20 | U44: 12.5700537 | V44: 0.4186324689 | W44: 0.3816524151 | X44: 863738.576 | Y44: 307823.3133 | Z44: 17550 | AA44: 11.06952738 | AB44: 0.8806268969 | AC44: - | AD44: - | AE44: - | AF44: - | AG44: -
B45: ='ورودی نیروها'!C38 -> BASE | C45: ='ورودی نیروها'!D38 -> 1 | D45: ='ورودی نیروها'!E38 -> ACIS34 | E45: 1 - ACIS34 | F45: =ABS('ورودی نیروها'!H38) -> 164699.94 | G45: =ABS('ورودی نیروها'!I38) -> 2057900.827 | H45: =ABS('ورودی نیروها'!J38) -> 227643.092 | I45: =VLOOKUP(C45,'ورودی نیروها'!M$4:P$1000000,2,FALSE) -> 60 | J45: =VLOOKUP(C45,'ورودی نیروها'!M$4:P$1000000,3,FALSE) -> 45 | K45: =VLOOKUP(C45,'ورودی نیروها'!M$4:P$1000000,4,FALSE) -> 4 | L45: 105 | M45: 90 | N45: =IF(VLOOKUP(C45,'ورودی نیروها'!M$4:Q$1048576,5,FALSE)=0,IF(K45=1,2*L45+2*M45,IF(K45=2,L45+2*M45,IF(K45=3,2*L45+M45,L45+M45))),VLOOKUP(C45,'ورودی نیروها'!M$4:Q$1048576,5,FALSE)) -> 195 | O45: 225709.2857 | P45: 352953.9474 | Q45: 263335 | R45: 285525 | S45: 1.333333333 | T45: 20 | U45: 12.5700537 | V45: 0.4186324689 | W45: 0.3816524151 | X45: 861504.1039 | Y45: 86880.53585 | Z45: 17550 | AA45: 13.53141085 | AB45: 1.076479956 | AC45: 219599.92 | AD45: 882417.7697 | AE45: OK | AF45: OK | AG45: 0.06248821467
B46: ='ورودی نیروها'!C39 -> BASE | C46: ='ورودی نیروها'!D39 -> 1 | D46: ='ورودی نیروها'!E39 -> ACIS35 | E46: 1 - ACIS35 | F46: =ABS('ورودی نیروها'!H39) -> 204353.57 | G46: =ABS('ورودی نیروها'!I39) -> 2095770.668 | H46: =ABS('ورودی نیروها'!J39) -> 1167176.734 | I46: =VLOOKUP(C46,'ورودی نیروها'!M$4:P$1000000,2,FALSE) -> 60 | J46: =VLOOKUP(C46,'ورودی نیروها'!M$4:P$1000000,3,FALSE) -> 45 | K46: =VLOOKUP(C46,'ورودی نیروها'!M$4:P$1000000,4,FALSE) -> 4 | L46: 105 | M46: 90 | N46: =IF(VLOOKUP(C46,'ورودی نیروها'!M$4:Q$1048576,5,FALSE)=0,IF(K46=1,2*L46+2*M46,IF(K46=2,L46+2*M46,IF(K46=3,2*L46+M46,L46+M46))),VLOOKUP(C46,'ورودی نیروها'!M$4:Q$1048576,5,FALSE)) -> 195 | O46: 225709.2857 | P46: 352953.9474 | Q46: 263335 | R46: 285525 | S46: 1.333333333 | T46: 20 | U46: 12.5700537 | V46: 0.4186324689 | W46: 0.3816524151 | X46: 877357.6489 | Y46: 445455.8194 | Z46: 17550 | AA46: 17.2227854 | AB46: 1.370144139 | AC46: 272471.4267 | AD46: 882417.7697 | AE46: OK | AF46: OK | AG46: 0.3024275605
B47: ='ورودی نیروها'!C40 -> BASE | C47: ='ورودی نیروها'!D40 -> 1 | D47: ='ورودی نیروها'!E40 -> ACIS36 | E47: 1 - ACIS36 | F47: =ABS('ورودی نیروها'!H40) -> 163927.41 | G47: =ABS('ورودی نیروها'!I40) -> 2050550.671 | H47: =ABS('ورودی نیروها'!J40) -> 1109751.273 | I47: =VLOOKUP(C47,'ورودی نیروها'!M$4:P$1000000,2,FALSE) -> 60 | J47: =VLOOKUP(C47,'ورودی نیروها'!M$4:P$1000000,3,FALSE) -> 45 | K47: =VLOOKUP(C47,'ورودی نیروها'!M$4:P$1000000,4,FALSE) -> 4 | L47: 105 | M47: 90 | N47: =IF(VLOOKUP(C47,'ورودی نیروها'!M$4:Q$1048576,5,FALSE)=0,IF(K47=1,2*L47+2*M47,IF(K47=2,L47+2*M47,IF(K47=3,2*L47+M47,L47+M47))),VLOOKUP(C47,'ورودی نیروها'!M$4:Q$1048576,5,FALSE)) -> 195 | O47: 225709.2857 | P47: 352953.9474 | Q47: 263335 | R47: 285525 | S47: 1.333333333 | T47: 20 | U47: 12.5700537 | V47: 0.4186324689 | W47: 0.3816524151 | X47: 858427.0899 | Y47: 423539.2535 | Z47: 17550 | AA47: 14.75220214 | AB47: 1.173598975 | AC47: 218569.88 | AD47: 882417.7697 | AE47: OK | AF47: OK | AG47: 0.1418396485
B48: ='ورودی نیروها'!C41 -> BASE | C48: ='ورودی نیروها'!D41 -> 1 | D48: ='ورودی نیروها'!E41 -> ACIS37 | E48: 1 - ACIS37 | F48: =ABS('ورودی نیروها'!H41) -> 105247.99 | G48: =ABS('ورودی نیروها'!I41) -> 1798490.464 | H48: =ABS('ورودی نیروها'!J41) -> 691666.679 | I48: =VLOOKUP(C48,'ورودی نیروها'!M$4:P$1000000,2,FALSE) -> 60 | J48: =VLOOKUP(C48,'ورودی نیروها'!M$4:P$1000000,3,FALSE) -> 45 | K48: =VLOOKUP(C48,'ورودی نیروها'!M$4:P$1000000,4,FALSE) -> 4 | L48: 105 | M48: 90 | N48: =IF(VLOOKUP(C48,'ورودی نیروها'!M$4:Q$1048576,5,FALSE)=0,IF(K48=1,2*L48+2*M48,IF(K48=2,L48+2*M48,IF(K48=3,2*L48+M48,L48+M48))),VLOOKUP(C48,'ورودی نیروها'!M$4:Q$1048576,5,FALSE)) -> 195 | O48: 225709.2857 | P48: 352953.9474 | Q48: 263335 | R48: 285525 | S48: 1.333333333 | T48: 20 | U48: 12.5700537 | V48: 0.4186324689 | W48: 0.3816524151 | X48: 752906.5032 | Y48: 263976.2585 | Z48: 17550 | AA48: 10.33520723 | AB48: 0.8222086774 | AC48: - | AD48: - | AE48: - | AF48: - | AG48: -
B49: ='ورودی نیروها'!C42 -> BASE | C49: ='ورودی نیروها'!D42 -> 1 | D49: ='ورودی نیروها'!E42 -> ACIS38 | E49: 1 - ACIS38 | F49: =ABS('ورودی نیروها'!H42) -> 64821.83 | G49: =ABS('ورودی نیروها'!I42) -> 1843710.461 | H49: =ABS('ورودی نیروها'!J42) -> 749092.14 | I49: =VLOOKUP(C49,'ورودی نیروها'!M$4:P$1000000,2,FALSE) -> 60 | J49: =VLOOKUP(C49,'ورودی نیروها'!M$4:P$1000000,3,FALSE) -> 45 | K49: =VLOOKUP(C49,'ورودی نیروها'!M$4:P$1000000,4,FALSE) -> 4 | L49: 105 | M49: 90 | N49: =IF(VLOOKUP(C49,'ورودی نیروها'!M$4:Q$1048576,5,FALSE)=0,IF(K49=1,2*L49+2*M49,IF(K49=2,L49+2*M49,IF(K49=3,2*L49+M49,L49+M49))),VLOOKUP(C49,'ورودی نیروها'!M$4:Q$1048576,5,FALSE)) -> 195 | O49: 225709.2857 | P49: 352953.9474 | Q49: 263335 | R49: 285525 | S49: 1.333333333 | T49: 20 | U49: 12.5700537 | V49: 0.4186324689 | W49: 0.3816524151 | X49: 771837.0622 | Y49: 285892.8244 | Z49: 17550 | AA49: 8.198820688 | AB49: 0.6522502516 | AC49: - | AD49: - | AE49: - | AF49: - | AG49: -
B50: ='ورودی نیروها'!C43 -> BASE | C50: ='ورودی نیروها'!D43 -> 1 | D50: ='ورودی نیروها'!E43 -> ACIS39 | E50: 1 - ACIS39 | F50: =ABS('ورودی نیروها'!H43) -> 144901.62 | G50: =ABS('ورودی نیروها'!I43) -> 1760620.623 | H50: =ABS('ورودی نیروها'!J43) -> 703153.147 | I50: =VLOOKUP(C50,'ورودی نیروها'!M$4:P$1000000,2,FALSE) -> 60 | J50: =VLOOKUP(C50,'ورودی نیروها'!M$4:P$1000000,3,FALSE) -> 45 | K50: =VLOOKUP(C50,'ورودی نیروها'!M$4:P$1000000,4,FALSE) -> 4 | L50: 105 | M50: 90 | N50: =IF(VLOOKUP(C50,'ورودی نیروها'!M$4:Q$1048576,5,FALSE)=0,IF(K50=1,2*L50+2*M50,IF(K50=2,L50+2*M50,IF(K50=3,2*L50+M50,L50+M50))),VLOOKUP(C50,'ورودی نیروها'!M$4:Q$1048576,5,FALSE)) -> 195 | O50: 225709.2857 | P50: 352953.9474 | Q50: 263335 | R50: 285525 | S50: 1.333333333 | T50: 20 | U50: 12.5700537 | V50: 0.4186324689 | W50: 0.3816524151 | X50: 737052.9581 | Y50: 268360.0968 | Z50: 17550 | AA50: 12.54108192 | AB50: 0.9976951749 | AC50: - | AD50: - | AE50: - | AF50: - | AG50: -
B51: ='ورودی نیروها'!C44 -> BASE | C51: ='ورودی نیروها'!D44 -> 1 | D51: ='ورودی نیروها'!E44 -> ACIS40 | E51: 1 - ACIS40 | F51: =ABS('ورودی نیروها'!H44) -> 104475.46 | G51: =ABS('ورودی نیروها'!I44) -> 1805840.62 | H51: =ABS('ورودی نیروها'!J44) -> 645727.686 | I51: =VLOOKUP(C51,'ورودی نیروها'!M$4:P$1000000,2,FALSE) -> 60 | J51: =VLOOKUP(C51,'ورودی نیروها'!M$4:P$1000000,3,FALSE) -> 45 | K51: =VLOOKUP(C51,'ورودی نیروها'!M$4:P$1000000,4,FALSE) -> 4 | L51: 105 | M51: 90 | N51: =IF(VLOOKUP(C51,'ورودی نیروها'!M$4:Q$1048576,5,FALSE)=0,IF(K51=1,2*L51+2*M51,IF(K51=2,L51+2*M51,IF(K51=3,2*L51+M51,L51+M51))),VLOOKUP(C51,'ورودی نیروها'!M$4:Q$1048576,5,FALSE)) -> 195 | O51: 225709.2857 | P51: 352953.9474 | Q51: 263335 | R51: 285525 | S51: 1.333333333 | T51: 20 | U51: 12.5700537 | V51: 0.4186324689 | W51: 0.3816524151 | X51: 755983.5171 | Y51: 246443.5309 | Z51: 17550 | AA51: 10.23824151 | AB51: 0.8144946516 | AC51: - | AD51: - | AE51: - | AF51: - | AG51: -
B52: ='ورودی نیروها'!C45 -> BASE | C52: ='ورودی نیروها'!D45 -> 1 | D52: ='ورودی نیروها'!E45 -> ACIS41 | E52: 1 - ACIS41 | F52: =ABS('ورودی نیروها'!H45) -> 160460.11 | G52: =ABS('ورودی نیروها'!I45) -> 2572696.343 | H52: =ABS('ورودی نیروها'!J45) -> 549295.884 | I52: =VLOOKUP(C52,'ورودی نیروها'!M$4:P$1000000,2,FALSE) -> 60 | J52: =VLOOKUP(C52,'ورودی نیروها'!M$4:P$1000000,3,FALSE) -> 45 | K52: =VLOOKUP(C52,'ورودی نیروها'!M$4:P$1000000,4,FALSE) -> 4 | L52: 105 | M52: 90 | N52: =IF(VLOOKUP(C52,'ورودی نیروها'!M$4:Q$1048576,5,FALSE)=0,IF(K52=1,2*L52+2*M52,IF(K52=2,L52+2*M52,IF(K52=3,2*L52+M52,L52+M52))),VLOOKUP(C52,'ورودی نیروها'!M$4:Q$1048576,5,FALSE)) -> 195 | O52: 225709.2857 | P52: 352953.9474 | Q52: 263335 | R52: 285525 | S52: 1.333333333 | T52: 20 | U52: 12.5700537 | V52: 0.4186324689 | W52: 0.3816524151 | X52: 1077014.222 | Y52: 209640.1008 | Z52: 17550 | AA52: 14.71081052 | AB52: 1.1703061 | AC52: 213946.8133 | AD52: 882417.7697 | AE52: OK | AF52: OK | AG52: 0.1391491932
B53: ='ورودی نیروها'!C46 -> BASE | C53: ='ورودی نیروها'!D46 -> 1 | D53: ='ورودی نیروها'!E46 -> ACIS42 | E53: 1 - ACIS42 | F53: =ABS('ورودی نیروها'!H46) -> 120033.95 | G53: =ABS('ورودی نیروها'!I46) -> 2527476.346 | H53: =ABS('ورودی نیروها'!J46) -> 606721.345 | I53: =VLOOKUP(C53,'ورودی نیروها'!M$4:P$1000000,2,FALSE) -> 60 | J53: =VLOOKUP(C53,'ورودی نیروها'!M$4:P$1000000,3,FALSE) -> 45 | K53: =VLOOKUP(C53,'ورودی نیروها'!M$4:P$1000000,4,FALSE) -> 4 | L53: 105 | M53: 90 | N53: =IF(VLOOKUP(C53,'ورودی نیروها'!M$4:Q$1048576,5,FALSE)=0,IF(K53=1,2*L53+2*M53,IF(K53=2,L53+2*M53,IF(K53=3,2*L53+M53,L53+M53))),VLOOKUP(C53,'ورودی نیروها'!M$4:Q$1048576,5,FALSE)) -> 195 | O53: 225709.2857 | P53: 352953.9474 | Q53: 263335 | R53: 285525 | S53: 1.333333333 | T53: 20 | U53: 12.5700537 | V53: 0.4186324689 | W53: 0.3816524151 | X53: 1058083.663 | Y53: 231556.6666 | Z53: 17550 | AA53: 12.40668113 | AB53: 0.9870030335 | AC53: - | AD53: - | AE53: - | AF53: - | AG53: -
B54: ='ورودی نیروها'!C47 -> BASE | C54: ='ورودی نیروها'!D47 -> 1 | D54: ='ورودی نیروها'!E47 -> ACIS43 | E54: 1 - ACIS43 | F54: =ABS('ورودی نیروها'!H47) -> 200113.74 | G54: =ABS('ورودی نیروها'!I47) -> 2610566.185 | H54: =ABS('ورودی نیروها'!J47) -> 845523.943 | I54: =VLOOKUP(C54,'ورودی نیروها'!M$4:P$1000000,2,FALSE) -> 60 | J54: =VLOOKUP(C54,'ورودی نیروها'!M$4:P$1000000,3,FALSE) -> 45 | K54: =VLOOKUP(C54,'ورودی نیروها'!M$4:P$1000000,4,FALSE) -> 4 | L54: 105 | M54: 90 | N54: =IF(VLOOKUP(C54,'ورودی نیروها'!M$4:Q$1048576,5,FALSE)=0,IF(K54=1,2*L54+2*M54,IF(K54=2,L54+2*M54,IF(K54=3,2*L54+M54,L54+M54))),VLOOKUP(C54,'ورودی نیروها'!M$4:Q$1048576,5,FALSE)) -> 195 | O54: 225709.2857 | P54: 352953.9474 | Q54: 263335 | R54: 285525 | S54: 1.333333333 | T54: 20 | U54: 12.5700537 | V54: 0.4186324689 | W54: 0.3816524151 | X54: 1092867.767 | Y54: 322696.2549 | Z54: 17550 | AA54: 17.46983985 | AB54: 1.389798347 | AC54: 266818.32 | AD54: 882417.7697 | AE54: OK | AF54: OK | AG54: 0.3184860996
B55: ='ورودی نیروها'!C48 -> BASE | C55: ='ورودی نیروها'!D48 -> 1 | D55: ='ورودی نیروها'!E48 -> ACIS44 | E55: 1 - ACIS44 | F55: =ABS('ورودی نیروها'!H48) -> 159687.58 | G55: =ABS('ورودی نیروها'!I48) -> 2565346.187 | H55: =ABS('ورودی نیروها'!J48) -> 788098.482 | I55: =VLOOKUP(C55,'ورودی نیروها'!M$4:P$1000000,2,FALSE) -> 60 | J55: =VLOOKUP(C55,'ورودی نیروها'!M$4:P$1000000,3,FALSE) -> 45 | K55: =VLOOKUP(C55,'ورودی نیروها'!M$4:P$1000000,4,FALSE) -> 4 | L55: 105 | M55: 90 | N55: =IF(VLOOKUP(C55,'ورودی نیروها'!M$4:Q$1048576,5,FALSE)=0,IF(K55=1,2*L55+2*M55,IF(K55=2,L55+2*M55,IF(K55=3,2*L55+M55,L55+M55))),VLOOKUP(C55,'ورودی نیروها'!M$4:Q$1048576,5,FALSE)) -> 195 | O55: 225709.2857 | P55: 352953.9474 | Q55: 263335 | R55: 285525 | S55: 1.333333333 | T55: 20 | U55: 12.5700537 | V55: 0.4186324689 | W55: 0.3816524151 | X55: 1073937.208 | Y55: 300779.689 | Z55: 17550 | AA55: 14.99925658 | AB55: 1.193253183 | AC55: 212916.7733 | AD55: 882417.7697 | AE55: OK | AF55: OK | AG55: 0.1578981875
B56: ='ورودی نیروها'!C49 -> BASE | C56: ='ورودی نیروها'!D49 -> 1 | D56: ='ورودی نیروها'!E49 -> ACIS45 | E56: 1 - ACIS45 | F56: =ABS('ورودی نیروها'!H49) -> 109487.82 | G56: =ABS('ورودی نیروها'!I49) -> 2313285.981 | H56: =ABS('ورودی نیروها'!J49) -> 370013.888 | I56: =VLOOKUP(C56,'ورودی نیروها'!M$4:P$1000000,2,FALSE) -> 60 | J56: =VLOOKUP(C56,'ورودی نیروها'!M$4:P$1000000,3,FALSE) -> 45 | K56: =VLOOKUP(C56,'ورودی نیروها'!M$4:P$1000000,4,FALSE) -> 4 | L56: 105 | M56: 90 | N56: =IF(VLOOKUP(C56,'ورودی نیروها'!M$4:Q$1048576,5,FALSE)=0,IF(K56=1,2*L56+2*M56,IF(K56=2,L56+2*M56,IF(K56=3,2*L56+M56,L56+M56))),VLOOKUP(C56,'ورودی نیروها'!M$4:Q$1048576,5,FALSE)) -> 195 | O56: 225709.2857 | P56: 352953.9474 | Q56: 263335 | R56: 285525 | S56: 1.333333333 | T56: 20 | U56: 12.5700537 | V56: 0.4186324689 | W56: 0.3816524151 | X56: 968416.6214 | Y56: 141216.694 | Z56: 17550 | AA56: 11.06543318 | AB56: 0.8803011864 | AC56: - | AD56: - | AE56: - | AF56: - | AG56: -
B57: ='ورودی نیروها'!C50 -> BASE | C57: ='ورودی نیروها'!D50 -> 1 | D57: ='ورودی نیروها'!E50 -> ACIS46 | E57: 1 - ACIS46 | F57: =ABS('ورودی نیروها'!H50) -> 69061.66 | G57: =ABS('ورودی نیروها'!I50) -> 2358505.978 | H57: =ABS('ورودی نیروها'!J50) -> 427439.349 | I57: =VLOOKUP(C57,'ورودی نیروها'!M$4:P$1000000,2,FALSE) -> 60 | J57: =VLOOKUP(C57,'ورودی نیروها'!M$4:P$1000000,3,FALSE) -> 45 | K57: =VLOOKUP(C57,'ورودی نیروها'!M$4:P$1000000,4,FALSE) -> 4 | L57: 105 | M57: 90 | N57: =IF(VLOOKUP(C57,'ورودی نیروها'!M$4:Q$1048576,5,FALSE)=0,IF(K57=1,2*L57+2*M57,IF(K57=2,L57+2*M57,IF(K57=3,2*L57+M57,L57+M57))),VLOOKUP(C57,'ورودی نیروها'!M$4:Q$1048576,5,FALSE)) -> 195 | O57: 225709.2857 | P57: 352953.9474 | Q57: 263335 | R57: 285525 | S57: 1.333333333 | T57: 20 | U57: 12.5700537 | V57: 0.4186324689 | W57: 0.3816524151 | X57: 987347.1804 | Y57: 163133.2599 | Z57: 17550 | AA57: 8.929046646 | AB57: 0.7103427606 | AC57: - | AD57: - | AE57: - | AF57: - | AG57: -
B58: ='ورودی نیروها'!C51 -> BASE | C58: ='ورودی نیروها'!D51 -> 1 | D58: ='ورودی نیروها'!E51 -> ACIS47 | E58: 1 - ACIS47 | F58: =ABS('ورودی نیروها'!H51) -> 149141.45 | G58: =ABS('ورودی نیروها'!I51) -> 2275416.139 | H58: =ABS('ورودی نیروها'!J51) -> 1024805.939 | I58: =VLOOKUP(C58,'ورودی نیروها'!M$4:P$1000000,2,FALSE) -> 60 | J58: =VLOOKUP(C58,'ورودی نیروها'!M$4:P$1000000,3,FALSE) -> 45 | K58: =VLOOKUP(C58,'ورودی نیروها'!M$4:P$1000000,4,FALSE) -> 4 | L58: 105 | M58: 90 | N58: =IF(VLOOKUP(C58,'ورودی نیروها'!M$4:Q$1048576,5,FALSE)=0,IF(K58=1,2*L58+2*M58,IF(K58=2,L58+2*M58,IF(K58=3,2*L58+M58,L58+M58))),VLOOKUP(C58,'ورودی نیروها'!M$4:Q$1048576,5,FALSE)) -> 195 | O58: 225709.2857 | P58: 352953.9474 | Q58: 263335 | R58: 285525 | S58: 1.333333333 | T58: 20 | U58: 12.5700537 | V58: 0.4186324689 | W58: 0.3816524151 | X58: 952563.076 | Y58: 391119.6617 | Z58: 17550 | AA58: 14.2036531 | AB58: 1.12995962 | AC58: 198855.2667 | AD58: 882417.7697 | AE58: OK | AF58: OK | AG58: 0.1061839613
B59: ='ورودی نیروها'!C52 -> BASE | C59: ='ورودی نیروها'!D52 -> 1 | D59: ='ورودی نیروها'!E52 -> ACIS48 | E59: 1 - ACIS48 | F59: =ABS('ورودی نیروها'!H52) -> 108715.29 | G59: =ABS('ورودی نیروها'!I52) -> 2320636.137 | H59: =ABS('ورودی نیروها'!J52) -> 967380.478 | I59: =VLOOKUP(C59,'ورودی نیروها'!M$4:P$1000000,2,FALSE) -> 60 | J59: =VLOOKUP(C59,'ورودی نیروها'!M$4:P$1000000,3,FALSE) -> 45 | K59: =VLOOKUP(C59,'ورودی نیروها'!M$4:P$1000000,4,FALSE) -> 4 | L59: 105 | M59: 90 | N59: =IF(VLOOKUP(C59,'ورودی نیروها'!M$4:Q$1048576,5,FALSE)=0,IF(K59=1,2*L59+2*M59,IF(K59=2,L59+2*M59,IF(K59=3,2*L59+M59,L59+M59))),VLOOKUP(C59,'ورودی نیروها'!M$4:Q$1048576,5,FALSE)) -> 195 | O59: 225709.2857 | P59: 352953.9474 | Q59: 263335 | R59: 285525 | S59: 1.333333333 | T59: 20 | U59: 12.5700537 | V59: 0.4186324689 | W59: 0.3816524151 | X59: 971493.6354 | Y59: 369203.0958 | Z59: 17550 | AA59: 11.90081269 | AB59: 0.946759097 | AC59: - | AD59: - | AE59: - | AF59: - | AG59: -
B60: ='ورودی نیروها'!C53 -> BASE | C60: ='ورودی نیروها'!D53 -> 1 | D60: ='ورودی نیروها'!E53 -> ACIS49 | E60: 1 - ACIS49 | F60: =ABS('ورودی نیروها'!H53) -> 48970.11 | G60: =ABS('ورودی نیروها'!I53) -> 711810.953 | H60: =ABS('ورودی نیروها'!J53) -> 2151854.521 | I60: =VLOOKUP(C60,'ورودی نیروها'!M$4:P$1000000,2,FALSE) -> 60 | J60: =VLOOKUP(C60,'ورودی نیروها'!M$4:P$1000000,3,FALSE) -> 45 | K60: =VLOOKUP(C60,'ورودی نیروها'!M$4:P$1000000,4,FALSE) -> 4 | L60: 105 | M60: 90 | N60: =IF(VLOOKUP(C60,'ورودی نیروها'!M$4:Q$1048576,5,FALSE)=0,IF(K60=1,2*L60+2*M60,IF(K60=2,L60+2*M60,IF(K60=3,2*L60+M60,L60+M60))),VLOOKUP(C60,'ورودی نیروها'!M$4:Q$1048576,5,FALSE)) -> 195 | O60: 225709.2857 | P60: 352953.9474 | Q60: 263335 | R60: 285525 | S60: 1.333333333 | T60: 20 | U60: 12.5700537 | V60: 0.4186324689 | W60: 0.3816524151 | X60: 297987.1766 | Y60: 821260.475 | Z60: 17550 | AA60: 7.229236182 | AB60: 0.5751157755 | AC60: - | AD60: - | AE60: - | AF60: - | AG60: -
B61: ='ورودی نیروها'!C54 -> BASE | C61: ='ورودی نیروها'!D54 -> 1 | D61: ='ورودی نیروها'!E54 -> ACIS50 | E61: 1 - ACIS50 | F61: =ABS('ورودی نیروها'!H54) -> 8543.95 | G61: =ABS('ورودی نیروها'!I54) -> 666590.956 | H61: =ABS('ورودی نیروها'!J54) -> 2209279.982 | I61: =VLOOKUP(C61,'ورودی نیروها'!M$4:P$1000000,2,FALSE) -> 60 | J61: =VLOOKUP(C61,'ورودی نیروها'!M$4:P$1000000,3,FALSE) -> 45 | K61: =VLOOKUP(C61,'ورودی نیروها'!M$4:P$1000000,4,FALSE) -> 4 | L61: 105 | M61: 90 | N61: =IF(VLOOKUP(C61,'ورودی نیروها'!M$4:Q$1048576,5,FALSE)=0,IF(K61=1,2*L61+2*M61,IF(K61=2,L61+2*M61,IF(K61=3,2*L61+M61,L61+M61))),VLOOKUP(C61,'ورودی نیروها'!M$4:Q$1048576,5,FALSE)) -> 195 | O61: 225709.2857 | P61: 352953.9474 | Q61: 263335 | R61: 285525 | S61: 1.333333333 | T61: 20 | U61: 12.5700537 | V61: 0.4186324689 | W61: 0.3816524151 | X61: 279056.6176 | Y61: 843177.0409 | Z61: 17550 | AA61: 4.925106797 | AB61: 0.3918127094 | AC61: - | AD61: - | AE61: - | AF61: - | AG61: -
B62: ='ورودی نیروها'!C55 -> BASE | C62: ='ورودی نیروها'!D55 -> 1 | D62: ='ورودی نیروها'!E55 -> ACIS51 | E62: 1 - ACIS51 | F62: =ABS('ورودی نیروها'!H55) -> 32406.48 | G62: =ABS('ورودی نیروها'!I55) -> 599545.09 | H62: =ABS('ورودی نیروها'!J55) -> 2194565.759 | I62: =VLOOKUP(C62,'ورودی نیروها'!M$4:P$1000000,2,FALSE) -> 60 | J62: =VLOOKUP(C62,'ورودی نیروها'!M$4:P$1000000,3,FALSE) -> 45 | K62: =VLOOKUP(C62,'ورودی نیروها'!M$4:P$1000000,4,FALSE) -> 4 | L62: 105 | M62: 90 | N62: =IF(VLOOKUP(C62,'ورودی نیروها'!M$4:Q$1048576,5,FALSE)=0,IF(K62=1,2*L62+2*M62,IF(K62=2,L62+2*M62,IF(K62=3,2*L62+M62,L62+M62))),VLOOKUP(C62,'ورودی نیروها'!M$4:Q$1048576,5,FALSE)) -> 195 | O62: 225709.2857 | P62: 352953.9474 | Q62: 263335 | R62: 285525 | S62: 1.333333333 | T62: 20 | U62: 12.5700537 | V62: 0.4186324689 | W62: 0.3816524151 | X62: 250989.0412 | Y62: 837561.3221 | Z62: 17550 | AA62: 6.13911696 | AB62: 0.488392262 | AC62: - | AD62: - | AE62: - | AF62: - | AG62: -
B63: ='ورودی نیروها'!C56 -> BASE | C63: ='ورودی نیروها'!D56 -> 1 | D63: ='ورودی نیروها'!E56 -> ACIS52 | E63: 1 - ACIS52 | F63: =ABS('ورودی نیروها'!H56) -> 8019.68 | G63: =ABS('ورودی نیروها'!I56) -> 644765.087 | H63: =ABS('ورودی نیروها'!J56) -> 2251991.22 | I63: =VLOOKUP(C63,'ورودی نیروها'!M$4:P$1000000,2,FALSE) -> 60 | J63: =VLOOKUP(C63,'ورودی نیروها'!M$4:P$1000000,3,FALSE) -> 45 | K63: =VLOOKUP(C63,'ورودی نیروها'!M$4:P$1000000,4,FALSE) -> 4 | L63: 105 | M63: 90 | N63: =IF(VLOOKUP(C63,'ورودی نیروها'!M$4:Q$1048576,5,FALSE)=0,IF(K63=1,2*L63+2*M63,IF(K63=2,L63+2*M63,IF(K63=3,2*L63+M63,L63+M63))),VLOOKUP(C63,'ورودی نیروها'!M$4:Q$1048576,5,FALSE)) -> 195 | O63: 225709.2857 | P63: 352953.9474 | Q63: 263335 | R63: 285525 | S63: 1.333333333 | T63: 20 | U63: 12.5700537 | V63: 0.4186324689 | W63: 0.3816524151 | X63: 269919.6002 | Y63: 859477.888 | Z63: 17550 | AA63: 4.916654068 | AB63: 0.3911402597 | AC63: - | AD63: - | AE63: - | AF63: - | AG63: -
B64: ='ورودی نیروها'!C57 -> BASE | C64: ='ورودی نیروها'!D57 -> 1 | D64: ='ورودی نیروها'!E57 -> ACIS54 | E64: 1 - ACIS54 | F64: =ABS('ورودی نیروها'!H57) -> 181148.89 | G64: =ABS('ورودی نیروها'!I57) -> 838043.757 | H64: =ABS('ورودی نیروها'!J57) -> 2497544.9 | I64: =VLOOKUP(C64,'ورودی نیروها'!M$4:P$1000000,2,FALSE) -> 60 | J64: =VLOOKUP(C64,'ورودی نیروها'!M$4:P$1000000,3,FALSE) -> 45 | K64: =VLOOKUP(C64,'ورودی نیروها'!M$4:P$1000000,4,FALSE) -> 4 | L64: 105 | M64: 90 | N64: =IF(VLOOKUP(C64,'ورودی نیروها'!M$4:Q$1048576,5,FALSE)=0,IF(K64=1,2*L64+2*M64,IF(K64=2,L64+2*M64,IF(K64=3,2*L64+M64,L64+M64))),VLOOKUP(C64,'ورودی نیروها'!M$4:Q$1048576,5,FALSE)) -> 195 | O64: 225709.2857 | P64: 352953.9474 | Q64: 263335 | R64: 285525 | S64: 1.333333333 | T64: 20 | U64: 12.5700537 | V64: 0.4186324689 | W64: 0.3816524151 | X64: 350832.327 | Y64: 953194.043 | Z64: 17550 | AA64: 15.49593025 | AB64: 1.232765636 | AC64: 241531.8533 | AD64: 882417.7697 | AE64: OK | AF64: OK | AG64: 0.1901819756
B65: ='ورودی نیروها'!C58 -> BASE | C65: ='ورودی نیروها'!D58 -> 1 | D65: ='ورودی نیروها'!E58 -> ACIS55 | E65: 1 - ACIS55 | F65: =ABS('ورودی نیروها'!H58) -> 164585.25 | G65: =ABS('ورودی نیروها'!I58) -> 473312.285 | H65: =ABS('ورودی نیروها'!J58) -> 2454833.662 | I65: =VLOOKUP(C65,'ورودی نیروها'!M$4:P$1000000,2,FALSE) -> 60 | J65: =VLOOKUP(C65,'ورودی نیروها'!M$4:P$1000000,3,FALSE) -> 45 | K65: =VLOOKUP(C65,'ورودی نیروها'!M$4:P$1000000,4,FALSE) -> 4 | L65: 105 | M65: 90 | N65: =IF(VLOOKUP(C65,'ورودی نیروها'!M$4:Q$1048576,5,FALSE)=0,IF(K65=1,2*L65+2*M65,IF(K65=2,L65+2*M65,IF(K65=3,2*L65+M65,L65+M65))),VLOOKUP(C65,'ورودی نیروها'!M$4:Q$1048576,5,FALSE)) -> 195 | O65: 225709.2857 | P65: 352953.9474 | Q65: 263335 | R65: 285525 | S65: 1.333333333 | T65: 20 | U65: 12.5700537 | V65: 0.4186324689 | W65: 0.3816524151 | X65: 198143.8904 | Y65: 936893.1959 | Z65: 17550 | AA65: 13.81374879 | AB65: 1.098941112 | AC65: 219447 | AD65: 882417.7697 | AE65: OK | AF65: OK | AG65: 0.08084018115
B66: ='ورودی نیروها'!C59 -> BASE | C66: ='ورودی نیروها'!D59 -> 1 | D66: ='ورودی نیروها'!E59 -> ACIS56 | E66: 1 - ACIS56 | F66: =ABS('ورودی نیروها'!H59) -> 124159.1 | G66: =ABS('ورودی نیروها'!I59) -> 518532.283 | H66: =ABS('ورودی نیروها'!J59) -> 2397408.201 | I66: =VLOOKUP(C66,'ورودی نیروها'!M$4:P$1000000,2,FALSE) -> 60 | J66: =VLOOKUP(C66,'ورودی نیروها'!M$4:P$1000000,3,FALSE) -> 45 | K66: =VLOOKUP(C66,'ورودی نیروها'!M$4:P$1000000,4,FALSE) -> 4 | L66: 105 | M66: 90 | N66: =IF(VLOOKUP(C66,'ورودی نیروها'!M$4:Q$1048576,5,FALSE)=0,IF(K66=1,2*L66+2*M66,IF(K66=2,L66+2*M66,IF(K66=3,2*L66+M66,L66+M66))),VLOOKUP(C66,'ورودی نیروها'!M$4:Q$1048576,5,FALSE)) -> 195 | O66: 225709.2857 | P66: 352953.9474 | Q66: 263335 | R66: 285525 | S66: 1.333333333 | T66: 20 | U66: 12.5700537 | V66: 0.4186324689 | W66: 0.3816524151 | X66: 217074.4498 | Y66: 914976.63 | Z66: 17550 | AA66: 11.51090895 | AB66: 0.9157406344 | AC66: - | AD66: - | AE66: - | AF66: - | AG66: -
B67: ='ورودی نیروها'!C60 -> BASE | C67: ='ورودی نیروها'!D60 -> 1 | D67: ='ورودی نیروها'!E60 -> ACIS57 | E67: 1 - ACIS57 | F67: =ABS('ورودی نیروها'!H60) -> 47151.18 | G67: =ABS('ورودی نیروها'!I60) -> 933195.859 | H67: =ABS('ورودی نیروها'!J60) -> 2290179.801 | I67: =VLOOKUP(C67,'ورودی نیروها'!M$4:P$1000000,2,FALSE) -> 60 | J67: =VLOOKUP(C67,'ورودی نیروها'!M$4:P$1000000,3,FALSE) -> 45 | K67: =VLOOKUP(C67,'ورودی نیروها'!M$4:P$1000000,4,FALSE) -> 4 | L67: 105 | M67: 90 | N67: =IF(VLOOKUP(C67,'ورودی نیروها'!M$4:Q$1048576,5,FALSE)=0,IF(K67=1,2*L67+2*M67,IF(K67=2,L67+2*M67,IF(K67=3,2*L67+M67,L67+M67))),VLOOKUP(C67,'ورودی نیروها'!M$4:Q$1048576,5,FALSE)) -> 195 | O67: 225709.2857 | P67: 352953.9474 | Q67: 263335 | R67: 285525 | S67: 1.333333333 | T67: 20 | U67: 12.5700537 | V67: 0.4186324689 | W67: 0.3816524151 | X67: 390666.0864 | Y67: 874052.6522 | Z67: 17550 | AA67: 7.736680661 | AB67: 0.6154850922 | AC67: - | AD67: - | AE67: - | AF67: - | AG67: -
B68: ='ورودی نیروها'!C61 -> BASE | C68: ='ورودی نیروها'!D61 -> 1 | D68: ='ورودی نیروها'!E61 -> ACIS58 | E68: 1 - ACIS58 | F68: =ABS('ورودی نیروها'!H61) -> 6725.02 | G68: =ABS('ورودی نیروها'!I61) -> 887975.862 | H68: =ABS('ورودی نیروها'!J61) -> 2347605.262 | I68: =VLOOKUP(C68,'ورودی نیروها'!M$4:P$1000000,2,FALSE) -> 60 | J68: =VLOOKUP(C68,'ورودی نیروها'!M$4:P$1000000,3,FALSE) -> 45 | K68: =VLOOKUP(C68,'ورودی نیروها'!M$4:P$1000000,4,FALSE) -> 4 | L68: 105 | M68: 90 | N68: =IF(VLOOKUP(C68,'ورودی نیروها'!M$4:Q$1048576,5,FALSE)=0,IF(K68=1,2*L68+2*M68,IF(K68=2,L68+2*M68,IF(K68=3,2*L68+M68,L68+M68))),VLOOKUP(C68,'ورودی نیروها'!M$4:Q$1048576,5,FALSE)) -> 195 | O68: 225709.2857 | P68: 352953.9474 | Q68: 263335 | R68: 285525 | S68: 1.333333333 | T68: 20 | U68: 12.5700537 | V68: 0.4186324689 | W68: 0.3816524151 | X68: 371735.5274 | Y68: 895969.218 | Z68: 17550 | AA68: 5.432551276 | AB68: 0.4321820261 | AC68: - | AD68: - | AE68: - | AF68: - | AG68: -
B69: ='ورودی نیروها'!C62 -> BASE | C69: ='ورودی نیروها'!D62 -> 1 | D69: ='ورودی نیروها'!E62 -> ACIS59 | E69: 1 - ACIS59 | F69: =ABS('ورودی نیروها'!H62) -> 30587.55 | G69: =ABS('ورودی نیروها'!I62) -> 378160.184 | H69: =ABS('ورودی نیروها'!J62) -> 2332891.04 | I69: =VLOOKUP(C69,'ورودی نیروها'!M$4:P$1000000,2,FALSE) -> 60 | J69: =VLOOKUP(C69,'ورودی نیروها'!M$4:P$1000000,3,FALSE) -> 45 | K69: =VLOOKUP(C69,'ورودی نیروها'!M$4:P$1000000,4,FALSE) -> 4 | L69: 105 | M69: 90 | N69: =IF(VLOOKUP(C69,'ورودی نیروها'!M$4:Q$1048576,5,FALSE)=0,IF(K69=1,2*L69+2*M69,IF(K69=2,L69+2*M69,IF(K69=3,2*L69+M69,L69+M69))),VLOOKUP(C69,'ورودی نیروها'!M$4:Q$1048576,5,FALSE)) -> 195 | O69: 225709.2857 | P69: 352953.9474 | Q69: 263335 | R69: 285525 | S69: 1.333333333 | T69: 20 | U69: 12.5700537 | V69: 0.4186324689 | W69: 0.3816524151 | X69: 158310.1315 | Y69: 890353.4997 | Z69: 17550 | AA69: 5.825337719 | AB69: 0.4634298197 | AC69: - | AD69: - | AE69: - | AF69: - | AG69: -
B70: ='ورودی نیروها'!C63 -> BASE | C70: ='ورودی نیروها'!D63 -> 1 | D70: ='ورودی نیروها'!E63 -> ACIS60 | E70: 1 - ACIS60 | F70: =ABS('ورودی نیروها'!H63) -> 9838.61 | G70: =ABS('ورودی نیروها'!I63) -> 423380.181 | H70: =ABS('ورودی نیروها'!J63) -> 2390316.501 | I70: =VLOOKUP(C70,'ورودی نیروها'!M$4:P$1000000,2,FALSE) -> 60 | J70: =VLOOKUP(C70,'ورودی نیروها'!M$4:P$1000000,3,FALSE) -> 45 | K70: =VLOOKUP(C70,'ورودی نیروها'!M$4:P$1000000,4,FALSE) -> 4 | L70: 105 | M70: 90 | N70: =IF(VLOOKUP(C70,'ورودی نیروها'!M$4:Q$1048576,5,FALSE)=0,IF(K70=1,2*L70+2*M70,IF(K70=2,L70+2*M70,IF(K70=3,2*L70+M70,L70+M70))),VLOOKUP(C70,'ورودی نیروها'!M$4:Q$1048576,5,FALSE)) -> 195 | O70: 225709.2857 | P70: 352953.9474 | Q70: 263335 | R70: 285525 | S70: 1.333333333 | T70: 20 | U70: 12.5700537 | V70: 0.4186324689 | W70: 0.3816524151 | X70: 177240.6904 | Y70: 912270.0656 | Z70: 17550 | AA70: 4.810160297 | AB70: 0.3826682377 | AC70: - | AD70: - | AE70: - | AF70: - | AG70: -
B71: ='ورودی نیروها'!C64 -> BASE | C71: ='ورودی نیروها'!D64 -> 1 | D71: ='ورودی نیروها'!E64 -> ACIS61 | E71: 1 - ACIS61 | F71: =ABS('ورودی نیروها'!H64) -> 182967.82 | G71: =ABS('ورودی نیروها'!I64) -> 616658.851 | H71: =ABS('ورودی نیروها'!J64) -> 2635870.181 | I71: =VLOOKUP(C71,'ورودی نیروها'!M$4:P$1000000,2,FALSE) -> 60 | J71: =VLOOKUP(C71,'ورودی نیروها'!M$4:P$1000000,3,FALSE) -> 45 | K71: =VLOOKUP(C71,'ورودی نیروها'!M$4:P$1000000,4,FALSE) -> 4 | L71: 105 | M71: 90 | N71: =IF(VLOOKUP(C71,'ورودی نیروها'!M$4:Q$1048576,5,FALSE)=0,IF(K71=1,2*L71+2*M71,IF(K71=2,L71+2*M71,IF(K71=3,2*L71+M71,L71+M71))),VLOOKUP(C71,'ورودی نیروها'!M$4:Q$1048576,5,FALSE)) -> 195 | O71: 225709.2857 | P71: 352953.9474 | Q71: 263335 | R71: 285525 | S71: 1.333333333 | T71: 20 | U71: 12.5700537 | V71: 0.4186324689 | W71: 0.3816524151 | X71: 258153.4172 | Y71: 1005986.221 | Z71: 17550 | AA71: 15.38943648 | AB71: 1.224293614 | AC71: 243957.0933 | AD71: 882417.7697 | AE71: OK | AF71: OK | AG71: 0.1832598805
B72: ='ورودی نیروها'!C65 -> BASE | C72: ='ورودی نیروها'!D65 -> 1 | D72: ='ورودی نیروها'!E65 -> ACIS62 | E72: 1 - ACIS62 | F72: =ABS('ورودی نیروها'!H65) -> 142541.66 | G72: =ABS('ورودی نیروها'!I65) -> 571438.854 | H72: =ABS('ورودی نیروها'!J65) -> 2578444.72 | I72: =VLOOKUP(C72,'ورودی نیروها'!M$4:P$1000000,2,FALSE) -> 60 | J72: =VLOOKUP(C72,'ورودی نیروها'!M$4:P$1000000,3,FALSE) -> 45 | K72: =VLOOKUP(C72,'ورودی نیروها'!M$4:P$1000000,4,FALSE) -> 4 | L72: 105 | M72: 90 | N72: =IF(VLOOKUP(C72,'ورودی نیروها'!M$4:Q$1048576,5,FALSE)=0,IF(K72=1,2*L72+2*M72,IF(K72=2,L72+2*M72,IF(K72=3,2*L72+M72,L72+M72))),VLOOKUP(C72,'ورودی نیروها'!M$4:Q$1048576,5,FALSE)) -> 195 | O72: 225709.2857 | P72: 352953.9474 | Q72: 263335 | R72: 285525 | S72: 1.333333333 | T72: 20 | U72: 12.5700537 | V72: 0.4186324689 | W72: 0.3816524151 | X72: 239222.8583 | Y72: 984069.6547 | Z72: 17550 | AA72: 12.91885321 | AB72: 1.027748451 | AC72: 190055.5467 | AD72: 882417.7697 | AE72: OK | AF72: OK | AG72: 0.02267196845
B73: ='ورودی نیروها'!C66 -> BASE | C73: ='ورودی نیروها'!D66 -> 1 | D73: ='ورودی نیروها'!E66 -> ACIS64 | E73: 1 - ACIS64 | F73: =ABS('ورودی نیروها'!H66) -> 166404.19 | G73: =ABS('ورودی نیروها'!I66) -> 694697.191 | H73: =ABS('ورودی نیروها'!J66) -> 2593158.942 | I73: =VLOOKUP(C73,'ورودی نیروها'!M$4:P$1000000,2,FALSE) -> 60 | J73: =VLOOKUP(C73,'ورودی نیروها'!M$4:P$1000000,3,FALSE) -> 45 | K73: =VLOOKUP(C73,'ورودی نیروها'!M$4:P$1000000,4,FALSE) -> 4 | L73: 105 | M73: 90 | N73: =IF(VLOOKUP(C73,'ورودی نیروها'!M$4:Q$1048576,5,FALSE)=0,IF(K73=1,2*L73+2*M73,IF(K73=2,L73+2*M73,IF(K73=3,2*L73+M73,L73+M73))),VLOOKUP(C73,'ورودی نیروها'!M$4:Q$1048576,5,FALSE)) -> 195 | O73: 225709.2857 | P73: 352953.9474 | Q73: 263335 | R73: 285525 | S73: 1.333333333 | T73: 20 | U73: 12.5700537 | V73: 0.4186324689 | W73: 0.3816524151 | X73: 290822.8002 | Y73: 989685.3731 | Z73: 17550 | AA73: 14.52847931 | AB73: 1.155800895 | AC73: 221872.2533 | AD73: 882417.7697 | AE73: OK | AF73: OK | AG73: 0.1272976649
B74: ='ورودی نیروها'!C67 -> BASE | C74: ='ورودی نیروها'!D67 -> 1 | D74: ='ورودی نیروها'!E67 -> ACIS65 | E74: 1 - ACIS65 | F74: =ABS('ورودی نیروها'!H67) -> 50789.05 | G74: =ABS('ورودی نیروها'!I67) -> 490426.047 | H74: =ABS('ورودی نیروها'!J67) -> 2013529.24 | I74: =VLOOKUP(C74,'ورودی نیروها'!M$4:P$1000000,2,FALSE) -> 60 | J74: =VLOOKUP(C74,'ورودی نیروها'!M$4:P$1000000,3,FALSE) -> 45 | K74: =VLOOKUP(C74,'ورودی نیروها'!M$4:P$1000000,4,FALSE) -> 4 | L74: 105 | M74: 90 | N74: =IF(VLOOKUP(C74,'ورودی نیروها'!M$4:Q$1048576,5,FALSE)=0,IF(K74=1,2*L74+2*M74,IF(K74=2,L74+2*M74,IF(K74=3,2*L74+M74,L74+M74))),VLOOKUP(C74,'ورودی نیروها'!M$4:Q$1048576,5,FALSE)) -> 195 | O74: 225709.2857 | P74: 352953.9474 | Q74: 263335 | R74: 285525 | S74: 1.333333333 | T74: 20 | U74: 12.5700537 | V74: 0.4186324689 | W74: 0.3816524151 | X74: 205308.2669 | Y74: 768468.2974 | Z74: 17550 | AA74: 6.721792271 | AB74: 0.534746504 | AC74: - | AD74: - | AE74: - | AF74: - | AG74: -
B75: ='ورودی نیروها'!C68 -> BASE | C75: ='ورودی نیروها'!D68 -> 1 | D75: ='ورودی نیروها'!E68 -> ACIS67 | E75: 1 - ACIS67 | F75: =ABS('ورودی نیروها'!H68) -> 10362.89 | G75: =ABS('ورودی نیروها'!I68) -> 445206.05 | H75: =ABS('ورودی نیروها'!J68) -> 2070954.701 | I75: =VLOOKUP(C75,'ورودی نیروها'!M$4:P$1000000,2,FALSE) -> 60 | J75: =VLOOKUP(C75,'ورودی نیروها'!M$4:P$1000000,3,FALSE) -> 45 | K75: =VLOOKUP(C75,'ورودی نیروها'!M$4:P$1000000,4,FALSE) -> 4 | L75: 105 | M75: 90 | N75: =IF(VLOOKUP(C75,'ورودی نیروها'!M$4:Q$1048576,5,FALSE)=0,IF(K75=1,2*L75+2*M75,IF(K75=2,L75+2*M75,IF(K75=3,2*L75+M75,L75+M75))),VLOOKUP(C75,'ورودی نیروها'!M$4:Q$1048576,5,FALSE)) -> 195 | O75: 225709.2857 | P75: 352953.9474 | Q75: 263335 | R75: 285525 | S75: 1.333333333 | T75: 20 | U75: 12.5700537 | V75: 0.4186324689 | W75: 0.3816524151 | X75: 186377.7079 | Y75: 790384.8633 | Z75: 17550 | AA75: 4.417662886 | AB75: 0.3514434379 | AC75: - | AD75: - | AE75: - | AF75: - | AG75: -
B76: ='ورودی نیروها'!C69 -> BASE | C76: ='ورودی نیروها'!D69 -> 1 | D76: ='ورودی نیروها'!E69 -> ACIS68 | E76: =CONCATENATE(C76," - ",D76) -> 1 - ACIS68 | F76: =ABS('ورودی نیروها'!H69) -> 6200.75 | G76: =ABS('ورودی نیروها'!I69) -> 866149.993 | H76: =ABS('ورودی نیروها'!J69) -> 2113665.94 | I76: =VLOOKUP(C76,'ورودی نیروها'!M$4:P$1000000,2,FALSE) -> 60 | J76: =VLOOKUP(C76,'ورودی نیروها'!M$4:P$1000000,3,FALSE) -> 45 | K76: =VLOOKUP(C76,'ورودی نیروها'!M$4:P$1000000,4,FALSE) -> 4 | L76: =IF(OR(K76=1,K76=2),I76+$C$6,I76+($C$6/2)) -> 105 | M76: =IF(OR(K76=1,K76=3),J76+$C$6,J76+($C$6/2)) -> 90 | N76: =IF(VLOOKUP(C76,'ورودی نیروها'!M$4:Q$1048576,5,FALSE)=0,IF(K76=1,2*L76+2*M76,IF(K76=2,L76+2*M76,IF(K76=3,2*L76+M76,L76+M76))),VLOOKUP(C76,'ورودی نیروها'!M$4:Q$1048576,5,FALSE)) -> 195 | O76: =IF(K76=1,(L76*$C$6*(L76+3*M76)+$C$6^3)/3,IF(K76=2,(2*M76^2*$C$6*(M76+2*L76)+$C$6^3*(2*M76+L76))/(6*M76),IF(K76=3,M76*$C$6*(M76+6*L76)/6,($C$6*(L76+4*M76)+$C$6^3*(L76+M76))/(6*L76)))) -> 225709.2857 | P76: =IF(K76=1,(L76*$C$6*(L76+3*M76)+$C$6^3)/3,IF(K76=2,(2*M76^2*$C$6*(M76+2*L76)+$C$6^3*(2*M76+L76))/(6*(L76+M76)),IF(K76=3,(M76*$C$6*(M76+6*L76)+$C$6^3)/6,(L76^2*$C$6*(L76+4*M76)+$C$6^3*(L76+M76))/(6*(L76+2*M76))))) -> 352953.9474 | Q76: =IF(K76=1,(M76*$C$6*(M76+3*L76)+$C$6^3)/3,IF(K76=2,L76*$C$6*(L76+6*M76)/6,IF(K76=3,(2*L76^2*$C$6*(L76+2*M76)+$C$6^3*(2*L76+M76))/(6*L76),($C$6*(M76+4*L76)+$C$6^3*(M76+L76))/(6*M76)))) -> 263335 | R76: =IF(K76=1,(M76*$C$6*(M76+3*L76)+$C$6^3)/3,IF(K76=2,(L76*$C$6*(L76+6*M76)+$C$6^3)/6,IF(K76=3,(2*L76^2*$C$6*(L76+2*M76)+$C$6^3*(2*L76+M76))/(6*(M76+L76)),(M76^2*$C$6*(M76+4*L76)+$C$6^3*(M76+L76))/(6*(M76+2*L76))))) -> 285525 | S76: =MAX(I76:J76)/MIN(I76:J76) -> 1.333333333 | T76: =IF(K76=1,40,IF(K76=4,20,30)) -> 20 | U76: =MIN(0.53*$C$5*(1+(2/S76))*SQRT($C$4),0.53*$C$5*(1+((T76*$C$6)/(2*N76)))*SQRT($C$4),1.06*$C$5*SQRT($C$4)) -> 12.5700537 | V76: =1-(1/((1+(2/3)*SQRT(L76/M76)))) -> 0.4186324689 | W76: =1-(1/((1+(2/3)*SQRT(M76/L76)))) -> 0.3816524151 | X76: =V76*G76 -> 362598.51 | Y76: =W76*H76 -> 806685.7108 | Z76: =N76*$C$6 -> 17550 | AA76: =(F76/Z76)+(X76/MIN(O76:P76))+(Y76/MIN(Q76:R76)) -> 5.02314784 | AB76: =AA76/U76 -> 0.3996122817 | AC76: =IF(AB76<=1,"-",F76/$C$5) -> - | AD76: =IF(AB76<=1,"-",3*U76*N76*$C$6/$C$5) -> - | AE76: =IF(AB76<=1,"-",IF(AC76<=AD76,"OK","NOT OK")) -> - | AF76: =IF(AB76<=1,"-",IF(OR($C$6>=15,$C$6>=16*($C$8/10)),"OK","NOT OK")) -> - | AG76: =IF(OR(AE76="NOT OK",AF76="NOT OK"),"CANT USE",IF(AB76<=1,"-",(AA76-U76)*N76/($C$5*$C$7))) -> -
B77: ='ورودی نیروها'!C70 -> BASE | C77: ='ورودی نیروها'!D70 -> 1 | D77: ='ورودی نیروها'!E70 -> ACIS69 | E77: 1 - ACIS69 | F77: =ABS('ورودی نیروها'!H70) -> 179329.96 | G77: =ABS('ورودی نیروها'!I70) -> 1059428.663 | H77: =ABS('ورودی نیروها'!J70) -> 2359219.62 | I77: =VLOOKUP(C77,'ورودی نیروها'!M$4:P$1000000,2,FALSE) -> 60 | J77: =VLOOKUP(C77,'ورودی نیروها'!M$4:P$1000000,3,FALSE) -> 45 | K77: =VLOOKUP(C77,'ورودی نیروها'!M$4:P$1000000,4,FALSE) -> 4 | L77: 105 | M77: 90 | N77: =IF(VLOOKUP(C77,'ورودی نیروها'!M$4:Q$1048576,5,FALSE)=0,IF(K77=1,2*L77+2*M77,IF(K77=2,L77+2*M77,IF(K77=3,2*L77+M77,L77+M77))),VLOOKUP(C77,'ورودی نیروها'!M$4:Q$1048576,5,FALSE)) -> 195 | O77: 225709.2857 | P77: 352953.9474 | Q77: 263335 | R77: 285525 | S77: 1.333333333 | T77: 20 | U77: 12.5700537 | V77: 0.4186324689 | W77: 0.3816524151 | X77: 443511.2368 | Y77: 900401.8658 | Z77: 17550 | AA77: 15.60242402 | AB77: 1.241237658 | AC77: 239106.6133 | AD77: 882417.7697 | AE77: OK | AF77: OK | AG77: 0.1971040708
B78: ='ورودی نیروها'!C71 -> BASE | C78: ='ورودی نیروها'!D71 -> 1 | D78: ='ورودی نیروها'!E71 -> ACIS70 | E78: 1 - ACIS70 | F78: =ABS('ورودی نیروها'!H71) -> 138903.8 | G78: =ABS('ورودی نیروها'!I71) -> 1014208.666 | H78: =ABS('ورودی نیروها'!J71) -> 2301794.159 | I78: =VLOOKUP(C78,'ورودی نیروها'!M$4:P$1000000,2,FALSE) -> 60 | J78: =VLOOKUP(C78,'ورودی نیروها'!M$4:P$1000000,3,FALSE) -> 45 | K78: =VLOOKUP(C78,'ورودی نیروها'!M$4:P$1000000,4,FALSE) -> 4 | L78: 105 | M78: 90 | N78: =IF(VLOOKUP(C78,'ورودی نیروها'!M$4:Q$1048576,5,FALSE)=0,IF(K78=1,2*L78+2*M78,IF(K78=2,L78+2*M78,IF(K78=3,2*L78+M78,L78+M78))),VLOOKUP(C78,'ورودی نیروها'!M$4:Q$1048576,5,FALSE)) -> 195 | O78: 225709.2857 | P78: 352953.9474 | Q78: 263335 | R78: 285525 | S78: 1.333333333 | T78: 20 | U78: 12.5700537 | V78: 0.4186324689 | W78: 0.3816524151 | X78: 424580.6778 | Y78: 878485.2999 | Z78: 17550 | AA78: 13.13184076 | AB78: 1.044692495 | AC78: 185205.0667 | AD78: 882417.7697 | AE78: OK | AF78: OK | AG78: 0.03651615874
B79: ='ورودی نیروها'!C72 -> BASE | C79: ='ورودی نیروها'!D72 -> 1 | D79: ='ورودی نیروها'!E72 -> ACIS71 | E79: 1 - ACIS71 | F79: =ABS('ورودی نیروها'!H72) -> 162766.32 | G79: =ABS('ورودی نیروها'!I72) -> 251927.379 | H79: =ABS('ورودی نیروها'!J72) -> 2316508.381 | I79: =VLOOKUP(C79,'ورودی نیروها'!M$4:P$1000000,2,FALSE) -> 60 | J79: =VLOOKUP(C79,'ورودی نیروها'!M$4:P$1000000,3,FALSE) -> 45 | K79: =VLOOKUP(C79,'ورودی نیروها'!M$4:P$1000000,4,FALSE) -> 4 | L79: 105 | M79: 90 | N79: =IF(VLOOKUP(C79,'ورودی نیروها'!M$4:Q$1048576,5,FALSE)=0,IF(K79=1,2*L79+2*M79,IF(K79=2,L79+2*M79,IF(K79=3,2*L79+M79,L79+M79))),VLOOKUP(C79,'ورودی نیروها'!M$4:Q$1048576,5,FALSE)) -> 195 | O79: 225709.2857 | P79: 352953.9474 | Q79: 263335 | R79: 285525 | S79: 1.333333333 | T79: 20 | U79: 12.5700537 | V79: 0.4186324689 | W79: 0.3816524151 | X79: 105464.9806 | Y79: 884101.0183 | Z79: 17550 | AA79: 13.09901884 | AB79: 1.042081375 | AC79: 217021.76 | AD79: 882417.7697 | AE79: OK | AF79: OK | AG79: 0.03438273436
B80: ='ورودی نیروها'!C73 -> BASE | C80: ='ورودی نیروها'!D73 -> 1 | D80: ='ورودی نیروها'!E73 -> ACIS72 | E80: 1 - ACIS72 | F80: =ABS('ورودی نیروها'!H73) -> 122340.16 | G80: =ABS('ورودی نیروها'!I73) -> 297147.377 | H80: =ABS('ورودی نیروها'!J73) -> 2259082.92 | I80: =VLOOKUP(C80,'ورودی نیروها'!M$4:P$1000000,2,FALSE) -> 60 | J80: =VLOOKUP(C80,'ورودی نیروها'!M$4:P$1000000,3,FALSE) -> 45 | K80: =VLOOKUP(C80,'ورودی نیروها'!M$4:P$1000000,4,FALSE) -> 4 | L80: 105 | M80: 90 | N80: =IF(VLOOKUP(C80,'ورودی نیروها'!M$4:Q$1048576,5,FALSE)=0,IF(K80=1,2*L80+2*M80,IF(K80=2,L80+2*M80,IF(K80=3,2*L80+M80,L80+M80))),VLOOKUP(C80,'ورودی نیروها'!M$4:Q$1048576,5,FALSE)) -> 195 | O80: 225709.2857 | P80: 352953.9474 | Q80: 263335 | R80: 285525 | S80: 1.333333333 | T80: 20 | U80: 12.5700537 | V80: 0.4186324689 | W80: 0.3816524151 | X80: 124395.54 | Y80: 862184.4524 | Z80: 17550 | AA80: 10.79617843 | AB80: 0.8588808519 | AC80: - | AD80: - | AE80: - | AF80: - | AG80: -
B81: ='ورودی نیروها'!C74 -> BASE | C81: ='ورودی نیروها'!D74 -> 1 | D81: ='ورودی نیروها'!E74 -> ACIS73 | E81: 1 - ACIS73 | F81: =ABS('ورودی نیروها'!H74) -> 114556.93 | G81: =ABS('ورودی نیروها'!I74) -> 2285907.817 | H81: =ABS('ورودی نیروها'!J74) -> 474734.945 | I81: =VLOOKUP(C81,'ورودی نیروها'!M$4:P$1000000,2,FALSE) -> 60 | J81: =VLOOKUP(C81,'ورودی نیروها'!M$4:P$1000000,3,FALSE) -> 45 | K81: =VLOOKUP(C81,'ورودی نیروها'!M$4:P$1000000,4,FALSE) -> 4 | L81: 105 | M81: 90 | N81: =IF(VLOOKUP(C81,'ورودی نیروها'!M$4:Q$1048576,5,FALSE)=0,IF(K81=1,2*L81+2*M81,IF(K81=2,L81+2*M81,IF(K81=3,2*L81+M81,L81+M81))),VLOOKUP(C81,'ورودی نیروها'!M$4:Q$1048576,5,FALSE)) -> 195 | O81: 225709.2857 | P81: 352953.9474 | Q81: 263335 | R81: 285525 | S81: 1.333333333 | T81: 20 | U81: 12.5700537 | V81: 0.4186324689 | W81: 0.3816524151 | X81: 956955.233 | Y81: 181183.7383 | Z81: 17550 | AA81: 11.45526456 | AB81: 0.911313892 | AC81: - | AD81: - | AE81: - | AF81: - | AG81: -
B82: ='ورودی نیروها'!C75 -> BASE | C82: ='ورودی نیروها'!D75 -> 1 | D82: ='ورودی نیروها'!E75 -> ACIS74 | E82: 1 - ACIS74 | F82: =ABS('ورودی نیروها'!H75) -> 74130.77 | G82: =ABS('ورودی نیروها'!I75) -> 2240687.82 | H82: =ABS('ورودی نیروها'!J75) -> 532160.406 | I82: =VLOOKUP(C82,'ورودی نیروها'!M$4:P$1000000,2,FALSE) -> 60 | J82: =VLOOKUP(C82,'ورودی نیروها'!M$4:P$1000000,3,FALSE) -> 45 | K82: =VLOOKUP(C82,'ورودی نیروها'!M$4:P$1000000,4,FALSE) -> 4 | L82: 105 | M82: 90 | N82: =IF(VLOOKUP(C82,'ورودی نیروها'!M$4:Q$1048576,5,FALSE)=0,IF(K82=1,2*L82+2*M82,IF(K82=2,L82+2*M82,IF(K82=3,2*L82+M82,L82+M82))),VLOOKUP(C82,'ورودی نیروها'!M$4:Q$1048576,5,FALSE)) -> 195 | O82: 225709.2857 | P82: 352953.9474 | Q82: 263335 | R82: 285525 | S82: 1.333333333 | T82: 20 | U82: 12.5700537 | V82: 0.4186324689 | W82: 0.3816524151 | X82: 938024.674 | Y82: 203100.3042 | Z82: 17550 | AA82: 9.151135174 | AB82: 0.7280108258 | AC82: - | AD82: - | AE82: - | AF82: - | AG82: -
B83: ='ورودی نیروها'!C76 -> BASE | C83: ='ورودی نیروها'!D76 -> 1 | D83: ='ورودی نیروها'!E76 -> ACIS75 | E83: 1 - ACIS75 | F83: =ABS('ورودی نیروها'!H76) -> 154210.56 | G83: =ABS('ورودی نیروها'!I76) -> 2323777.658 | H83: =ABS('ورودی نیروها'!J76) -> 920084.881 | I83: =VLOOKUP(C83,'ورودی نیروها'!M$4:P$1000000,2,FALSE) -> 60 | J83: =VLOOKUP(C83,'ورودی نیروها'!M$4:P$1000000,3,FALSE) -> 45 | K83: =VLOOKUP(C83,'ورودی نیروها'!M$4:P$1000000,4,FALSE) -> 4 | L83: 105 | M83: 90 | N83: =IF(VLOOKUP(C83,'ورودی نیروها'!M$4:Q$1048576,5,FALSE)=0,IF(K83=1,2*L83+2*M83,IF(K83=2,L83+2*M83,IF(K83=3,2*L83+M83,L83+M83))),VLOOKUP(C83,'ورودی نیروها'!M$4:Q$1048576,5,FALSE)) -> 195 | O83: 225709.2857 | P83: 352953.9474 | Q83: 263335 | R83: 285525 | S83: 1.333333333 | T83: 20 | U83: 12.5700537 | V83: 0.4186324689 | W83: 0.3816524151 | X83: 972808.7781 | Y83: 351152.617 | Z83: 17550 | AA83: 14.43041679 | AB83: 1.147999614 | AC83: 205614.08 | AD83: 882417.7697 | AE83: OK | AF83: OK | AG83: 0.1209236009
B84: ='ورودی نیروها'!C77 -> BASE | C84: ='ورودی نیروها'!D77 -> 1 | D84: ='ورودی نیروها'!E77 -> ACIS76 | E84: 1 - ACIS76 | F84: =ABS('ورودی نیروها'!H77) -> 113784.4 | G84: =ABS('ورودی نیروها'!I77) -> 2278557.661 | H84: =ABS('ورودی نیروها'!J77) -> 862659.42 | I84: =VLOOKUP(C84,'ورودی نیروها'!M$4:P$1000000,2,FALSE) -> 60 | J84: =VLOOKUP(C84,'ورودی نیروها'!M$4:P$1000000,3,FALSE) -> 45 | K84: =VLOOKUP(C84,'ورودی نیروها'!M$4:P$1000000,4,FALSE) -> 4 | L84: 105 | M84: 90 | N84: =IF(VLOOKUP(C84,'ورودی نیروها'!M$4:Q$1048576,5,FALSE)=0,IF(K84=1,2*L84+2*M84,IF(K84=2,L84+2*M84,IF(K84=3,2*L84+M84,L84+M84))),VLOOKUP(C84,'ورودی نیروها'!M$4:Q$1048576,5,FALSE)) -> 195 | O84: 225709.2857 | P84: 352953.9474 | Q84: 263335 | R84: 285525 | S84: 1.333333333 | T84: 20 | U84: 12.5700537 | V84: 0.4186324689 | W84: 0.3816524151 | X84: 953878.2191 | Y84: 329236.0511 | Z84: 17550 | AA84: 11.95983353 | AB84: 0.9514544499 | AC84: - | AD84: - | AE84: - | AF84: - | AG84: -
B85: ='ورودی نیروها'!C78 -> BASE | C85: ='ورودی نیروها'!D78 -> 1 | D85: ='ورودی نیروها'!E78 -> ACIS78 | E85: 1 - ACIS78 | F85: =ABS('ورودی نیروها'!H78) -> 59344.81 | G85: =ABS('ورودی نیروها'!I78) -> 2085278.991 | H85: =ABS('ورودی نیروها'!J78) -> 617105.74 | I85: =VLOOKUP(C85,'ورودی نیروها'!M$4:P$1000000,2,FALSE) -> 60 | J85: =VLOOKUP(C85,'ورودی نیروها'!M$4:P$1000000,3,FALSE) -> 45 | K85: =VLOOKUP(C85,'ورودی نیروها'!M$4:P$1000000,4,FALSE) -> 4 | L85: 105 | M85: 90 | N85: =IF(VLOOKUP(C85,'ورودی نیروها'!M$4:Q$1048576,5,FALSE)=0,IF(K85=1,2*L85+2*M85,IF(K85=2,L85+2*M85,IF(K85=3,2*L85+M85,L85+M85))),VLOOKUP(C85,'ورودی نیروها'!M$4:Q$1048576,5,FALSE)) -> 195 | O85: 225709.2857 | P85: 352953.9474 | Q85: 263335 | R85: 285525 | S85: 1.333333333 | T85: 20 | U85: 12.5700537 | V85: 0.4186324689 | W85: 0.3816524151 | X85: 872965.4923 | Y85: 235519.8961 | Z85: 17550 | AA85: 8.143498659 | AB85: 0.6478491544 | AC85: - | AD85: - | AE85: - | AF85: - | AG85: -
B86: ='ورودی نیروها'!C79 -> BASE | C86: ='ورودی نیروها'!D79 -> 1 | D86: ='ورودی نیروها'!E79 -> ACIS79 | E86: 1 - ACIS79 | F86: =ABS('ورودی نیروها'!H79) -> 98998.44 | G86: =ABS('ورودی نیروها'!I79) -> 2047409.149 | H86: =ABS('ورودی نیروها'!J79) -> 777714.086 | I86: =VLOOKUP(C86,'ورودی نیروها'!M$4:P$1000000,2,FALSE) -> 60 | J86: =VLOOKUP(C86,'ورودی نیروها'!M$4:P$1000000,3,FALSE) -> 45 | K86: =VLOOKUP(C86,'ورودی نیروها'!M$4:P$1000000,4,FALSE) -> 4 | L86: 105 | M86: 90 | N86: =IF(VLOOKUP(C86,'ورودی نیروها'!M$4:Q$1048576,5,FALSE)=0,IF(K86=1,2*L86+2*M86,IF(K86=2,L86+2*M86,IF(K86=3,2*L86+M86,L86+M86))),VLOOKUP(C86,'ورودی نیروها'!M$4:Q$1048576,5,FALSE)) -> 195 | O86: 225709.2857 | P86: 352953.9474 | Q86: 263335 | R86: 285525 | S86: 1.333333333 | T86: 20 | U86: 12.5700537 | V86: 0.4186324689 | W86: 0.3816524151 | X86: 857111.9468 | Y86: 296816.4592 | Z86: 17550 | AA86: 10.56549626 | AB86: 0.8405291268 | AC86: - | AD86: - | AE86: - | AF86: - | AG86: -
B87: ='ورودی نیروها'!C80 -> BASE | C87: ='ورودی نیروها'!D80 -> 1 | D87: ='ورودی نیروها'!E80 -> ACIS80 | E87: 1 - ACIS80 | F87: =ABS('ورودی نیروها'!H80) -> 58572.28 | G87: =ABS('ورودی نیروها'!I80) -> 2092629.147 | H87: =ABS('ورودی نیروها'!J80) -> 720288.625 | I87: =VLOOKUP(C87,'ورودی نیروها'!M$4:P$1000000,2,FALSE) -> 60 | J87: =VLOOKUP(C87,'ورودی نیروها'!M$4:P$1000000,3,FALSE) -> 45 | K87: =VLOOKUP(C87,'ورودی نیروها'!M$4:P$1000000,4,FALSE) -> 4 | L87: 105 | M87: 90 | N87: =IF(VLOOKUP(C87,'ورودی نیروها'!M$4:Q$1048576,5,FALSE)=0,IF(K87=1,2*L87+2*M87,IF(K87=2,L87+2*M87,IF(K87=3,2*L87+M87,L87+M87))),VLOOKUP(C87,'ورودی نیروها'!M$4:Q$1048576,5,FALSE)) -> 195 | O87: 225709.2857 | P87: 352953.9474 | Q87: 263335 | R87: 285525 | S87: 1.333333333 | T87: 20 | U87: 12.5700537 | V87: 0.4186324689 | W87: 0.3816524151 | X87: 876042.5062 | Y87: 274899.8933 | Z87: 17550 | AA87: 8.262655845 | AB87: 0.6573286036 | AC87: - | AD87: - | AE87: - | AF87: - | AG87: -
B88: ='ورودی نیروها'!C81 -> BASE | C88: ='ورودی نیروها'!D81 -> 1 | D88: ='ورودی نیروها'!E81 -> ACIS81 | E88: 1 - ACIS81 | F88: =ABS('ورودی نیروها'!H81) -> 116676.84 | G88: =ABS('ورودی نیروها'!I81) -> 2028510.058 | H88: =ABS('ورودی نیروها'!J81) -> 313908.549 | I88: =VLOOKUP(C88,'ورودی نیروها'!M$4:P$1000000,2,FALSE) -> 60 | J88: =VLOOKUP(C88,'ورودی نیروها'!M$4:P$1000000,3,FALSE) -> 45 | K88: =VLOOKUP(C88,'ورودی نیروها'!M$4:P$1000000,4,FALSE) -> 4 | L88: 105 | M88: 90 | N88: =IF(VLOOKUP(C88,'ورودی نیروها'!M$4:Q$1048576,5,FALSE)=0,IF(K88=1,2*L88+2*M88,IF(K88=2,L88+2*M88,IF(K88=3,2*L88+M88,L88+M88))),VLOOKUP(C88,'ورودی نیروها'!M$4:Q$1048576,5,FALSE)) -> 195 | O88: 225709.2857 | P88: 352953.9474 | Q88: 263335 | R88: 285525 | S88: 1.333333333 | T88: 20 | U88: 12.5700537 | V88: 0.4186324689 | W88: 0.3816524151 | X88: 849200.1737 | Y88: 119803.9559 | Z88: 17550 | AA88: 10.86556444 | AB88: 0.8644007971 | AC88: - | AD88: - | AE88: - | AF88: - | AG88: -
B89: ='ورودی نیروها'!C82 -> BASE | C89: ='ورودی نیروها'!D82 -> 1 | D89: ='ورودی نیروها'!E82 -> ACIS82 | E89: 1 - ACIS82 | F89: =ABS('ورودی نیروها'!H82) -> 76250.68 | G89: =ABS('ورودی نیروها'!I82) -> 1983290.061 | H89: =ABS('ورودی نیروها'!J82) -> 371334.01 | I89: =VLOOKUP(C89,'ورودی نیروها'!M$4:P$1000000,2,FALSE) -> 60 | J89: =VLOOKUP(C89,'ورودی نیروها'!M$4:P$1000000,3,FALSE) -> 45 | K89: =VLOOKUP(C89,'ورودی نیروها'!M$4:P$1000000,4,FALSE) -> 4 | L89: 105 | M89: 90 | N89: =IF(VLOOKUP(C89,'ورودی نیروها'!M$4:Q$1048576,5,FALSE)=0,IF(K89=1,2*L89+2*M89,IF(K89=2,L89+2*M89,IF(K89=3,2*L89+M89,L89+M89))),VLOOKUP(C89,'ورودی نیروها'!M$4:Q$1048576,5,FALSE)) -> 195 | O89: 225709.2857 | P89: 352953.9474 | Q89: 263335 | R89: 285525 | S89: 1.333333333 | T89: 20 | U89: 12.5700537 | V89: 0.4186324689 | W89: 0.3816524151 | X89: 830269.6147 | Y89: 141720.5217 | Z89: 17550 | AA89: 8.561435052 | AB89: 0.681097731 | AC89: - | AD89: - | AE89: - | AF89: - | AG89: -
B90: ='ورودی نیروها'!C83 -> BASE | C90: ='ورودی نیروها'!D83 -> 1 | D90: ='ورودی نیروها'!E83 -> ACIS83 | E90: 1 - ACIS83 | F90: =ABS('ورودی نیروها'!H83) -> 156330.48 | G90: =ABS('ورودی نیروها'!I83) -> 2066379.9 | H90: =ABS('ورودی نیروها'!J83) -> 1080911.277 | I90: =VLOOKUP(C90,'ورودی نیروها'!M$4:P$1000000,2,FALSE) -> 60 | J90: =VLOOKUP(C90,'ورودی نیروها'!M$4:P$1000000,3,FALSE) -> 45 | K90: =VLOOKUP(C90,'ورودی نیروها'!M$4:P$1000000,4,FALSE) -> 4 | L90: 105 | M90: 90 | N90: =IF(VLOOKUP(C90,'ورودی نیروها'!M$4:Q$1048576,5,FALSE)=0,IF(K90=1,2*L90+2*M90,IF(K90=2,L90+2*M90,IF(K90=3,2*L90+M90,L90+M90))),VLOOKUP(C90,'ورودی نیروها'!M$4:Q$1048576,5,FALSE)) -> 195 | O90: 225709.2857 | P90: 352953.9474 | Q90: 263335 | R90: 285525 | S90: 1.333333333 | T90: 20 | U90: 12.5700537 | V90: 0.4186324689 | W90: 0.3816524151 | X90: 865053.7191 | Y90: 412532.3994 | Z90: 17550 | AA90: 14.30688985 | AB90: 1.138172532 | AC90: 208440.64 | AD90: 882417.7697 | AE90: OK | AF90: OK | AG90: 0.1128943499
B91: ='ورودی نیروها'!C84 -> BASE | C91: ='ورودی نیروها'!D84 -> 1 | D91: ='ورودی نیروها'!E84 -> ACIS84 | E91: 1 - ACIS84 | F91: =ABS('ورودی نیروها'!H84) -> 115904.32 | G91: =ABS('ورودی نیروها'!I84) -> 2021159.902 | H91: =ABS('ورودی نیروها'!J84) -> 1023485.816 | I91: =VLOOKUP(C91,'ورودی نیروها'!M$4:P$1000000,2,FALSE) -> 60 | J91: =VLOOKUP(C91,'ورودی نیروها'!M$4:P$1000000,3,FALSE) -> 45 | K91: =VLOOKUP(C91,'ورودی نیروها'!M$4:P$1000000,4,FALSE) -> 4 | L91: 105 | M91: 90 | N91: =IF(VLOOKUP(C91,'ورودی نیروها'!M$4:Q$1048576,5,FALSE)=0,IF(K91=1,2*L91+2*M91,IF(K91=2,L91+2*M91,IF(K91=3,2*L91+M91,L91+M91))),VLOOKUP(C91,'ورودی نیروها'!M$4:Q$1048576,5,FALSE)) -> 195 | O91: 225709.2857 | P91: 352953.9474 | Q91: 263335 | R91: 285525 | S91: 1.333333333 | T91: 20 | U91: 12.5700537 | V91: 0.4186324689 | W91: 0.3816524151 | X91: 846123.1597 | Y91: 390615.8335 | Z91: 17550 | AA91: 11.83630659 | AB91: 0.9416273686 | AC91: - | AD91: - | AE91: - | AF91: - | AG91: -
B92: ='ورودی نیروها'!C85 -> BASE | C92: ='ورودی نیروها'!D85 -> 1 | D92: ='ورودی نیروها'!E85 -> ACIS85 | E92: 1 - ACIS85 | F92: =ABS('ورودی نیروها'!H85) -> 57224.89 | G92: =ABS('ورودی نیروها'!I85) -> 1827881.232 | H92: =ABS('ورودی نیروها'!J85) -> 777932.136 | I92: =VLOOKUP(C92,'ورودی نیروها'!M$4:P$1000000,2,FALSE) -> 60 | J92: =VLOOKUP(C92,'ورودی نیروها'!M$4:P$1000000,3,FALSE) -> 45 | K92: =VLOOKUP(C92,'ورودی نیروها'!M$4:P$1000000,4,FALSE) -> 4 | L92: 105 | M92: 90 | N92: =IF(VLOOKUP(C92,'ورودی نیروها'!M$4:Q$1048576,5,FALSE)=0,IF(K92=1,2*L92+2*M92,IF(K92=2,L92+2*M92,IF(K92=3,2*L92+M92,L92+M92))),VLOOKUP(C92,'ورودی نیروها'!M$4:Q$1048576,5,FALSE)) -> 195 | O92: 225709.2857 | P92: 352953.9474 | Q92: 263335 | R92: 285525 | S92: 1.333333333 | T92: 20 | U92: 12.5700537 | V92: 0.4186324689 | W92: 0.3816524151 | X92: 765210.4329 | Y92: 296899.6785 | Z92: 17550 | AA92: 7.778385395 | AB92: 0.6188028772 | AC92: - | AD92: - | AE92: - | AF92: - | AG92: -
B93: ='ورودی نیروها'!C86 -> BASE | C93: ='ورودی نیروها'!D86 -> 1 | D93: ='ورودی نیروها'!E86 -> ACIS86 | E93: 1 - ACIS86 | F93: =ABS('ورودی نیروها'!H86) -> 16798.73 | G93: =ABS('ورودی نیروها'!I86) -> 1873101.229 | H93: =ABS('ورودی نیروها'!J86) -> 835357.597 | I93: =VLOOKUP(C93,'ورودی نیروها'!M$4:P$1000000,2,FALSE) -> 60 | J93: =VLOOKUP(C93,'ورودی نیروها'!M$4:P$1000000,3,FALSE) -> 45 | K93: =VLOOKUP(C93,'ورودی نیروها'!M$4:P$1000000,4,FALSE) -> 4 | L93: 105 | M93: 90 | N93: =IF(VLOOKUP(C93,'ورودی نیروها'!M$4:Q$1048576,5,FALSE)=0,IF(K93=1,2*L93+2*M93,IF(K93=2,L93+2*M93,IF(K93=3,2*L93+M93,L93+M93))),VLOOKUP(C93,'ورودی نیروها'!M$4:Q$1048576,5,FALSE)) -> 195 | O93: 225709.2857 | P93: 352953.9474 | Q93: 263335 | R93: 285525 | S93: 1.333333333 | T93: 20 | U93: 12.5700537 | V93: 0.4186324689 | W93: 0.3816524151 | X93: 784140.9919 | Y93: 318816.2444 | Z93: 17550 | AA93: 5.641998857 | AB93: 0.4488444514 | AC93: - | AD93: - | AE93: - | AF93: - | AG93: -
B94: ='ورودی نیروها'!C87 -> BASE | C94: ='ورودی نیروها'!D87 -> 1 | D94: ='ورودی نیروها'!E87 -> ACIS87 | E94: 1 - ACIS87 | F94: =ABS('ورودی نیروها'!H87) -> 96878.53 | G94: =ABS('ورودی نیروها'!I87) -> 1790011.391 | H94: =ABS('ورودی نیروها'!J87) -> 616887.69 | I94: =VLOOKUP(C94,'ورودی نیروها'!M$4:P$1000000,2,FALSE) -> 60 | J94: =VLOOKUP(C94,'ورودی نیروها'!M$4:P$1000000,3,FALSE) -> 45 | K94: =VLOOKUP(C94,'ورودی نیروها'!M$4:P$1000000,4,FALSE) -> 4 | L94: 105 | M94: 90 | N94: =IF(VLOOKUP(C94,'ورودی نیروها'!M$4:Q$1048576,5,FALSE)=0,IF(K94=1,2*L94+2*M94,IF(K94=2,L94+2*M94,IF(K94=3,2*L94+M94,L94+M94))),VLOOKUP(C94,'ورودی نیروها'!M$4:Q$1048576,5,FALSE)) -> 195 | O94: 225709.2857 | P94: 352953.9474 | Q94: 263335 | R94: 285525 | S94: 1.333333333 | T94: 20 | U94: 12.5700537 | V94: 0.4186324689 | W94: 0.3816524151 | X94: 749356.8879 | Y94: 235436.6768 | Z94: 17550 | AA94: 9.734210954 | AB94: 0.7743969268 | AC94: - | AD94: - | AE94: - | AF94: - | AG94: -
B95: ='ورودی نیروها'!C88 -> BASE | C95: ='ورودی نیروها'!D88 -> 1 | D95: ='ورودی نیروها'!E88 -> ACIS88 | E95: 1 - ACIS88 | F95: =ABS('ورودی نیروها'!H88) -> 56452.37 | G95: =ABS('ورودی نیروها'!I88) -> 1835231.388 | H95: =ABS('ورودی نیروها'!J88) -> 559462.229 | I95: =VLOOKUP(C95,'ورودی نیروها'!M$4:P$1000000,2,FALSE) -> 60 | J95: =VLOOKUP(C95,'ورودی نیروها'!M$4:P$1000000,3,FALSE) -> 45 | K95: =VLOOKUP(C95,'ورودی نیروها'!M$4:P$1000000,4,FALSE) -> 4 | L95: 105 | M95: 90 | N95: =IF(VLOOKUP(C95,'ورودی نیروها'!M$4:Q$1048576,5,FALSE)=0,IF(K95=1,2*L95+2*M95,IF(K95=2,L95+2*M95,IF(K95=3,2*L95+M95,L95+M95))),VLOOKUP(C95,'ورودی نیروها'!M$4:Q$1048576,5,FALSE)) -> 195 | O95: 225709.2857 | P95: 352953.9474 | Q95: 263335 | R95: 285525 | S95: 1.333333333 | T95: 20 | U95: 12.5700537 | V95: 0.4186324689 | W95: 0.3816524151 | X95: 768287.4469 | Y95: 213520.1109 | Z95: 17550 | AA95: 7.431370538 | AB95: 0.5911964035 | AC95: - | AD95: - | AE95: - | AF95: - | AG95: -
B96: ='ورودی نیروها'!C89 -> BASE | C96: ='ورودی نیروها'!D89 -> 1 | D96: ='ورودی نیروها'!E89 -> ACIS89 | E96: 1 - ACIS89 | F96: =ABS('ورودی نیروها'!H89) -> 112437.01 | G96: =ABS('ورودی نیروها'!I89) -> 2543305.575 | H96: =ABS('ورودی نیروها'!J89) -> 635561.341 | I96: =VLOOKUP(C96,'ورودی نیروها'!M$4:P$1000000,2,FALSE) -> 60 | J96: =VLOOKUP(C96,'ورودی نیروها'!M$4:P$1000000,3,FALSE) -> 45 | K96: =VLOOKUP(C96,'ورودی نیروها'!M$4:P$1000000,4,FALSE) -> 4 | L96: 105 | M96: 90 | N96: =IF(VLOOKUP(C96,'ورودی نیروها'!M$4:Q$1048576,5,FALSE)=0,IF(K96=1,2*L96+2*M96,IF(K96=2,L96+2*M96,IF(K96=3,2*L96+M96,L96+M96))),VLOOKUP(C96,'ورودی نیروها'!M$4:Q$1048576,5,FALSE)) -> 195 | O96: 225709.2857 | P96: 352953.9474 | Q96: 263335 | R96: 285525 | S96: 1.333333333 | T96: 20 | U96: 12.5700537 | V96: 0.4186324689 | W96: 0.3816524151 | X96: 1064710.292 | Y96: 242563.5208 | Z96: 17550 | AA96: 12.04496411 | AB96: 0.9582269413 | AC96: - | AD96: - | AE96: - | AF96: - | AG96: -
B97: ='ورودی نیروها'!C90 -> BASE | C97: ='ورودی نیروها'!D90 -> 1 | D97: ='ورودی نیروها'!E90 -> ACIS90 | E97: 1 - ACIS90 | F97: =ABS('ورودی نیروها'!H90) -> 72010.85 | G97: =ABS('ورودی نیروها'!I90) -> 2498085.578 | H97: =ABS('ورودی نیروها'!J90) -> 692986.802 | I97: =VLOOKUP(C97,'ورودی نیروها'!M$4:P$1000000,2,FALSE) -> 60 | J97: =VLOOKUP(C97,'ورودی نیروها'!M$4:P$1000000,3,FALSE) -> 45 | K97: =VLOOKUP(C97,'ورودی نیروها'!M$4:P$1000000,4,FALSE) -> 4 | L97: 105 | M97: 90 | N97: =IF(VLOOKUP(C97,'ورودی نیروها'!M$4:Q$1048576,5,FALSE)=0,IF(K97=1,2*L97+2*M97,IF(K97=2,L97+2*M97,IF(K97=3,2*L97+M97,L97+M97))),VLOOKUP(C97,'ورودی نیروها'!M$4:Q$1048576,5,FALSE)) -> 195 | O97: 225709.2857 | P97: 352953.9474 | Q97: 263335 | R97: 285525 | S97: 1.333333333 | T97: 20 | U97: 12.5700537 | V97: 0.4186324689 | W97: 0.3816524151 | X97: 1045779.733 | Y97: 264480.0866 | Z97: 17550 | AA97: 9.740834724 | AB97: 0.7749238752 | AC97: - | AD97: - | AE97: - | AF97: - | AG97: -
B98: ='ورودی نیروها'!C91 -> BASE | C98: ='ورودی نیروها'!D91 -> 1 | D98: ='ورودی نیروها'!E91 -> ACIS91 | E98: 1 - ACIS91 | F98: =ABS('ورودی نیروها'!H91) -> 152090.64 | G98: =ABS('ورودی نیروها'!I91) -> 2581175.416 | H98: =ABS('ورودی نیروها'!J91) -> 759258.486 | I98: =VLOOKUP(C98,'ورودی نیروها'!M$4:P$1000000,2,FALSE) -> 60 | J98: =VLOOKUP(C98,'ورودی نیروها'!M$4:P$1000000,3,FALSE) -> 45 | K98: =VLOOKUP(C98,'ورودی نیروها'!M$4:P$1000000,4,FALSE) -> 4 | L98: 105 | M98: 90 | N98: =IF(VLOOKUP(C98,'ورودی نیروها'!M$4:Q$1048576,5,FALSE)=0,IF(K98=1,2*L98+2*M98,IF(K98=2,L98+2*M98,IF(K98=3,2*L98+M98,L98+M98))),VLOOKUP(C98,'ورودی نیروها'!M$4:Q$1048576,5,FALSE)) -> 195 | O98: 225709.2857 | P98: 352953.9474 | Q98: 263335 | R98: 285525 | S98: 1.333333333 | T98: 20 | U98: 12.5700537 | V98: 0.4186324689 | W98: 0.3816524151 | X98: 1080563.837 | Y98: 289772.8349 | Z98: 17550 | AA98: 14.55394373 | AB98: 1.157826695 | AC98: 202787.52 | AD98: 882417.7697 | AE98: OK | AF98: OK | AG98: 0.1289528519
B99: ='ورودی نیروها'!C92 -> BASE | C99: ='ورودی نیروها'!D92 -> 1 | D99: ='ورودی نیروها'!E92 -> ACIS92 | E99: 1 - ACIS92 | F99: =ABS('ورودی نیروها'!H92) -> 111664.49 | G99: =ABS('ورودی نیروها'!I92) -> 2535955.419 | H99: =ABS('ورودی نیروها'!J92) -> 701833.025 | I99: =VLOOKUP(C99,'ورودی نیروها'!M$4:P$1000000,2,FALSE) -> 60 | J99: =VLOOKUP(C99,'ورودی نیروها'!M$4:P$1000000,3,FALSE) -> 45 | K99: =VLOOKUP(C99,'ورودی نیروها'!M$4:P$1000000,4,FALSE) -> 4 | L99: 105 | M99: 90 | N99: =IF(VLOOKUP(C99,'ورودی نیروها'!M$4:Q$1048576,5,FALSE)=0,IF(K99=1,2*L99+2*M99,IF(K99=2,L99+2*M99,IF(K99=3,2*L99+M99,L99+M99))),VLOOKUP(C99,'ورودی نیروها'!M$4:Q$1048576,5,FALSE)) -> 195 | O99: 225709.2857 | P99: 352953.9474 | Q99: 263335 | R99: 285525 | S99: 1.333333333 | T99: 20 | U99: 12.5700537 | V99: 0.4186324689 | W99: 0.3816524151 | X99: 1061633.278 | Y99: 267856.269 | Z99: 17550 | AA99: 12.08336104 | AB99: 0.9612815764 | AC99: - | AD99: - | AE99: - | AF99: - | AG99: -
B100: ='ورودی نیروها'!C93 -> BASE | C100: ='ورودی نیروها'!D93 -> 1 | D100: ='ورودی نیروها'!E93 -> ACIS93 | E100: 1 - ACIS93 | F100: =ABS('ورودی نیروها'!H93) -> 61464.72 | G100: =ABS('ورودی نیروها'!I93) -> 2342676.749 | H100: =ABS('ورودی نیروها'!J93) -> 456279.345 | I100: =VLOOKUP(C100,'ورودی نیروها'!M$4:P$1000000,2,FALSE) -> 60 | J100: =VLOOKUP(C100,'ورودی نیروها'!M$4:P$1000000,3,FALSE) -> 45 | K100: =VLOOKUP(C100,'ورودی نیروها'!M$4:P$1000000,4,FALSE) -> 4 | L100: 105 | M100: 90 | N100: =IF(VLOOKUP(C100,'ورودی نیروها'!M$4:Q$1048576,5,FALSE)=0,IF(K100=1,2*L100+2*M100,IF(K100=2,L100+2*M100,IF(K100=3,2*L100+M100,L100+M100))),VLOOKUP(C100,'ورودی نیروها'!M$4:Q$1048576,5,FALSE)) -> 195 | O100: 225709.2857 | P100: 352953.9474 | Q100: 263335 | R100: 285525 | S100: 1.333333333 | T100: 20 | U100: 12.5700537 | V100: 0.4186324689 | W100: 0.3816524151 | X100: 980720.5512 | Y100: 174140.114 | Z100: 17550 | AA100: 8.508611353 | AB100: 0.6768953862 | AC100: - | AD100: - | AE100: - | AF100: - | AG100: -
B101: ='ورودی نیروها'!C94 -> BASE | C101: ='ورودی نیروها'!D94 -> 1 | D101: ='ورودی نیروها'!E94 -> ACIS94 | E101: 1 - ACIS94 | F101: =ABS('ورودی نیروها'!H94) -> 21038.56 | G101: =ABS('ورودی نیروها'!I94) -> 2387896.746 | H101: =ABS('ورودی نیروها'!J94) -> 513704.806 | I101: =VLOOKUP(C101,'ورودی نیروها'!M$4:P$1000000,2,FALSE) -> 60 | J101: =VLOOKUP(C101,'ورودی نیروها'!M$4:P$1000000,3,FALSE) -> 45 | K101: =VLOOKUP(C101,'ورودی نیروها'!M$4:P$1000000,4,FALSE) -> 4 | L101: 105 | M101: 90 | N101: =IF(VLOOKUP(C101,'ورودی نیروها'!M$4:Q$1048576,5,FALSE)=0,IF(K101=1,2*L101+2*M101,IF(K101=2,L101+2*M101,IF(K101=3,2*L101+M101,L101+M101))),VLOOKUP(C101,'ورودی نیروها'!M$4:Q$1048576,5,FALSE)) -> 195 | O101: 225709.2857 | P101: 352953.9474 | Q101: 263335 | R101: 285525 | S101: 1.333333333 | T101: 20 | U101: 12.5700537 | V101: 0.4186324689 | W101: 0.3816524151 | X101: 999651.1102 | Y101: 196056.6799 | Z101: 17550 | AA101: 6.372224815 | AB101: 0.5069369604 | AC101: - | AD101: - | AE101: - | AF101: - | AG101: -
B102: ='ورودی نیروها'!C95 -> BASE | C102: ='ورودی نیروها'!D95 -> 1 | D102: ='ورودی نیروها'!E95 -> ACIS95 | E102: 1 - ACIS95 | F102: =ABS('ورودی نیروها'!H95) -> 101118.36 | G102: =ABS('ورودی نیروها'!I95) -> 2304806.908 | H102: =ABS('ورودی نیروها'!J95) -> 938540.482 | I102: =VLOOKUP(C102,'ورودی نیروها'!M$4:P$1000000,2,FALSE) -> 60 | J102: =VLOOKUP(C102,'ورودی نیروها'!M$4:P$1000000,3,FALSE) -> 45 | K102: =VLOOKUP(C102,'ورودی نیروها'!M$4:P$1000000,4,FALSE) -> 4 | L102: 105 | M102: 90 | N102: =IF(VLOOKUP(C102,'ورودی نیروها'!M$4:Q$1048576,5,FALSE)=0,IF(K102=1,2*L102+2*M102,IF(K102=2,L102+2*M102,IF(K102=3,2*L102+M102,L102+M102))),VLOOKUP(C102,'ورودی نیروها'!M$4:Q$1048576,5,FALSE)) -> 195 | O102: 225709.2857 | P102: 352953.9474 | Q102: 263335 | R102: 285525 | S102: 1.333333333 | T102: 20 | U102: 12.5700537 | V102: 0.4186324689 | W102: 0.3816524151 | X102: 964867.0061 | Y102: 358196.2417 | Z102: 17550 | AA102: 11.39678214 | AB102: 0.9066613722 | AC102: - | AD102: - | AE102: - | AF102: - | AG102: -
B103: ='ورودی نیروها'!C96 -> BASE | C103: ='ورودی نیروها'!D96 -> 1 | D103: ='ورودی نیروها'!E96 -> ACIS96 | E103: 1 - ACIS96 | F103: =ABS('ورودی نیروها'!H96) -> 60692.2 | G103: =ABS('ورودی نیروها'!I96) -> 2350026.905 | H103: =ABS('ورودی نیروها'!J96) -> 881115.021 | I103: =VLOOKUP(C103,'ورودی نیروها'!M$4:P$1000000,2,FALSE) -> 60 | J103: =VLOOKUP(C103,'ورودی نیروها'!M$4:P$1000000,3,FALSE) -> 45 | K103: =VLOOKUP(C103,'ورودی نیروها'!M$4:P$1000000,4,FALSE) -> 4 | L103: 105 | M103: 90 | N103: =IF(VLOOKUP(C103,'ورودی نیروها'!M$4:Q$1048576,5,FALSE)=0,IF(K103=1,2*L103+2*M103,IF(K103=2,L103+2*M103,IF(K103=3,2*L103+M103,L103+M103))),VLOOKUP(C103,'ورودی نیروها'!M$4:Q$1048576,5,FALSE)) -> 195 | O103: 225709.2857 | P103: 352953.9474 | Q103: 263335 | R103: 285525 | S103: 1.333333333 | T103: 20 | U103: 12.5700537 | V103: 0.4186324689 | W103: 0.3816524151 | X103: 983797.5651 | Y103: 336279.6758 | Z103: 17550 | AA103: 9.09394172 | AB103: 0.7234608489 | AC103: - | AD103: - | AE103: - | AF103: - | AG103: -
B104: ='ورودی نیروها'!C97 -> BASE | C104: ='ورودی نیروها'!D97 -> 2 | D104: ='ورودی نیروها'!E97 -> ACIB01 | E104: 2 - ACIB01 | F104: =ABS('ورودی نیروها'!H97) -> 216010.37 | G104: =ABS('ورودی نیروها'!I97) -> 385255.272 | H104: =ABS('ورودی نیروها'!J97) -> 106267.976 | I104: =VLOOKUP(C104,'ورودی نیروها'!M$4:P$1000000,2,FALSE) -> 60 | J104: =VLOOKUP(C104,'ورودی نیروها'!M$4:P$1000000,3,FALSE) -> 45 | K104: =VLOOKUP(C104,'ورودی نیروها'!M$4:P$1000000,4,FALSE) -> 2 | L104: 150 | M104: 90 | N104: =IF(VLOOKUP(C104,'ورودی نیروها'!M$4:Q$1048576,5,FALSE)=0,IF(K104=1,2*L104+2*M104,IF(K104=2,L104+2*M104,IF(K104=3,2*L104+M104,L104+M104))),VLOOKUP(C104,'ورودی نیروها'!M$4:Q$1048576,5,FALSE)) -> 330 | O104: 1498500 | P104: 561937.5 | Q104: 1552500 | R104: 1674000 | S104: 1.333333333 | T104: 30 | U104: 12.5700537 | V104: 0.4625571539 | W104: 0.3405424266 | X104: 178202.5821 | Y104: 36188.75442 | Z104: 29700 | AA104: 7.61350813 | AB104: 0.6056862057 | AC104: - | AD104: - | AE104: - | AF104: - | AG104: -
B105: ='ورودی نیروها'!C98 -> BASE | C105: ='ورودی نیروها'!D98 -> 2 | D105: ='ورودی نیروها'!E98 -> ACIB02 | E105: 2 - ACIB02 | F105: =ABS('ورودی نیروها'!H98) -> 239089.38 | G105: =ABS('ورودی نیروها'!I98) -> 499539.914 | H105: =ABS('ورودی نیروها'!J98) -> 66697.421 | I105: =VLOOKUP(C105,'ورودی نیروها'!M$4:P$1000000,2,FALSE) -> 60 | J105: =VLOOKUP(C105,'ورودی نیروها'!M$4:P$1000000,3,FALSE) -> 45 | K105: =VLOOKUP(C105,'ورودی نیروها'!M$4:P$1000000,4,FALSE) -> 2 | L105: 150 | M105: 90 | N105: =IF(VLOOKUP(C105,'ورودی نیروها'!M$4:Q$1048576,5,FALSE)=0,IF(K105=1,2*L105+2*M105,IF(K105=2,L105+2*M105,IF(K105=3,2*L105+M105,L105+M105))),VLOOKUP(C105,'ورودی نیروها'!M$4:Q$1048576,5,FALSE)) -> 330 | O105: 1498500 | P105: 561937.5 | Q105: 1552500 | R105: 1674000 | S105: 1.333333333 | T105: 30 | U105: 12.5700537 | V105: 0.4625571539 | W105: 0.3405424266 | X105: 231065.7609 | Y105: 22713.30159 | Z105: 29700 | AA105: 8.47597239 | AB105: 0.6742988211 | AC105: - | AD105: - | AE105: - | AF105: - | AG105: -
B106: ='ورودی نیروها'!C99 -> BASE | C106: ='ورودی نیروها'!D99 -> 2 | D106: ='ورودی نیروها'!E99 -> ACIS01 | E106: 2 - ACIS01 | F106: =ABS('ورودی نیروها'!H99) -> 291994.18 | G106: =ABS('ورودی نیروها'!I99) -> 775226.868 | H106: =ABS('ورودی نیروها'!J99) -> 3890324.57 | I106: =VLOOKUP(C106,'ورودی نیروها'!M$4:P$1000000,2,FALSE) -> 60 | J106: =VLOOKUP(C106,'ورودی نیروها'!M$4:P$1000000,3,FALSE) -> 45 | K106: =VLOOKUP(C106,'ورودی نیروها'!M$4:P$1000000,4,FALSE) -> 2 | L106: 150 | M106: 90 | N106: =IF(VLOOKUP(C106,'ورودی نیروها'!M$4:Q$1048576,5,FALSE)=0,IF(K106=1,2*L106+2*M106,IF(K106=2,L106+2*M106,IF(K106=3,2*L106+M106,L106+M106))),VLOOKUP(C106,'ورودی نیروها'!M$4:Q$1048576,5,FALSE)) -> 330 | O106: 1498500 | P106: 561937.5 | Q106: 1552500 | R106: 1674000 | S106: 1.333333333 | T106: 30 | U106: 12.5700537 | V106: 0.4625571539 | W106: 0.3405424266 | X106: 358586.7337 | Y106: 1324820.569 | Z106: 29700 | AA106: 11.32292611 | AB106: 0.9007858182 | AC106: - | AD106: - | AE106: - | AF106: - | AG106: -
B107: ='ورودی نیروها'!C100 -> BASE | C107: ='ورودی نیروها'!D100 -> 2 | D107: ='ورودی نیروها'!E100 -> ACIS02 | E107: 2 - ACIS02 | F107: =ABS('ورودی نیروها'!H100) -> 227207.05 | G107: =ABS('ورودی نیروها'!I100) -> 659609.727 | H107: =ABS('ورودی نیروها'!J100) -> 3922428.84 | I107: =VLOOKUP(C107,'ورودی نیروها'!M$4:P$1000000,2,FALSE) -> 60 | J107: =VLOOKUP(C107,'ورودی نیروها'!M$4:P$1000000,3,FALSE) -> 45 | K107: =VLOOKUP(C107,'ورودی نیروها'!M$4:P$1000000,4,FALSE) -> 2 | L107: 150 | M107: 90 | N107: =IF(VLOOKUP(C107,'ورودی نیروها'!M$4:Q$1048576,5,FALSE)=0,IF(K107=1,2*L107+2*M107,IF(K107=2,L107+2*M107,IF(K107=3,2*L107+M107,L107+M107))),VLOOKUP(C107,'ورودی نیروها'!M$4:Q$1048576,5,FALSE)) -> 330 | O107: 1498500 | P107: 561937.5 | Q107: 1552500 | R107: 1674000 | S107: 1.333333333 | T107: 30 | U107: 12.5700537 | V107: 0.4625571539 | W107: 0.3405424266 | X107: 305107.198 | Y107: 1335753.435 | Z107: 29700 | AA107: 9.053413462 | AB107: 0.7202366576 | AC107: - | AD107: - | AE107: - | AF107: - | AG107: -
B108: ='ورودی نیروها'!C101 -> BASE | C108: ='ورودی نیروها'!D101 -> 2 | D108: ='ورودی نیروها'!E101 -> ACIS03 | E108: 2 - ACIS03 | F108: =ABS('ورودی نیروها'!H101) -> 284095.35 | G108: =ABS('ورودی نیروها'!I101) -> 21951.152 | H108: =ABS('ورودی نیروها'!J101) -> 4010461.01 | I108: =VLOOKUP(C108,'ورودی نیروها'!M$4:P$1000000,2,FALSE) -> 60 | J108: =VLOOKUP(C108,'ورودی نیروها'!M$4:P$1000000,3,FALSE) -> 45 | K108: =VLOOKUP(C108,'ورودی نیروها'!M$4:P$1000000,4,FALSE) -> 2 | L108: 150 | M108: 90 | N108: =IF(VLOOKUP(C108,'ورودی نیروها'!M$4:Q$1048576,5,FALSE)=0,IF(K108=1,2*L108+2*M108,IF(K108=2,L108+2*M108,IF(K108=3,2*L108+M108,L108+M108))),VLOOKUP(C108,'ورودی نیروها'!M$4:Q$1048576,5,FALSE)) -> 330 | O108: 1498500 | P108: 561937.5 | Q108: 1552500 | R108: 1674000 | S108: 1.333333333 | T108: 30 | U108: 12.5700537 | V108: 0.4625571539 | W108: 0.3405424266 | X108: 10153.66239 | Y108: 1365732.124 | Z108: 29700 | AA108: 10.46326766 | AB108: 0.8323964165 | AC108: - | AD108: - | AE108: - | AF108: - | AG108: -
B109: ='ورودی نیروها'!C102 -> BASE | C109: ='ورودی نیروها'!D102 -> 2 | D109: ='ورودی نیروها'!E102 -> ACIS04 | E109: 2 - ACIS04 | F109: =ABS('ورودی نیروها'!H102) -> 219308.21 | G109: =ABS('ورودی نیروها'!I102) -> 137568.293 | H109: =ABS('ورودی نیروها'!J102) -> 4042565.28 | I109: =VLOOKUP(C109,'ورودی نیروها'!M$4:P$1000000,2,FALSE) -> 60 | J109: =VLOOKUP(C109,'ورودی نیروها'!M$4:P$1000000,3,FALSE) -> 45 | K109: =VLOOKUP(C109,'ورودی نیروها'!M$4:P$1000000,4,FALSE) -> 2 | L109: 150 | M109: 90 | N109: =IF(VLOOKUP(C109,'ورودی نیروها'!M$4:Q$1048576,5,FALSE)=0,IF(K109=1,2*L109+2*M109,IF(K109=2,L109+2*M109,IF(K109=3,2*L109+M109,L109+M109))),VLOOKUP(C109,'ورودی نیروها'!M$4:Q$1048576,5,FALSE)) -> 330 | O109: 1498500 | P109: 561937.5 | Q109: 1552500 | R109: 1674000 | S109: 1.333333333 | T109: 30 | U109: 12.5700537 | V109: 0.4625571539 | W109: 0.3405424266 | X109: 63633.19808 | Y109: 1376664.99 | Z109: 29700 | AA109: 8.384094474 | AB109: 0.6669895511 | AC109: - | AD109: - | AE109: - | AF109: - | AG109: -
B110: ='ورودی نیروها'!C103 -> BASE | C110: ='ورودی نیروها'!D103 -> 2 | D110: ='ورودی نیروها'!E103 -> ACIS05 | E110: 2 - ACIS05 | F110: =ABS('ورودی نیروها'!H103) -> 218417.32 | G110: =ABS('ورودی نیروها'!I103) -> 1009657.29 | H110: =ABS('ورودی نیروها'!J103) -> 4194252.181 | I110: =VLOOKUP(C110,'ورودی نیروها'!M$4:P$1000000,2,FALSE) -> 60 | J110: =VLOOKUP(C110,'ورودی نیروها'!M$4:P$1000000,3,FALSE) -> 45 | K110: =VLOOKUP(C110,'ورودی نیروها'!M$4:P$1000000,4,FALSE) -> 2 | L110: 150 | M110: 90 | N110: =IF(VLOOKUP(C110,'ورودی نیروها'!M$4:Q$1048576,5,FALSE)=0,IF(K110=1,2*L110+2*M110,IF(K110=2,L110+2*M110,IF(K110=3,2*L110+M110,L110+M110))),VLOOKUP(C110,'ورودی نیروها'!M$4:Q$1048576,5,FALSE)) -> 330 | O110: 1498500 | P110: 561937.5 | Q110: 1552500 | R110: 1674000 | S110: 1.333333333 | T110: 30 | U110: 12.5700537 | V110: 0.4625571539 | W110: 0.3405424266 | X110: 467024.2025 | Y110: 1428320.815 | Z110: 29700 | AA110: 9.105228271 | AB110: 0.724358741 | AC110: - | AD110: - | AE110: - | AF110: - | AG110: -
B111: ='ورودی نیروها'!C104 -> BASE | C111: ='ورودی نیروها'!D104 -> 2 | D111: ='ورودی نیروها'!E104 -> ACIS06 | E111: 2 - ACIS06 | F111: =ABS('ورودی نیروها'!H104) -> 153630.18 | G111: =ABS('ورودی نیروها'!I104) -> 894040.149 | H111: =ABS('ورودی نیروها'!J104) -> 4162147.916 | I111: =VLOOKUP(C111,'ورودی نیروها'!M$4:P$1000000,2,FALSE) -> 60 | J111: =VLOOKUP(C111,'ورودی نیروها'!M$4:P$1000000,3,FALSE) -> 45 | K111: =VLOOKUP(C111,'ورودی نیروها'!M$4:P$1000000,4,FALSE) -> 2 | L111: 150 | M111: 90 | N111: =IF(VLOOKUP(C111,'ورودی نیروها'!M$4:Q$1048576,5,FALSE)=0,IF(K111=1,2*L111+2*M111,IF(K111=2,L111+2*M111,IF(K111=3,2*L111+M111,L111+M111))),VLOOKUP(C111,'ورودی نیروها'!M$4:Q$1048576,5,FALSE)) -> 330 | O111: 1498500 | P111: 561937.5 | Q111: 1552500 | R111: 1674000 | S111: 1.333333333 | T111: 30 | U111: 12.5700537 | V111: 0.4625571539 | W111: 0.3405424266 | X111: 413544.6668 | Y111: 1417387.951 | Z111: 29700 | AA111: 6.821631084 | AB111: 0.5426890964 | AC111: - | AD111: - | AE111: - | AF111: - | AG111: -
B112: ='ورودی نیروها'!C105 -> BASE | C112: ='ورودی نیروها'!D105 -> 2 | D112: ='ورودی نیروها'!E105 -> ACIS07 | E112: 2 - ACIS07 | F112: =ABS('ورودی نیروها'!H105) -> 210518.48 | G112: =ABS('ورودی نیروها'!I105) -> 212479.27 | H112: =ABS('ورودی نیروها'!J105) -> 4074115.742 | I112: =VLOOKUP(C112,'ورودی نیروها'!M$4:P$1000000,2,FALSE) -> 60 | J112: =VLOOKUP(C112,'ورودی نیروها'!M$4:P$1000000,3,FALSE) -> 45 | K112: =VLOOKUP(C112,'ورودی نیروها'!M$4:P$1000000,4,FALSE) -> 2 | L112: 150 | M112: 90 | N112: =IF(VLOOKUP(C112,'ورودی نیروها'!M$4:Q$1048576,5,FALSE)=0,IF(K112=1,2*L112+2*M112,IF(K112=2,L112+2*M112,IF(K112=3,2*L112+M112,L112+M112))),VLOOKUP(C112,'ورودی نیروها'!M$4:Q$1048576,5,FALSE)) -> 330 | O112: 1498500 | P112: 561937.5 | Q112: 1552500 | R112: 1674000 | S112: 1.333333333 | T112: 30 | U112: 12.5700537 | V112: 0.4625571539 | W112: 0.3405424266 | X112: 98283.80639 | Y112: 1387409.261 | Z112: 29700 | AA112: 8.156727338 | AB112: 0.6489015507 | AC112: - | AD112: - | AE112: - | AF112: - | AG112: -
B113: ='ورودی نیروها'!C106 -> BASE | C113: ='ورودی نیروها'!D106 -> 2 | D113: ='ورودی نیروها'!E106 -> ACIS08 | E113: 2 - ACIS08 | F113: =ABS('ورودی نیروها'!H106) -> 145731.35 | G113: =ABS('ورودی نیروها'!I106) -> 96862.129 | H113: =ABS('ورودی نیروها'!J106) -> 4042011.476 | I113: =VLOOKUP(C113,'ورودی نیروها'!M$4:P$1000000,2,FALSE) -> 60 | J113: =VLOOKUP(C113,'ورودی نیروها'!M$4:P$1000000,3,FALSE) -> 45 | K113: =VLOOKUP(C113,'ورودی نیروها'!M$4:P$1000000,4,FALSE) -> 2 | L113: 150 | M113: 90 | N113: =IF(VLOOKUP(C113,'ورودی نیروها'!M$4:Q$1048576,5,FALSE)=0,IF(K113=1,2*L113+2*M113,IF(K113=2,L113+2*M113,IF(K113=3,2*L113+M113,L113+M113))),VLOOKUP(C113,'ورودی نیروها'!M$4:Q$1048576,5,FALSE)) -> 330 | O113: 1498500 | P113: 561937.5 | Q113: 1552500 | R113: 1674000 | S113: 1.333333333 | T113: 30 | U113: 12.5700537 | V113: 0.4625571539 | W113: 0.3405424266 | X113: 44804.27071 | Y113: 1376476.396 | Z113: 29700 | AA113: 5.873130487 | AB113: 0.4672319329 | AC113: - | AD113: - | AE113: - | AF113: - | AG113: -
B114: ='ورودی نیروها'!C107 -> BASE | C114: ='ورودی نیروها'!D107 -> 2 | D114: ='ورودی نیروها'!E107 -> ACIS09 | E114: 2 - ACIS09 | F114: =ABS('ورودی نیروها'!H107) -> 294901.55 | G114: =ABS('ورودی نیروها'!I107) -> 829350.989 | H114: =ABS('ورودی نیروها'!J107) -> 4126831.64 | I114: =VLOOKUP(C114,'ورودی نیروها'!M$4:P$1000000,2,FALSE) -> 60 | J114: =VLOOKUP(C114,'ورودی نیروها'!M$4:P$1000000,3,FALSE) -> 45 | K114: =VLOOKUP(C114,'ورودی نیروها'!M$4:P$1000000,4,FALSE) -> 2 | L114: 150 | M114: 90 | N114: =IF(VLOOKUP(C114,'ورودی نیروها'!M$4:Q$1048576,5,FALSE)=0,IF(K114=1,2*L114+2*M114,IF(K114=2,L114+2*M114,IF(K114=3,2*L114+M114,L114+M114))),VLOOKUP(C114,'ورودی نیروها'!M$4:Q$1048576,5,FALSE)) -> 330 | O114: 1498500 | P114: 561937.5 | Q114: 1552500 | R114: 1674000 | S114: 1.333333333 | T114: 30 | U114: 12.5700537 | V114: 0.4625571539 | W114: 0.3405424266 | X114: 383622.233 | Y114: 1405361.261 | Z114: 29700 | AA114: 11.51724752 | AB114: 0.9162448942 | AC114: - | AD114: - | AE114: - | AF114: - | AG114: -
B115: ='ورودی نیروها'!C108 -> BASE | C115: ='ورودی نیروها'!D108 -> 2 | D115: ='ورودی نیروها'!E108 -> ACIS10 | E115: 2 - ACIS10 | F115: =ABS('ورودی نیروها'!H108) -> 230114.41 | G115: =ABS('ورودی نیروها'!I108) -> 713733.848 | H115: =ABS('ورودی نیروها'!J108) -> 4158935.91 | I115: =VLOOKUP(C115,'ورودی نیروها'!M$4:P$1000000,2,FALSE) -> 60 | J115: =VLOOKUP(C115,'ورودی نیروها'!M$4:P$1000000,3,FALSE) -> 45 | K115: =VLOOKUP(C115,'ورودی نیروها'!M$4:P$1000000,4,FALSE) -> 2 | L115: 150 | M115: 90 | N115: =IF(VLOOKUP(C115,'ورودی نیروها'!M$4:Q$1048576,5,FALSE)=0,IF(K115=1,2*L115+2*M115,IF(K115=2,L115+2*M115,IF(K115=3,2*L115+M115,L115+M115))),VLOOKUP(C115,'ورودی نیروها'!M$4:Q$1048576,5,FALSE)) -> 330 | O115: 1498500 | P115: 561937.5 | Q115: 1552500 | R115: 1674000 | S115: 1.333333333 | T115: 30 | U115: 12.5700537 | V115: 0.4625571539 | W115: 0.3405424266 | X115: 330142.6974 | Y115: 1416294.127 | Z115: 29700 | AA115: 9.24773454 | AB115: 0.7356957067 | AC115: - | AD115: - | AE115: - | AF115: - | AG115: -
B116: ='ورودی نیروها'!C109 -> BASE | C116: ='ورودی نیروها'!D109 -> 2 | D116: ='ورودی نیروها'!E109 -> ACIS11 | E116: 2 - ACIS11 | F116: =ABS('ورودی نیروها'!H109) -> 287002.72 | G116: =ABS('ورودی نیروها'!I109) -> 32172.97 | H116: =ABS('ورودی نیروها'!J109) -> 4246968.08 | I116: =VLOOKUP(C116,'ورودی نیروها'!M$4:P$1000000,2,FALSE) -> 60 | J116: =VLOOKUP(C116,'ورودی نیروها'!M$4:P$1000000,3,FALSE) -> 45 | K116: =VLOOKUP(C116,'ورودی نیروها'!M$4:P$1000000,4,FALSE) -> 2 | L116: 150 | M116: 90 | N116: =IF(VLOOKUP(C116,'ورودی نیروها'!M$4:Q$1048576,5,FALSE)=0,IF(K116=1,2*L116+2*M116,IF(K116=2,L116+2*M116,IF(K116=3,2*L116+M116,L116+M116))),VLOOKUP(C116,'ورودی نیروها'!M$4:Q$1048576,5,FALSE)) -> 330 | O116: 1498500 | P116: 561937.5 | Q116: 1552500 | R116: 1674000 | S116: 1.333333333 | T116: 30 | U116: 12.5700537 | V116: 0.4625571539 | W116: 0.3405424266 | X116: 14881.83744 | Y116: 1446272.816 | Z116: 29700 | AA116: 10.62145102 | AB116: 0.8449805606 | AC116: - | AD116: - | AE116: - | AF116: - | AG116: -
B117: ='ورودی نیروها'!C110 -> BASE | C117: ='ورودی نیروها'!D110 -> 2 | D117: ='ورودی نیروها'!E110 -> ACIS12 | E117: 2 - ACIS12 | F117: =ABS('ورودی نیروها'!H110) -> 224160.04 | G117: =ABS('ورودی نیروها'!I110) -> 723197.512 | H117: =ABS('ورودی نیروها'!J110) -> 3517116.59 | I117: =VLOOKUP(C117,'ورودی نیروها'!M$4:P$1000000,2,FALSE) -> 60 | J117: =VLOOKUP(C117,'ورودی نیروها'!M$4:P$1000000,3,FALSE) -> 45 | K117: =VLOOKUP(C117,'ورودی نیروها'!M$4:P$1000000,4,FALSE) -> 2 | L117: 150 | M117: 90 | N117: =IF(VLOOKUP(C117,'ورودی نیروها'!M$4:Q$1048576,5,FALSE)=0,IF(K117=1,2*L117+2*M117,IF(K117=2,L117+2*M117,IF(K117=3,2*L117+M117,L117+M117))),VLOOKUP(C117,'ورودی نیروها'!M$4:Q$1048576,5,FALSE)) -> 330 | O117: 1498500 | P117: 561937.5 | Q117: 1552500 | R117: 1674000 | S117: 1.333333333 | T117: 30 | U117: 12.5700537 | V117: 0.4625571539 | W117: 0.3405424266 | X117: 334520.1829 | Y117: 1197727.418 | Z117: 29700 | AA117: 8.914256978 | AB117: 0.7091661811 | AC117: - | AD117: - | AE117: - | AF117: - | AG117: -
B118: ='ورودی نیروها'!C111 -> BASE | C118: ='ورودی نیروها'!D111 -> 2 | D118: ='ورودی نیروها'!E111 -> ACIS13 | E118: 2 - ACIS13 | F118: =ABS('ورودی نیروها'!H111) -> 215509.95 | G118: =ABS('ورودی نیروها'!I111) -> 955533.168 | H118: =ABS('ورودی نیروها'!J111) -> 4430759.254 | I118: =VLOOKUP(C118,'ورودی نیروها'!M$4:P$1000000,2,FALSE) -> 60 | J118: =VLOOKUP(C118,'ورودی نیروها'!M$4:P$1000000,3,FALSE) -> 45 | K118: =VLOOKUP(C118,'ورودی نیروها'!M$4:P$1000000,4,FALSE) -> 2 | L118: 150 | M118: 90 | N118: =IF(VLOOKUP(C118,'ورودی نیروها'!M$4:Q$1048576,5,FALSE)=0,IF(K118=1,2*L118+2*M118,IF(K118=2,L118+2*M118,IF(K118=3,2*L118+M118,L118+M118))),VLOOKUP(C118,'ورودی نیروها'!M$4:Q$1048576,5,FALSE)) -> 330 | O118: 1498500 | P118: 561937.5 | Q118: 1552500 | R118: 1674000 | S118: 1.333333333 | T118: 30 | U118: 12.5700537 | V118: 0.4625571539 | W118: 0.3405424266 | X118: 441988.7026 | Y118: 1508861.508 | Z118: 29700 | AA118: 9.014662981 | AB118: 0.7171538958 | AC118: - | AD118: - | AE118: - | AF118: - | AG118: -
B119: ='ورودی نیروها'!C112 -> BASE | C119: ='ورودی نیروها'!D112 -> 2 | D119: ='ورودی نیروها'!E112 -> ACIS14 | E119: 2 - ACIS14 | F119: =ABS('ورودی نیروها'!H112) -> 150722.81 | G119: =ABS('ورودی نیروها'!I112) -> 839916.027 | H119: =ABS('ورودی نیروها'!J112) -> 4398654.988 | I119: =VLOOKUP(C119,'ورودی نیروها'!M$4:P$1000000,2,FALSE) -> 60 | J119: =VLOOKUP(C119,'ورودی نیروها'!M$4:P$1000000,3,FALSE) -> 45 | K119: =VLOOKUP(C119,'ورودی نیروها'!M$4:P$1000000,4,FALSE) -> 2 | L119: 150 | M119: 90 | N119: =IF(VLOOKUP(C119,'ورودی نیروها'!M$4:Q$1048576,5,FALSE)=0,IF(K119=1,2*L119+2*M119,IF(K119=2,L119+2*M119,IF(K119=3,2*L119+M119,L119+M119))),VLOOKUP(C119,'ورودی نیروها'!M$4:Q$1048576,5,FALSE)) -> 330 | O119: 1498500 | P119: 561937.5 | Q119: 1552500 | R119: 1674000 | S119: 1.333333333 | T119: 30 | U119: 12.5700537 | V119: 0.4625571539 | W119: 0.3405424266 | X119: 388509.167 | Y119: 1497928.643 | Z119: 29700 | AA119: 6.731065793 | AB119: 0.5354842512 | AC119: - | AD119: - | AE119: - | AF119: - | AG119: -
B120: ='ورودی نیروها'!C113 -> BASE | C120: ='ورودی نیروها'!D113 -> 2 | D120: ='ورودی نیروها'!E113 -> ACIS15 | E120: 2 - ACIS15 | F120: =ABS('ورودی نیروها'!H113) -> 207611.12 | G120: =ABS('ورودی نیروها'!I113) -> 158355.148 | H120: =ABS('ورودی نیروها'!J113) -> 4310622.814 | I120: =VLOOKUP(C120,'ورودی نیروها'!M$4:P$1000000,2,FALSE) -> 60 | J120: =VLOOKUP(C120,'ورودی نیروها'!M$4:P$1000000,3,FALSE) -> 45 | K120: =VLOOKUP(C120,'ورودی نیروها'!M$4:P$1000000,4,FALSE) -> 2 | L120: 150 | M120: 90 | N120: =IF(VLOOKUP(C120,'ورودی نیروها'!M$4:Q$1048576,5,FALSE)=0,IF(K120=1,2*L120+2*M120,IF(K120=2,L120+2*M120,IF(K120=3,2*L120+M120,L120+M120))),VLOOKUP(C120,'ورودی نیروها'!M$4:Q$1048576,5,FALSE)) -> 330 | O120: 1498500 | P120: 561937.5 | Q120: 1552500 | R120: 1674000 | S120: 1.333333333 | T120: 30 | U120: 12.5700537 | V120: 0.4625571539 | W120: 0.3405424266 | X120: 73248.30656 | Y120: 1467949.953 | Z120: 29700 | AA120: 8.066162384 | AB120: 0.6416967324 | AC120: - | AD120: - | AE120: - | AF120: - | AG120: -
B121: ='ورودی نیروها'!C114 -> BASE | C121: ='ورودی نیروها'!D114 -> 2 | D121: ='ورودی نیروها'!E114 -> ACIS16 | E121: 2 - ACIS16 | F121: =ABS('ورودی نیروها'!H114) -> 142823.98 | G121: =ABS('ورودی نیروها'!I114) -> 42738.007 | H121: =ABS('ورودی نیروها'!J114) -> 4278518.549 | I121: =VLOOKUP(C121,'ورودی نیروها'!M$4:P$1000000,2,FALSE) -> 60 | J121: =VLOOKUP(C121,'ورودی نیروها'!M$4:P$1000000,3,FALSE) -> 45 | K121: =VLOOKUP(C121,'ورودی نیروها'!M$4:P$1000000,4,FALSE) -> 2 | L121: 150 | M121: 90 | N121: =IF(VLOOKUP(C121,'ورودی نیروها'!M$4:Q$1048576,5,FALSE)=0,IF(K121=1,2*L121+2*M121,IF(K121=2,L121+2*M121,IF(K121=3,2*L121+M121,L121+M121))),VLOOKUP(C121,'ورودی نیروها'!M$4:Q$1048576,5,FALSE)) -> 330 | O121: 1498500 | P121: 561937.5 | Q121: 1552500 | R121: 1674000 | S121: 1.333333333 | T121: 30 | U121: 12.5700537 | V121: 0.4625571539 | W121: 0.3405424266 | X121: 19768.77088 | Y121: 1457017.089 | Z121: 29700 | AA121: 5.782565196 | AB121: 0.4600270878 | AC121: - | AD121: - | AE121: - | AF121: - | AG121: -
B122: ='ورودی نیروها'!C115 -> BASE | C122: ='ورودی نیروها'!D115 -> 2 | D122: ='ورودی نیروها'!E115 -> ACIS17 | E122: 2 - ACIS17 | F122: =ABS('ورودی نیروها'!H115) -> 289086.82 | G122: =ABS('ورودی نیروها'!I115) -> 721102.746 | H122: =ABS('ورودی نیروها'!J115) -> 3653817.5 | I122: =VLOOKUP(C122,'ورودی نیروها'!M$4:P$1000000,2,FALSE) -> 60 | J122: =VLOOKUP(C122,'ورودی نیروها'!M$4:P$1000000,3,FALSE) -> 45 | K122: =VLOOKUP(C122,'ورودی نیروها'!M$4:P$1000000,4,FALSE) -> 2 | L122: 150 | M122: 90 | N122: =IF(VLOOKUP(C122,'ورودی نیروها'!M$4:Q$1048576,5,FALSE)=0,IF(K122=1,2*L122+2*M122,IF(K122=2,L122+2*M122,IF(K122=3,2*L122+M122,L122+M122))),VLOOKUP(C122,'ورودی نیروها'!M$4:Q$1048576,5,FALSE)) -> 330 | O122: 1498500 | P122: 561937.5 | Q122: 1552500 | R122: 1674000 | S122: 1.333333333 | T122: 30 | U122: 12.5700537 | V122: 0.4625571539 | W122: 0.3405424266 | X122: 333551.2339 | Y122: 1244279.878 | Z122: 29700 | AA122: 11.12860503 | AB122: 0.885326769 | AC122: - | AD122: - | AE122: - | AF122: - | AG122: -
B123: ='ورودی نیروها'!C116 -> BASE | C123: ='ورودی نیروها'!D116 -> 2 | D123: ='ورودی نیروها'!E116 -> ACIS18 | E123: 2 - ACIS18 | F123: =ABS('ورودی نیروها'!H116) -> 224299.68 | G123: =ABS('ورودی نیروها'!I116) -> 605485.605 | H123: =ABS('ورودی نیروها'!J116) -> 3685921.77 | I123: =VLOOKUP(C123,'ورودی نیروها'!M$4:P$1000000,2,FALSE) -> 60 | J123: =VLOOKUP(C123,'ورودی نیروها'!M$4:P$1000000,3,FALSE) -> 45 | K123: =VLOOKUP(C123,'ورودی نیروها'!M$4:P$1000000,4,FALSE) -> 2 | L123: 150 | M123: 90 | N123: =IF(VLOOKUP(C123,'ورودی نیروها'!M$4:Q$1048576,5,FALSE)=0,IF(K123=1,2*L123+2*M123,IF(K123=2,L123+2*M123,IF(K123=3,2*L123+M123,L123+M123))),VLOOKUP(C123,'ورودی نیروها'!M$4:Q$1048576,5,FALSE)) -> 330 | O123: 1498500 | P123: 561937.5 | Q123: 1552500 | R123: 1674000 | S123: 1.333333333 | T123: 30 | U123: 12.5700537 | V123: 0.4625571539 | W123: 0.3405424266 | X123: 280071.6982 | Y123: 1255212.744 | Z123: 29700 | AA123: 8.859092047 | AB123: 0.7047775816 | AC123: - | AD123: - | AE123: - | AF123: - | AG123: -
B124: ='ورودی نیروها'!C117 -> BASE | C124: ='ورودی نیروها'!D117 -> 2 | D124: ='ورودی نیروها'!E117 -> ACIS19 | E124: 2 - ACIS19 | F124: =ABS('ورودی نیروها'!H117) -> 281187.98 | G124: =ABS('ورودی نیروها'!I117) -> 76075.274 | H124: =ABS('ورودی نیروها'!J117) -> 3773953.94 | I124: =VLOOKUP(C124,'ورودی نیروها'!M$4:P$1000000,2,FALSE) -> 60 | J124: =VLOOKUP(C124,'ورودی نیروها'!M$4:P$1000000,3,FALSE) -> 45 | K124: =VLOOKUP(C124,'ورودی نیروها'!M$4:P$1000000,4,FALSE) -> 2 | L124: 150 | M124: 90 | N124: =IF(VLOOKUP(C124,'ورودی نیروها'!M$4:Q$1048576,5,FALSE)=0,IF(K124=1,2*L124+2*M124,IF(K124=2,L124+2*M124,IF(K124=3,2*L124+M124,L124+M124))),VLOOKUP(C124,'ورودی نیروها'!M$4:Q$1048576,5,FALSE)) -> 330 | O124: 1498500 | P124: 561937.5 | Q124: 1552500 | R124: 1674000 | S124: 1.333333333 | T124: 30 | U124: 12.5700537 | V124: 0.4625571539 | W124: 0.3405424266 | X124: 35189.16222 | Y124: 1285191.433 | Z124: 29700 | AA124: 10.35805045 | AB124: 0.8240259511 | AC124: - | AD124: - | AE124: - | AF124: - | AG124: -
B125: ='ورودی نیروها'!C118 -> BASE | C125: ='ورودی نیروها'!D118 -> 2 | D125: ='ورودی نیروها'!E118 -> ACIS20 | E125: 2 - ACIS20 | F125: =ABS('ورودی نیروها'!H118) -> 224299.68 | G125: =ABS('ورودی نیروها'!I118) -> 605485.605 | H125: =ABS('ورودی نیروها'!J118) -> 3685921.77 | I125: =VLOOKUP(C125,'ورودی نیروها'!M$4:P$1000000,2,FALSE) -> 60 | J125: =VLOOKUP(C125,'ورودی نیروها'!M$4:P$1000000,3,FALSE) -> 45 | K125: =VLOOKUP(C125,'ورودی نیروها'!M$4:P$1000000,4,FALSE) -> 2 | L125: 150 | M125: 90 | N125: =IF(VLOOKUP(C125,'ورودی نیروها'!M$4:Q$1048576,5,FALSE)=0,IF(K125=1,2*L125+2*M125,IF(K125=2,L125+2*M125,IF(K125=3,2*L125+M125,L125+M125))),VLOOKUP(C125,'ورودی نیروها'!M$4:Q$1048576,5,FALSE)) -> 330 | O125: 1498500 | P125: 561937.5 | Q125: 1552500 | R125: 1674000 | S125: 1.333333333 | T125: 30 | U125: 12.5700537 | V125: 0.4625571539 | W125: 0.3405424266 | X125: 280071.6982 | Y125: 1255212.744 | Z125: 29700 | AA125: 8.859092047 | AB125: 0.7047775816 | AC125: - | AD125: - | AE125: - | AF125: - | AG125: -
B126: ='ورودی نیروها'!C119 -> BASE | C126: ='ورودی نیروها'!D119 -> 2 | D126: ='ورودی نیروها'!E119 -> ACIS21 | E126: 2 - ACIS21 | F126: =ABS('ورودی نیروها'!H119) -> 221324.69 | G126: =ABS('ورودی نیروها'!I119) -> 1063781.412 | H126: =ABS('ورودی نیروها'!J119) -> 3957745.109 | I126: =VLOOKUP(C126,'ورودی نیروها'!M$4:P$1000000,2,FALSE) -> 60 | J126: =VLOOKUP(C126,'ورودی نیروها'!M$4:P$1000000,3,FALSE) -> 45 | K126: =VLOOKUP(C126,'ورودی نیروها'!M$4:P$1000000,4,FALSE) -> 2 | L126: 150 | M126: 90 | N126: =IF(VLOOKUP(C126,'ورودی نیروها'!M$4:Q$1048576,5,FALSE)=0,IF(K126=1,2*L126+2*M126,IF(K126=2,L126+2*M126,IF(K126=3,2*L126+M126,L126+M126))),VLOOKUP(C126,'ورودی نیروها'!M$4:Q$1048576,5,FALSE)) -> 330 | O126: 1498500 | P126: 561937.5 | Q126: 1552500 | R126: 1674000 | S126: 1.333333333 | T126: 30 | U126: 12.5700537 | V126: 0.4625571539 | W126: 0.3405424266 | X126: 492059.7023 | Y126: 1347780.123 | Z126: 29700 | AA126: 9.195793562 | AB126: 0.7315635861 | AC126: - | AD126: - | AE126: - | AF126: - | AG126: -
B127: ='ورودی نیروها'!C120 -> BASE | C127: ='ورودی نیروها'!D120 -> 2 | D127: ='ورودی نیروها'!E120 -> ACIS22 | E127: 2 - ACIS22 | F127: =ABS('ورودی نیروها'!H120) -> 156537.55 | G127: =ABS('ورودی نیروها'!I120) -> 948164.271 | H127: =ABS('ورودی نیروها'!J120) -> 3925640.843 | I127: =VLOOKUP(C127,'ورودی نیروها'!M$4:P$1000000,2,FALSE) -> 60 | J127: =VLOOKUP(C127,'ورودی نیروها'!M$4:P$1000000,3,FALSE) -> 45 | K127: =VLOOKUP(C127,'ورودی نیروها'!M$4:P$1000000,4,FALSE) -> 2 | L127: 150 | M127: 90 | N127: =IF(VLOOKUP(C127,'ورودی نیروها'!M$4:Q$1048576,5,FALSE)=0,IF(K127=1,2*L127+2*M127,IF(K127=2,L127+2*M127,IF(K127=3,2*L127+M127,L127+M127))),VLOOKUP(C127,'ورودی نیروها'!M$4:Q$1048576,5,FALSE)) -> 330 | O127: 1498500 | P127: 561937.5 | Q127: 1552500 | R127: 1674000 | S127: 1.333333333 | T127: 30 | U127: 12.5700537 | V127: 0.4625571539 | W127: 0.3405424266 | X127: 438580.1666 | Y127: 1336847.259 | Z127: 29700 | AA127: 6.912196374 | AB127: 0.5498939415 | AC127: - | AD127: - | AE127: - | AF127: - | AG127: -
B128: ='ورودی نیروها'!C121 -> BASE | C128: ='ورودی نیروها'!D121 -> 2 | D128: ='ورودی نیروها'!E121 -> ACIS23 | E128: 2 - ACIS23 | F128: =ABS('ورودی نیروها'!H121) -> 213425.85 | G128: =ABS('ورودی نیروها'!I121) -> 266603.392 | H128: =ABS('ورودی نیروها'!J121) -> 3837608.669 | I128: =VLOOKUP(C128,'ورودی نیروها'!M$4:P$1000000,2,FALSE) -> 60 | J128: =VLOOKUP(C128,'ورودی نیروها'!M$4:P$1000000,3,FALSE) -> 45 | K128: =VLOOKUP(C128,'ورودی نیروها'!M$4:P$1000000,4,FALSE) -> 2 | L128: 150 | M128: 90 | N128: =IF(VLOOKUP(C128,'ورودی نیروها'!M$4:Q$1048576,5,FALSE)=0,IF(K128=1,2*L128+2*M128,IF(K128=2,L128+2*M128,IF(K128=3,2*L128+M128,L128+M128))),VLOOKUP(C128,'ورودی نیروها'!M$4:Q$1048576,5,FALSE)) -> 330 | O128: 1498500 | P128: 561937.5 | Q128: 1552500 | R128: 1674000 | S128: 1.333333333 | T128: 30 | U128: 12.5700537 | V128: 0.4625571539 | W128: 0.3405424266 | X128: 123319.3062 | Y128: 1306868.568 | Z128: 29700 | AA128: 8.247292628 | AB128: 0.6561063959 | AC128: - | AD128: - | AE128: - | AF128: - | AG128: -
B129: ='ورودی نیروها'!C122 -> BASE | C129: ='ورودی نیروها'!D122 -> 2 | D129: ='ورودی نیروها'!E122 -> ACIS24 | E129: 2 - ACIS24 | F129: =ABS('ورودی نیروها'!H122) -> 148638.71 | G129: =ABS('ورودی نیروها'!I122) -> 150986.251 | H129: =ABS('ورودی نیروها'!J122) -> 3805504.404 | I129: =VLOOKUP(C129,'ورودی نیروها'!M$4:P$1000000,2,FALSE) -> 60 | J129: =VLOOKUP(C129,'ورودی نیروها'!M$4:P$1000000,3,FALSE) -> 45 | K129: =VLOOKUP(C129,'ورودی نیروها'!M$4:P$1000000,4,FALSE) -> 2 | L129: 150 | M129: 90 | N129: =IF(VLOOKUP(C129,'ورودی نیروها'!M$4:Q$1048576,5,FALSE)=0,IF(K129=1,2*L129+2*M129,IF(K129=2,L129+2*M129,IF(K129=3,2*L129+M129,L129+M129))),VLOOKUP(C129,'ورودی نیروها'!M$4:Q$1048576,5,FALSE)) -> 330 | O129: 1498500 | P129: 561937.5 | Q129: 1552500 | R129: 1674000 | S129: 1.333333333 | T129: 30 | U129: 12.5700537 | V129: 0.4625571539 | W129: 0.3405424266 | X129: 69839.77054 | Y129: 1295935.704 | Z129: 29700 | AA129: 5.963695441 | AB129: 0.4744367513 | AC129: - | AD129: - | AE129: - | AF129: - | AG129: -
B130: ='ورودی نیروها'!C123 -> BASE | C130: ='ورودی نیروها'!D123 -> 2 | D130: ='ورودی نیروها'!E123 -> ACIS25 | E130: 2 - ACIS25 | F130: =ABS('ورودی نیروها'!H123) -> 275457.59 | G130: =ABS('ورودی نیروها'!I123) -> 1787318.538 | H130: =ABS('ورودی نیروها'!J123) -> 920563.529 | I130: =VLOOKUP(C130,'ورودی نیروها'!M$4:P$1000000,2,FALSE) -> 60 | J130: =VLOOKUP(C130,'ورودی نیروها'!M$4:P$1000000,3,FALSE) -> 45 | K130: =VLOOKUP(C130,'ورودی نیروها'!M$4:P$1000000,4,FALSE) -> 2 | L130: 150 | M130: 90 | N130: =IF(VLOOKUP(C130,'ورودی نیروها'!M$4:Q$1048576,5,FALSE)=0,IF(K130=1,2*L130+2*M130,IF(K130=2,L130+2*M130,IF(K130=3,2*L130+M130,L130+M130))),VLOOKUP(C130,'ورودی نیروها'!M$4:Q$1048576,5,FALSE)) -> 330 | O130: 1498500 | P130: 561937.5 | Q130: 1552500 | R130: 1674000 | S130: 1.333333333 | T130: 30 | U130: 12.5700537 | V130: 0.4625571539 | W130: 0.3405424266 | X130: 826736.976 | Y130: 313490.938 | Z130: 29700 | AA130: 10.94781871 | AB130: 0.8709444663 | AC130: - | AD130: - | AE130: - | AF130: - | AG130: -
B131: ='ورودی نیروها'!C124 -> BASE | C131: ='ورودی نیروها'!D124 -> 2 | D131: ='ورودی نیروها'!E124 -> ACIS26 | E131: 2 - ACIS26 | F131: =ABS('ورودی نیروها'!H124) -> 210670.45 | G131: =ABS('ورودی نیروها'!I124) -> 1671701.397 | H131: =ABS('ورودی نیروها'!J124) -> 952667.795 | I131: =VLOOKUP(C131,'ورودی نیروها'!M$4:P$1000000,2,FALSE) -> 60 | J131: =VLOOKUP(C131,'ورودی نیروها'!M$4:P$1000000,3,FALSE) -> 45 | K131: =VLOOKUP(C131,'ورودی نیروها'!M$4:P$1000000,4,FALSE) -> 2 | L131: 150 | M131: 90 | N131: =IF(VLOOKUP(C131,'ورودی نیروها'!M$4:Q$1048576,5,FALSE)=0,IF(K131=1,2*L131+2*M131,IF(K131=2,L131+2*M131,IF(K131=3,2*L131+M131,L131+M131))),VLOOKUP(C131,'ورودی نیروها'!M$4:Q$1048576,5,FALSE)) -> 330 | O131: 1498500 | P131: 561937.5 | Q131: 1552500 | R131: 1674000 | S131: 1.333333333 | T131: 30 | U131: 12.5700537 | V131: 0.4625571539 | W131: 0.3405424266 | X131: 773257.4404 | Y131: 324423.8026 | Z131: 29700 | AA131: 8.678305728 | AB131: 0.6903952788 | AC131: - | AD131: - | AE131: - | AF131: - | AG131: -
B132: ='ورودی نیروها'!C125 -> BASE | C132: ='ورودی نیروها'!D125 -> 2 | D132: ='ورودی نیروها'!E125 -> ACIS27 | E132: 2 - ACIS27 | F132: =ABS('ورودی نیروها'!H125) -> 253384.53 | G132: =ABS('ورودی نیروها'!I125) -> 1857647.665 | H132: =ABS('ورودی نیروها'!J125) -> 1504809.497 | I132: =VLOOKUP(C132,'ورودی نیروها'!M$4:P$1000000,2,FALSE) -> 60 | J132: =VLOOKUP(C132,'ورودی نیروها'!M$4:P$1000000,3,FALSE) -> 45 | K132: =VLOOKUP(C132,'ورودی نیروها'!M$4:P$1000000,4,FALSE) -> 2 | L132: 150 | M132: 90 | N132: =IF(VLOOKUP(C132,'ورودی نیروها'!M$4:Q$1048576,5,FALSE)=0,IF(K132=1,2*L132+2*M132,IF(K132=2,L132+2*M132,IF(K132=3,2*L132+M132,L132+M132))),VLOOKUP(C132,'ورودی نیروها'!M$4:Q$1048576,5,FALSE)) -> 330 | O132: 1498500 | P132: 561937.5 | Q132: 1552500 | R132: 1674000 | S132: 1.333333333 | T132: 30 | U132: 12.5700537 | V132: 0.4625571539 | W132: 0.3405424266 | X132: 859268.2169 | Y132: 512451.4777 | Z132: 29700 | AA132: 10.39066418 | AB132: 0.8266205086 | AC132: - | AD132: - | AE132: - | AF132: - | AG132: -
B133: ='ورودی نیروها'!C126 -> BASE | C133: ='ورودی نیروها'!D126 -> 2 | D133: ='ورودی نیروها'!E126 -> ACIS28 | E133: 2 - ACIS28 | F133: =ABS('ورودی نیروها'!H126) -> 210670.45 | G133: =ABS('ورودی نیروها'!I126) -> 1671701.397 | H133: =ABS('ورودی نیروها'!J126) -> 952667.795 | I133: =VLOOKUP(C133,'ورودی نیروها'!M$4:P$1000000,2,FALSE) -> 60 | J133: =VLOOKUP(C133,'ورودی نیروها'!M$4:P$1000000,3,FALSE) -> 45 | K133: =VLOOKUP(C133,'ورودی نیروها'!M$4:P$1000000,4,FALSE) -> 2 | L133: 150 | M133: 90 | N133: =IF(VLOOKUP(C133,'ورودی نیروها'!M$4:Q$1048576,5,FALSE)=0,IF(K133=1,2*L133+2*M133,IF(K133=2,L133+2*M133,IF(K133=3,2*L133+M133,L133+M133))),VLOOKUP(C133,'ورودی نیروها'!M$4:Q$1048576,5,FALSE)) -> 330 | O133: 1498500 | P133: 561937.5 | Q133: 1552500 | R133: 1674000 | S133: 1.333333333 | T133: 30 | U133: 12.5700537 | V133: 0.4625571539 | W133: 0.3405424266 | X133: 773257.4404 | Y133: 324423.8026 | Z133: 29700 | AA133: 8.678305728 | AB133: 0.6903952788 | AC133: - | AD133: - | AE133: - | AF133: - | AG133: -
B134: ='ورودی نیروها'!C127 -> BASE | C134: ='ورودی نیروها'!D127 -> 2 | D134: ='ورودی نیروها'!E127 -> ACIS29 | E134: 2 - ACIS29 | F134: =ABS('ورودی نیروها'!H127) -> 249128.14 | G134: =ABS('ورودی نیروها'!I127) -> 869941.527 | H134: =ABS('ورودی نیروها'!J127) -> 1321018.327 | I134: =VLOOKUP(C134,'ورودی نیروها'!M$4:P$1000000,2,FALSE) -> 60 | J134: =VLOOKUP(C134,'ورودی نیروها'!M$4:P$1000000,3,FALSE) -> 45 | K134: =VLOOKUP(C134,'ورودی نیروها'!M$4:P$1000000,4,FALSE) -> 2 | L134: 150 | M134: 90 | N134: =IF(VLOOKUP(C134,'ورودی نیروها'!M$4:Q$1048576,5,FALSE)=0,IF(K134=1,2*L134+2*M134,IF(K134=2,L134+2*M134,IF(K134=3,2*L134+M134,L134+M134))),VLOOKUP(C134,'ورودی نیروها'!M$4:Q$1048576,5,FALSE)) -> 330 | O134: 1498500 | P134: 561937.5 | Q134: 1552500 | R134: 1674000 | S134: 1.333333333 | T134: 30 | U134: 12.5700537 | V134: 0.4625571539 | W134: 0.3405424266 | X134: 402397.6768 | Y134: 449862.7866 | Z134: 29700 | AA134: 9.39400929 | AB134: 0.7473324708 | AC134: - | AD134: - | AE134: - | AF134: - | AG134: -
B135: ='ورودی نیروها'!C128 -> BASE | C135: ='ورودی نیروها'!D128 -> 2 | D135: ='ورودی نیروها'!E128 -> ACIS30 | E135: 2 - ACIS30 | F135: =ABS('ورودی نیروها'!H128) -> 184341 | G135: =ABS('ورودی نیروها'!I128) -> 985558.668 | H135: =ABS('ورودی نیروها'!J128) -> 1353122.593 | I135: =VLOOKUP(C135,'ورودی نیروها'!M$4:P$1000000,2,FALSE) -> 60 | J135: =VLOOKUP(C135,'ورودی نیروها'!M$4:P$1000000,3,FALSE) -> 45 | K135: =VLOOKUP(C135,'ورودی نیروها'!M$4:P$1000000,4,FALSE) -> 2 | L135: 150 | M135: 90 | N135: =IF(VLOOKUP(C135,'ورودی نیروها'!M$4:Q$1048576,5,FALSE)=0,IF(K135=1,2*L135+2*M135,IF(K135=2,L135+2*M135,IF(K135=3,2*L135+M135,L135+M135))),VLOOKUP(C135,'ورودی نیروها'!M$4:Q$1048576,5,FALSE)) -> 330 | O135: 1498500 | P135: 561937.5 | Q135: 1552500 | R135: 1674000 | S135: 1.333333333 | T135: 30 | U135: 12.5700537 | V135: 0.4625571539 | W135: 0.3405424266 | X135: 455877.2125 | Y135: 460795.6513 | Z135: 29700 | AA135: 7.314836107 | AB135: 0.5819256053 | AC135: - | AD135: - | AE135: - | AF135: - | AG135: -
B136: ='ورودی نیروها'!C129 -> BASE | C136: ='ورودی نیروها'!D129 -> 2 | D136: ='ورودی نیروها'!E129 -> ACIS31 | E136: 2 - ACIS31 | F136: =ABS('ورودی نیروها'!H129) -> 227055.08 | G136: =ABS('ورودی نیروها'!I129) -> 799612.401 | H136: =ABS('ورودی نیروها'!J129) -> 1104354.699 | I136: =VLOOKUP(C136,'ورودی نیروها'!M$4:P$1000000,2,FALSE) -> 60 | J136: =VLOOKUP(C136,'ورودی نیروها'!M$4:P$1000000,3,FALSE) -> 45 | K136: =VLOOKUP(C136,'ورودی نیروها'!M$4:P$1000000,4,FALSE) -> 2 | L136: 150 | M136: 90 | N136: =IF(VLOOKUP(C136,'ورودی نیروها'!M$4:Q$1048576,5,FALSE)=0,IF(K136=1,2*L136+2*M136,IF(K136=2,L136+2*M136,IF(K136=3,2*L136+M136,L136+M136))),VLOOKUP(C136,'ورودی نیروها'!M$4:Q$1048576,5,FALSE)) -> 330 | O136: 1498500 | P136: 561937.5 | Q136: 1552500 | R136: 1674000 | S136: 1.333333333 | T136: 30 | U136: 12.5700537 | V136: 0.4625571539 | W136: 0.3405424266 | X136: 369866.4364 | Y136: 376079.629 | Z136: 29700 | AA136: 8.545392025 | AB136: 0.6798214415 | AC136: - | AD136: - | AE136: - | AF136: - | AG136: -
B137: ='ورودی نیروها'!C130 -> BASE | C137: ='ورودی نیروها'!D130 -> 2 | D137: ='ورودی نیروها'!E130 -> ACIS32 | E137: 2 - ACIS32 | F137: =ABS('ورودی نیروها'!H130) -> 162267.94 | G137: =ABS('ورودی نیروها'!I130) -> 915229.542 | H137: =ABS('ورودی نیروها'!J130) -> 1072250.433 | I137: =VLOOKUP(C137,'ورودی نیروها'!M$4:P$1000000,2,FALSE) -> 60 | J137: =VLOOKUP(C137,'ورودی نیروها'!M$4:P$1000000,3,FALSE) -> 45 | K137: =VLOOKUP(C137,'ورودی نیروها'!M$4:P$1000000,4,FALSE) -> 2 | L137: 150 | M137: 90 | N137: =IF(VLOOKUP(C137,'ورودی نیروها'!M$4:Q$1048576,5,FALSE)=0,IF(K137=1,2*L137+2*M137,IF(K137=2,L137+2*M137,IF(K137=3,2*L137+M137,L137+M137))),VLOOKUP(C137,'ورودی نیروها'!M$4:Q$1048576,5,FALSE)) -> 330 | O137: 1498500 | P137: 561937.5 | Q137: 1552500 | R137: 1674000 | S137: 1.333333333 | T137: 30 | U137: 12.5700537 | V137: 0.4625571539 | W137: 0.3405424266 | X137: 423345.9721 | Y137: 365146.7644 | Z137: 29700 | AA137: 6.452134637 | AB137: 0.5132941189 | AC137: - | AD137: - | AE137: - | AF137: - | AG137: -
B138: ='ورودی نیروها'!C131 -> BASE | C138: ='ورودی نیروها'!D131 -> 2 | D138: ='ورودی نیروها'!E131 -> ACIS34 | E138: 2 - ACIS34 | F138: =ABS('ورودی نیروها'!H131) -> 272068.89 | G138: =ABS('ورودی نیروها'!I131) -> 1724390.515 | H138: =ABS('ورودی نیروها'!J131) -> 645582.527 | I138: =VLOOKUP(C138,'ورودی نیروها'!M$4:P$1000000,2,FALSE) -> 60 | J138: =VLOOKUP(C138,'ورودی نیروها'!M$4:P$1000000,3,FALSE) -> 45 | K138: =VLOOKUP(C138,'ورودی نیروها'!M$4:P$1000000,4,FALSE) -> 2 | L138: 150 | M138: 90 | N138: =IF(VLOOKUP(C138,'ورودی نیروها'!M$4:Q$1048576,5,FALSE)=0,IF(K138=1,2*L138+2*M138,IF(K138=2,L138+2*M138,IF(K138=3,2*L138+M138,L138+M138))),VLOOKUP(C138,'ورودی نیروها'!M$4:Q$1048576,5,FALSE)) -> 330 | O138: 1498500 | P138: 561937.5 | Q138: 1552500 | R138: 1674000 | S138: 1.333333333 | T138: 30 | U138: 12.5700537 | V138: 0.4625571539 | W138: 0.3405424266 | X138: 797629.1688 | Y138: 219848.2403 | Z138: 29700 | AA138: 10.7216047 | AB138: 0.8529482017 | AC138: - | AD138: - | AE138: - | AF138: - | AG138: -
B139: ='ورودی نیروها'!C132 -> BASE | C139: ='ورودی نیروها'!D132 -> 2 | D139: ='ورودی نیروها'!E132 -> ACIS35 | E139: 2 - ACIS35 | F139: =ABS('ورودی نیروها'!H132) -> 249995.83 | G139: =ABS('ورودی نیروها'!I132) -> 1794719.642 | H139: =ABS('ورودی نیروها'!J132) -> 1779790.499 | I139: =VLOOKUP(C139,'ورودی نیروها'!M$4:P$1000000,2,FALSE) -> 60 | J139: =VLOOKUP(C139,'ورودی نیروها'!M$4:P$1000000,3,FALSE) -> 45 | K139: =VLOOKUP(C139,'ورودی نیروها'!M$4:P$1000000,4,FALSE) -> 2 | L139: 150 | M139: 90 | N139: =IF(VLOOKUP(C139,'ورودی نیروها'!M$4:Q$1048576,5,FALSE)=0,IF(K139=1,2*L139+2*M139,IF(K139=2,L139+2*M139,IF(K139=3,2*L139+M139,L139+M139))),VLOOKUP(C139,'ورودی نیروها'!M$4:Q$1048576,5,FALSE)) -> 330 | O139: 1498500 | P139: 561937.5 | Q139: 1552500 | R139: 1674000 | S139: 1.333333333 | T139: 30 | U139: 12.5700537 | V139: 0.4625571539 | W139: 0.3405424266 | X139: 830160.4096 | Y139: 606094.1753 | Z139: 29700 | AA139: 10.28508488 | AB139: 0.8182212368 | AC139: - | AD139: - | AE139: - | AF139: - | AG139: -
B140: ='ورودی نیروها'!C133 -> BASE | C140: ='ورودی نیروها'!D133 -> 2 | D140: ='ورودی نیروها'!E133 -> ACIS36 | E140: =CONCATENATE(C140," - ",D140) -> 2 - ACIS36 | F140: =ABS('ورودی نیروها'!H133) -> 185208.69 | G140: =ABS('ورودی نیروها'!I133) -> 1679102.501 | H140: =ABS('ورودی نیروها'!J133) -> 1747686.233 | I140: =VLOOKUP(C140,'ورودی نیروها'!M$4:P$1000000,2,FALSE) -> 60 | J140: =VLOOKUP(C140,'ورودی نیروها'!M$4:P$1000000,3,FALSE) -> 45 | K140: =VLOOKUP(C140,'ورودی نیروها'!M$4:P$1000000,4,FALSE) -> 2 | L140: =IF(OR(K140=1,K140=2),I140+$C$6,I140+($C$6/2)) -> 150 | M140: =IF(OR(K140=1,K140=3),J140+$C$6,J140+($C$6/2)) -> 90 | N140: =IF(VLOOKUP(C140,'ورودی نیروها'!M$4:Q$1048576,5,FALSE)=0,IF(K140=1,2*L140+2*M140,IF(K140=2,L140+2*M140,IF(K140=3,2*L140+M140,L140+M140))),VLOOKUP(C140,'ورودی نیروها'!M$4:Q$1048576,5,FALSE)) -> 330 | O140: =IF(K140=1,(L140*$C$6*(L140+3*M140)+$C$6^3)/3,IF(K140=2,(2*M140^2*$C$6*(M140+2*L140)+$C$6^3*(2*M140+L140))/(6*M140),IF(K140=3,M140*$C$6*(M140+6*L140)/6,($C$6*(L140+4*M140)+$C$6^3*(L140+M140))/(6*L140)))) -> 1498500 | P140: =IF(K140=1,(L140*$C$6*(L140+3*M140)+$C$6^3)/3,IF(K140=2,(2*M140^2*$C$6*(M140+2*L140)+$C$6^3*(2*M140+L140))/(6*(L140+M140)),IF(K140=3,(M140*$C$6*(M140+6*L140)+$C$6^3)/6,(L140^2*$C$6*(L140+4*M140)+$C$6^3*(L140+M140))/(6*(L140+2*M140))))) -> 561937.5 | Q140: =IF(K140=1,(M140*$C$6*(M140+3*L140)+$C$6^3)/3,IF(K140=2,L140*$C$6*(L140+6*M140)/6,IF(K140=3,(2*L140^2*$C$6*(L140+2*M140)+$C$6^3*(2*L140+M140))/(6*L140),($C$6*(M140+4*L140)+$C$6^3*(M140+L140))/(6*M140)))) -> 1552500 | R140: =IF(K140=1,(M140*$C$6*(M140+3*L140)+$C$6^3)/3,IF(K140=2,(L140*$C$6*(L140+6*M140)+$C$6^3)/6,IF(K140=3,(2*L140^2*$C$6*(L140+2*M140)+$C$6^3*(2*L140+M140))/(6*(M140+L140)),(M140^2*$C$6*(M140+4*L140)+$C$6^3*(M140+L140))/(6*(M140+2*L140))))) -> 1674000 | S140: =MAX(I140:J140)/MIN(I140:J140) -> 1.333333333 | T140: =IF(K140=1,40,IF(K140=4,20,30)) -> 30 | U140: =MIN(0.53*$C$5*(1+(2/S140))*SQRT($C$4),0.53*$C$5*(1+((T140*$C$6)/(2*N140)))*SQRT($C$4),1.06*$C$5*SQRT($C$4)) -> 12.5700537 | V140: =1-(1/((1+(2/3)*SQRT(L140/M140)))) -> 0.4625571539 | W140: =1-(1/((1+(2/3)*SQRT(M140/L140)))) -> 0.3405424266 | X140: =V140*G140 -> 776680.874 | Y140: =W140*H140 -> 595161.3107 | Z140: =N140*$C$6 -> 29700 | AA140: =(F140/Z140)+(X140/MIN(O140:P140))+(Y140/MIN(Q140:R140)) -> 8.001487696 | AB140: =AA140/U140 -> 0.6365515922 | AC140: =IF(AB140<=1,"-",F140/$C$5) -> - | AD140: =IF(AB140<=1,"-",3*U140*N140*$C$6/$C$5) -> - | AE140: =IF(AB140<=1,"-",IF(AC140<=AD140,"OK","NOT OK")) -> - | AF140: =IF(AB140<=1,"-",IF(OR($C$6>=15,$C$6>=16*($C$8/10)),"OK","NOT OK")) -> - | AG140: =IF(OR(AE140="NOT OK",AF140="NOT OK"),"CANT USE",IF(AB140<=1,"-",(AA140-U140)*N140/($C$5*$C$7))) -> -
B141: ='ورودی نیروها'!C134 -> BASE | C141: ='ورودی نیروها'!D134 -> 2 | D141: ='ورودی نیروها'!E134 -> ACIS37 | E141: 2 - ACIS37 | F141: =ABS('ورودی نیروها'!H134) -> 252516.84 | G141: =ABS('ورودی نیروها'!I134) -> 807013.504 | H141: =ABS('ورودی نیروها'!J134) -> 1595999.329 | I141: =VLOOKUP(C141,'ورودی نیروها'!M$4:P$1000000,2,FALSE) -> 60 | J141: =VLOOKUP(C141,'ورودی نیروها'!M$4:P$1000000,3,FALSE) -> 45 | K141: =VLOOKUP(C141,'ورودی نیروها'!M$4:P$1000000,4,FALSE) -> 2 | L141: 150 | M141: 90 | N141: =IF(VLOOKUP(C141,'ورودی نیروها'!M$4:Q$1048576,5,FALSE)=0,IF(K141=1,2*L141+2*M141,IF(K141=2,L141+2*M141,IF(K141=3,2*L141+M141,L141+M141))),VLOOKUP(C141,'ورودی نیروها'!M$4:Q$1048576,5,FALSE)) -> 330 | O141: 1498500 | P141: 561937.5 | Q141: 1552500 | R141: 1674000 | S141: 1.333333333 | T141: 30 | U141: 12.5700537 | V141: 0.4625571539 | W141: 0.3405424266 | X141: 373289.8696 | Y141: 543505.4843 | Z141: 29700 | AA141: 9.516625278 | AB141: 0.7570870822 | AC141: - | AD141: - | AE141: - | AF141: - | AG141: -
B142: ='ورودی نیروها'!C135 -> BASE | C142: ='ورودی نیروها'!D135 -> 2 | D142: ='ورودی نیروها'!E135 -> ACIS38 | E142: 2 - ACIS38 | F142: =ABS('ورودی نیروها'!H135) -> 187729.7 | G142: =ABS('ورودی نیروها'!I135) -> 922630.645 | H142: =ABS('ورودی نیروها'!J135) -> 1628103.595 | I142: =VLOOKUP(C142,'ورودی نیروها'!M$4:P$1000000,2,FALSE) -> 60 | J142: =VLOOKUP(C142,'ورودی نیروها'!M$4:P$1000000,3,FALSE) -> 45 | K142: =VLOOKUP(C142,'ورودی نیروها'!M$4:P$1000000,4,FALSE) -> 2 | L142: 150 | M142: 90 | N142: =IF(VLOOKUP(C142,'ورودی نیروها'!M$4:Q$1048576,5,FALSE)=0,IF(K142=1,2*L142+2*M142,IF(K142=2,L142+2*M142,IF(K142=3,2*L142+M142,L142+M142))),VLOOKUP(C142,'ورودی نیروها'!M$4:Q$1048576,5,FALSE)) -> 330 | O142: 1498500 | P142: 561937.5 | Q142: 1552500 | R142: 1674000 | S142: 1.333333333 | T142: 30 | U142: 12.5700537 | V142: 0.4625571539 | W142: 0.3405424266 | X142: 426769.4052 | Y142: 554438.349 | Z142: 29700 | AA142: 7.437452096 | AB142: 0.5916802167 | AC142: - | AD142: - | AE142: - | AF142: - | AG142: -
B143: ='ورودی نیروها'!C136 -> BASE | C143: ='ورودی نیروها'!D136 -> 2 | D143: ='ورودی نیروها'!E136 -> ACIS39 | E143: 2 - ACIS39 | F143: =ABS('ورودی نیروها'!H136) -> 230443.78 | G143: =ABS('ورودی نیروها'!I136) -> 736684.377 | H143: =ABS('ورودی نیروها'!J136) -> 829373.697 | I143: =VLOOKUP(C143,'ورودی نیروها'!M$4:P$1000000,2,FALSE) -> 60 | J143: =VLOOKUP(C143,'ورودی نیروها'!M$4:P$1000000,3,FALSE) -> 45 | K143: =VLOOKUP(C143,'ورودی نیروها'!M$4:P$1000000,4,FALSE) -> 2 | L143: 150 | M143: 90 | N143: =IF(VLOOKUP(C143,'ورودی نیروها'!M$4:Q$1048576,5,FALSE)=0,IF(K143=1,2*L143+2*M143,IF(K143=2,L143+2*M143,IF(K143=3,2*L143+M143,L143+M143))),VLOOKUP(C143,'ورودی نیروها'!M$4:Q$1048576,5,FALSE)) -> 330 | O143: 1498500 | P143: 561937.5 | Q143: 1552500 | R143: 1674000 | S143: 1.333333333 | T143: 30 | U143: 12.5700537 | V143: 0.4625571539 | W143: 0.3405424266 | X143: 340758.6287 | Y143: 282436.9313 | Z143: 29700 | AA143: 8.547373298 | AB143: 0.67997906 | AC143: - | AD143: - | AE143: - | AF143: - | AG143: -
B144: ='ورودی نیروها'!C137 -> BASE | C144: ='ورودی نیروها'!D137 -> 2 | D144: ='ورودی نیروها'!E137 -> ACIS40 | E144: 2 - ACIS40 | F144: =ABS('ورودی نیروها'!H137) -> 165656.64 | G144: =ABS('ورودی نیروها'!I137) -> 852301.518 | H144: =ABS('ورودی نیروها'!J137) -> 797269.431 | I144: =VLOOKUP(C144,'ورودی نیروها'!M$4:P$1000000,2,FALSE) -> 60 | J144: =VLOOKUP(C144,'ورودی نیروها'!M$4:P$1000000,3,FALSE) -> 45 | K144: =VLOOKUP(C144,'ورودی نیروها'!M$4:P$1000000,4,FALSE) -> 2 | L144: 150 | M144: 90 | N144: =IF(VLOOKUP(C144,'ورودی نیروها'!M$4:Q$1048576,5,FALSE)=0,IF(K144=1,2*L144+2*M144,IF(K144=2,L144+2*M144,IF(K144=3,2*L144+M144,L144+M144))),VLOOKUP(C144,'ورودی نیروها'!M$4:Q$1048576,5,FALSE)) -> 330 | O144: 1498500 | P144: 561937.5 | Q144: 1552500 | R144: 1674000 | S144: 1.333333333 | T144: 30 | U144: 12.5700537 | V144: 0.4625571539 | W144: 0.3405424266 | X144: 394238.1644 | Y144: 271504.0667 | Z144: 29700 | AA144: 6.45411591 | AB144: 0.5134517373 | AC144: - | AD144: - | AE144: - | AF144: - | AG144: -
B145: ='ورودی نیروها'!C138 -> BASE | C145: ='ورودی نیروها'!D138 -> 2 | D145: ='ورودی نیروها'!E138 -> ACIS41 | E145: 2 - ACIS41 | F145: =ABS('ورودی نیروها'!H138) -> 278846.29 | G145: =ABS('ورودی نیروها'!I138) -> 1850246.562 | H145: =ABS('ورودی نیروها'!J138) -> 1195544.531 | I145: =VLOOKUP(C145,'ورودی نیروها'!M$4:P$1000000,2,FALSE) -> 60 | J145: =VLOOKUP(C145,'ورودی نیروها'!M$4:P$1000000,3,FALSE) -> 45 | K145: =VLOOKUP(C145,'ورودی نیروها'!M$4:P$1000000,4,FALSE) -> 2 | L145: 150 | M145: 90 | N145: =IF(VLOOKUP(C145,'ورودی نیروها'!M$4:Q$1048576,5,FALSE)=0,IF(K145=1,2*L145+2*M145,IF(K145=2,L145+2*M145,IF(K145=3,2*L145+M145,L145+M145))),VLOOKUP(C145,'ورودی نیروها'!M$4:Q$1048576,5,FALSE)) -> 330 | O145: 1498500 | P145: 561937.5 | Q145: 1552500 | R145: 1674000 | S145: 1.333333333 | T145: 30 | U145: 12.5700537 | V145: 0.4625571539 | W145: 0.3405424266 | X145: 855844.7837 | Y145: 407133.6357 | Z145: 29700 | AA145: 11.17403272 | AB145: 0.8889407309 | AC145: - | AD145: - | AE145: - | AF145: - | AG145: -
B146: ='ورودی نیروها'!C139 -> BASE | C146: ='ورودی نیروها'!D139 -> 2 | D146: ='ورودی نیروها'!E139 -> ACIS42 | E146: 2 - ACIS42 | F146: =ABS('ورودی نیروها'!H139) -> 214059.15 | G146: =ABS('ورودی نیروها'!I139) -> 1734629.421 | H146: =ABS('ورودی نیروها'!J139) -> 1227648.797 | I146: =VLOOKUP(C146,'ورودی نیروها'!M$4:P$1000000,2,FALSE) -> 60 | J146: =VLOOKUP(C146,'ورودی نیروها'!M$4:P$1000000,3,FALSE) -> 45 | K146: =VLOOKUP(C146,'ورودی نیروها'!M$4:P$1000000,4,FALSE) -> 2 | L146: 150 | M146: 90 | N146: =IF(VLOOKUP(C146,'ورودی نیروها'!M$4:Q$1048576,5,FALSE)=0,IF(K146=1,2*L146+2*M146,IF(K146=2,L146+2*M146,IF(K146=3,2*L146+M146,L146+M146))),VLOOKUP(C146,'ورودی نیروها'!M$4:Q$1048576,5,FALSE)) -> 330 | O146: 1498500 | P146: 561937.5 | Q146: 1552500 | R146: 1674000 | S146: 1.333333333 | T146: 30 | U146: 12.5700537 | V146: 0.4625571539 | W146: 0.3405424266 | X146: 802365.248 | Y146: 418066.5003 | Z146: 29700 | AA146: 8.904519741 | AB146: 0.7083915434 | AC146: - | AD146: - | AE146: - | AF146: - | AG146: -
B147: ='ورودی نیروها'!C140 -> BASE | C147: ='ورودی نیروها'!D140 -> 2 | D147: ='ورودی نیروها'!E140 -> ACIS43 | E147: 2 - ACIS43 | F147: =ABS('ورودی نیروها'!H140) -> 256773.23 | G147: =ABS('ورودی نیروها'!I140) -> 1920575.688 | H147: =ABS('ورودی نیروها'!J140) -> 1229828.495 | I147: =VLOOKUP(C147,'ورودی نیروها'!M$4:P$1000000,2,FALSE) -> 60 | J147: =VLOOKUP(C147,'ورودی نیروها'!M$4:P$1000000,3,FALSE) -> 45 | K147: =VLOOKUP(C147,'ورودی نیروها'!M$4:P$1000000,4,FALSE) -> 2 | L147: 150 | M147: 90 | N147: =IF(VLOOKUP(C147,'ورودی نیروها'!M$4:Q$1048576,5,FALSE)=0,IF(K147=1,2*L147+2*M147,IF(K147=2,L147+2*M147,IF(K147=3,2*L147+M147,L147+M147))),VLOOKUP(C147,'ورودی نیروها'!M$4:Q$1048576,5,FALSE)) -> 330 | O147: 1498500 | P147: 561937.5 | Q147: 1552500 | R147: 1674000 | S147: 1.333333333 | T147: 30 | U147: 12.5700537 | V147: 0.4625571539 | W147: 0.3405424266 | X147: 888376.0241 | Y147: 418808.78 | Z147: 29700 | AA147: 10.49624348 | AB147: 0.8350197804 | AC147: - | AD147: - | AE147: - | AF147: - | AG147: -
B148: ='ورودی نیروها'!C141 -> BASE | C148: ='ورودی نیروها'!D141 -> 2 | D148: ='ورودی نیروها'!E141 -> ACIS44 | E148: 2 - ACIS44 | F148: =ABS('ورودی نیروها'!H141) -> 191986.09 | G148: =ABS('ورودی نیروها'!I141) -> 1804958.547 | H148: =ABS('ورودی نیروها'!J141) -> 1197724.229 | I148: =VLOOKUP(C148,'ورودی نیروها'!M$4:P$1000000,2,FALSE) -> 60 | J148: =VLOOKUP(C148,'ورودی نیروها'!M$4:P$1000000,3,FALSE) -> 45 | K148: =VLOOKUP(C148,'ورودی نیروها'!M$4:P$1000000,4,FALSE) -> 2 | L148: 150 | M148: 90 | N148: =IF(VLOOKUP(C148,'ورودی نیروها'!M$4:Q$1048576,5,FALSE)=0,IF(K148=1,2*L148+2*M148,IF(K148=2,L148+2*M148,IF(K148=3,2*L148+M148,L148+M148))),VLOOKUP(C148,'ورودی نیروها'!M$4:Q$1048576,5,FALSE)) -> 330 | O148: 1498500 | P148: 561937.5 | Q148: 1552500 | R148: 1674000 | S148: 1.333333333 | T148: 30 | U148: 12.5700537 | V148: 0.4625571539 | W148: 0.3405424266 | X148: 834896.4884 | Y148: 407875.9153 | Z148: 29700 | AA148: 8.212646291 | AB148: 0.6533501358 | AC148: - | AD148: - | AE148: - | AF148: - | AG148: -
B149: ='ورودی نیروها'!C142 -> BASE | C149: ='ورودی نیروها'!D142 -> 2 | D149: ='ورودی نیروها'!E142 -> ACIS45 | E149: 2 - ACIS45 | F149: =ABS('ورودی نیروها'!H142) -> 245739.44 | G149: =ABS('ورودی نیروها'!I142) -> 932869.551 | H149: =ABS('ورودی نیروها'!J142) -> 1046037.325 | I149: =VLOOKUP(C149,'ورودی نیروها'!M$4:P$1000000,2,FALSE) -> 60 | J149: =VLOOKUP(C149,'ورودی نیروها'!M$4:P$1000000,3,FALSE) -> 45 | K149: =VLOOKUP(C149,'ورودی نیروها'!M$4:P$1000000,4,FALSE) -> 2 | L149: 150 | M149: 90 | N149: =IF(VLOOKUP(C149,'ورودی نیروها'!M$4:Q$1048576,5,FALSE)=0,IF(K149=1,2*L149+2*M149,IF(K149=2,L149+2*M149,IF(K149=3,2*L149+M149,L149+M149))),VLOOKUP(C149,'ورودی نیروها'!M$4:Q$1048576,5,FALSE)) -> 330 | O149: 1498500 | P149: 561937.5 | Q149: 1552500 | R149: 1674000 | S149: 1.333333333 | T149: 30 | U149: 12.5700537 | V149: 0.4625571539 | W149: 0.3405424266 | X149: 431505.4845 | Y149: 356220.089 | Z149: 29700 | AA149: 9.271393302 | AB149: 0.7375778595 | AC149: - | AD149: - | AE149: - | AF149: - | AG149: -
B150: ='ورودی نیروها'!C143 -> BASE | C150: ='ورودی نیروها'!D143 -> 2 | D150: ='ورودی نیروها'!E143 -> ACIS46 | E150: 2 - ACIS46 | F150: =ABS('ورودی نیروها'!H143) -> 180952.3 | G150: =ABS('ورودی نیروها'!I143) -> 1048486.692 | H150: =ABS('ورودی نیروها'!J143) -> 1078141.591 | I150: =VLOOKUP(C150,'ورودی نیروها'!M$4:P$1000000,2,FALSE) -> 60 | J150: =VLOOKUP(C150,'ورودی نیروها'!M$4:P$1000000,3,FALSE) -> 45 | K150: =VLOOKUP(C150,'ورودی نیروها'!M$4:P$1000000,4,FALSE) -> 2 | L150: 150 | M150: 90 | N150: =IF(VLOOKUP(C150,'ورودی نیروها'!M$4:Q$1048576,5,FALSE)=0,IF(K150=1,2*L150+2*M150,IF(K150=2,L150+2*M150,IF(K150=3,2*L150+M150,L150+M150))),VLOOKUP(C150,'ورودی نیروها'!M$4:Q$1048576,5,FALSE)) -> 330 | O150: 1498500 | P150: 561937.5 | Q150: 1552500 | R150: 1674000 | S150: 1.333333333 | T150: 30 | U150: 12.5700537 | V150: 0.4625571539 | W150: 0.3405424266 | X150: 484985.0201 | Y150: 367152.9536 | Z150: 29700 | AA150: 7.192220119 | AB150: 0.572170994 | AC150: - | AD150: - | AE150: - | AF150: - | AG150: -
B151: ='ورودی نیروها'!C144 -> BASE | C151: ='ورودی نیروها'!D144 -> 2 | D151: ='ورودی نیروها'!E144 -> ACIS47 | E151: 2 - ACIS47 | F151: =ABS('ورودی نیروها'!H144) -> 223666.38 | G151: =ABS('ورودی نیروها'!I144) -> 862540.424 | H151: =ABS('ورودی نیروها'!J144) -> 1379335.701 | I151: =VLOOKUP(C151,'ورودی نیروها'!M$4:P$1000000,2,FALSE) -> 60 | J151: =VLOOKUP(C151,'ورودی نیروها'!M$4:P$1000000,3,FALSE) -> 45 | K151: =VLOOKUP(C151,'ورودی نیروها'!M$4:P$1000000,4,FALSE) -> 2 | L151: 150 | M151: 90 | N151: =IF(VLOOKUP(C151,'ورودی نیروها'!M$4:Q$1048576,5,FALSE)=0,IF(K151=1,2*L151+2*M151,IF(K151=2,L151+2*M151,IF(K151=3,2*L151+M151,L151+M151))),VLOOKUP(C151,'ورودی نیروها'!M$4:Q$1048576,5,FALSE)) -> 330 | O151: 1498500 | P151: 561937.5 | Q151: 1552500 | R151: 1674000 | S151: 1.333333333 | T151: 30 | U151: 12.5700537 | V151: 0.4625571539 | W151: 0.3405424266 | X151: 398974.2436 | Y151: 469722.3267 | Z151: 29700 | AA151: 8.543410752 | AB151: 0.6796638229 | AC151: - | AD151: - | AE151: - | AF151: - | AG151: -
B152: ='ورودی نیروها'!C145 -> BASE | C152: ='ورودی نیروها'!D145 -> 2 | D152: ='ورودی نیروها'!E145 -> ACIS48 | E152: 2 - ACIS48 | F152: =ABS('ورودی نیروها'!H145) -> 158879.24 | G152: =ABS('ورودی نیروها'!I145) -> 978157.565 | H152: =ABS('ورودی نیروها'!J145) -> 1347231.435 | I152: =VLOOKUP(C152,'ورودی نیروها'!M$4:P$1000000,2,FALSE) -> 60 | J152: =VLOOKUP(C152,'ورودی نیروها'!M$4:P$1000000,3,FALSE) -> 45 | K152: =VLOOKUP(C152,'ورودی نیروها'!M$4:P$1000000,4,FALSE) -> 2 | L152: 150 | M152: 90 | N152: =IF(VLOOKUP(C152,'ورودی نیروها'!M$4:Q$1048576,5,FALSE)=0,IF(K152=1,2*L152+2*M152,IF(K152=2,L152+2*M152,IF(K152=3,2*L152+M152,L152+M152))),VLOOKUP(C152,'ورودی نیروها'!M$4:Q$1048576,5,FALSE)) -> 330 | O152: 1498500 | P152: 561937.5 | Q152: 1552500 | R152: 1674000 | S152: 1.333333333 | T152: 30 | U152: 12.5700537 | V152: 0.4625571539 | W152: 0.3405424266 | X152: 452453.7793 | Y152: 458789.462 | Z152: 29700 | AA152: 6.450153364 | AB152: 0.5131365003 | AC152: - | AD152: - | AE152: - | AF152: - | AG152: -
B153: ='ورودی نیروها'!C146 -> BASE | C153: ='ورودی نیروها'!D146 -> 2 | D153: ='ورودی نیروها'!E146 -> ACIS49 | E153: 2 - ACIS49 | F153: =ABS('ورودی نیروها'!H146) -> 211995.23 | G153: =ABS('ورودی نیروها'!I146) -> 586846.473 | H153: =ABS('ورودی نیروها'!J146) -> 3897852.9 | I153: =VLOOKUP(C153,'ورودی نیروها'!M$4:P$1000000,2,FALSE) -> 60 | J153: =VLOOKUP(C153,'ورودی نیروها'!M$4:P$1000000,3,FALSE) -> 45 | K153: =VLOOKUP(C153,'ورودی نیروها'!M$4:P$1000000,4,FALSE) -> 2 | L153: 150 | M153: 90 | N153: =IF(VLOOKUP(C153,'ورودی نیروها'!M$4:Q$1048576,5,FALSE)=0,IF(K153=1,2*L153+2*M153,IF(K153=2,L153+2*M153,IF(K153=3,2*L153+M153,L153+M153))),VLOOKUP(C153,'ورودی نیروها'!M$4:Q$1048576,5,FALSE)) -> 330 | O153: 1498500 | P153: 561937.5 | Q153: 1552500 | R153: 1674000 | S153: 1.333333333 | T153: 30 | U153: 12.5700537 | V153: 0.4625571539 | W153: 0.3405424266 | X153: 271450.0343 | Y153: 1327384.285 | Z153: 29700 | AA153: 8.475945361 | AB153: 0.6742966708 | AC153: - | AD153: - | AE153: - | AF153: - | AG153: -
B154: ='ورودی نیروها'!C147 -> BASE | C154: ='ورودی نیروها'!D147 -> 2 | D154: ='ورودی نیروها'!E147 -> ACIS50 | E154: 2 - ACIS50 | F154: =ABS('ورودی نیروها'!H147) -> 147208.09 | G154: =ABS('ورودی نیروها'!I147) -> 471229.332 | H154: =ABS('ورودی نیروها'!J147) -> 3929957.16 | I154: =VLOOKUP(C154,'ورودی نیروها'!M$4:P$1000000,2,FALSE) -> 60 | J154: =VLOOKUP(C154,'ورودی نیروها'!M$4:P$1000000,3,FALSE) -> 45 | K154: =VLOOKUP(C154,'ورودی نیروها'!M$4:P$1000000,4,FALSE) -> 2 | L154: 150 | M154: 90 | N154: =IF(VLOOKUP(C154,'ورودی نیروها'!M$4:Q$1048576,5,FALSE)=0,IF(K154=1,2*L154+2*M154,IF(K154=2,L154+2*M154,IF(K154=3,2*L154+M154,L154+M154))),VLOOKUP(C154,'ورودی نیروها'!M$4:Q$1048576,5,FALSE)) -> 330 | O154: 1498500 | P154: 561937.5 | Q154: 1552500 | R154: 1674000 | S154: 1.333333333 | T154: 30 | U154: 12.5700537 | V154: 0.4625571539 | W154: 0.3405424266 | X154: 217970.4986 | Y154: 1338317.148 | Z154: 29700 | AA154: 6.206432377 | AB154: 0.4937474832 | AC154: - | AD154: - | AE154: - | AF154: - | AG154: -
B155: ='ورودی نیروها'!C148 -> BASE | C155: ='ورودی نیروها'!D148 -> 2 | D155: ='ورودی نیروها'!E148 -> ACIS51 | E155: 2 - ACIS51 | F155: =ABS('ورودی نیروها'!H148) -> 204096.39 | G155: =ABS('ورودی نیروها'!I148) -> 210331.547 | H155: =ABS('ورودی نیروها'!J148) -> 4017989.34 | I155: =VLOOKUP(C155,'ورودی نیروها'!M$4:P$1000000,2,FALSE) -> 60 | J155: =VLOOKUP(C155,'ورودی نیروها'!M$4:P$1000000,3,FALSE) -> 45 | K155: =VLOOKUP(C155,'ورودی نیروها'!M$4:P$1000000,4,FALSE) -> 2 | L155: 150 | M155: 90 | N155: =IF(VLOOKUP(C155,'ورودی نیروها'!M$4:Q$1048576,5,FALSE)=0,IF(K155=1,2*L155+2*M155,IF(K155=2,L155+2*M155,IF(K155=3,2*L155+M155,L155+M155))),VLOOKUP(C155,'ورودی نیروها'!M$4:Q$1048576,5,FALSE)) -> 330 | O155: 1498500 | P155: 561937.5 | Q155: 1552500 | R155: 1674000 | S155: 1.333333333 | T155: 30 | U155: 12.5700537 | V155: 0.4625571539 | W155: 0.3405424266 | X155: 97290.36175 | Y155: 1368295.84 | Z155: 29700 | AA155: 7.926416077 | AB155: 0.630579333 | AC155: - | AD155: - | AE155: - | AF155: - | AG155: -
B156: ='ورودی نیروها'!C149 -> BASE | C156: ='ورودی نیروها'!D149 -> 2 | D156: ='ورودی نیروها'!E149 -> ACIS52 | E156: 2 - ACIS52 | F156: =ABS('ورودی نیروها'!H149) -> 139309.25 | G156: =ABS('ورودی نیروها'!I149) -> 325948.688 | H156: =ABS('ورودی نیروها'!J149) -> 4050093.6 | I156: =VLOOKUP(C156,'ورودی نیروها'!M$4:P$1000000,2,FALSE) -> 60 | J156: =VLOOKUP(C156,'ورودی نیروها'!M$4:P$1000000,3,FALSE) -> 45 | K156: =VLOOKUP(C156,'ورودی نیروها'!M$4:P$1000000,4,FALSE) -> 2 | L156: 150 | M156: 90 | N156: =IF(VLOOKUP(C156,'ورودی نیروها'!M$4:Q$1048576,5,FALSE)=0,IF(K156=1,2*L156+2*M156,IF(K156=2,L156+2*M156,IF(K156=3,2*L156+M156,L156+M156))),VLOOKUP(C156,'ورودی نیروها'!M$4:Q$1048576,5,FALSE)) -> 330 | O156: 1498500 | P156: 561937.5 | Q156: 1552500 | R156: 1674000 | S156: 1.333333333 | T156: 30 | U156: 12.5700537 | V156: 0.4625571539 | W156: 0.3405424266 | X156: 150769.8974 | Y156: 1379228.702 | Z156: 29700 | AA156: 5.847242894 | AB156: 0.4651724673 | AC156: - | AD156: - | AE156: - | AF156: - | AG156: -
B157: ='ورودی نیروها'!C150 -> BASE | C157: ='ورودی نیروها'!D150 -> 2 | D157: ='ورودی نیروها'!E150 -> ACIS54 | E157: 2 - ACIS54 | F157: =ABS('ورودی نیروها'!H150) -> 138418.36 | G157: =ABS('ورودی نیروها'!I150) -> 821276.895 | H157: =ABS('ورودی نیروها'!J150) -> 4186723.856 | I157: =VLOOKUP(C157,'ورودی نیروها'!M$4:P$1000000,2,FALSE) -> 60 | J157: =VLOOKUP(C157,'ورودی نیروها'!M$4:P$1000000,3,FALSE) -> 45 | K157: =VLOOKUP(C157,'ورودی نیروها'!M$4:P$1000000,4,FALSE) -> 2 | L157: 150 | M157: 90 | N157: =IF(VLOOKUP(C157,'ورودی نیروها'!M$4:Q$1048576,5,FALSE)=0,IF(K157=1,2*L157+2*M157,IF(K157=2,L157+2*M157,IF(K157=3,2*L157+M157,L157+M157))),VLOOKUP(C157,'ورودی نیروها'!M$4:Q$1048576,5,FALSE)) -> 330 | O157: 1498500 | P157: 561937.5 | Q157: 1552500 | R157: 1674000 | S157: 1.333333333 | T157: 30 | U157: 12.5700537 | V157: 0.4625571539 | W157: 0.3405424266 | X157: 379887.5031 | Y157: 1425757.101 | Z157: 29700 | AA157: 6.254944496 | AB157: 0.4976068238 | AC157: - | AD157: - | AE157: - | AF157: - | AG157: -
B158: ='ورودی نیروها'!C151 -> BASE | C158: ='ورودی نیروها'!D151 -> 2 | D158: ='ورودی نیروها'!E151 -> ACIS55 | E158: 2 - ACIS55 | F158: =ABS('ورودی نیروها'!H151) -> 130519.53 | G158: =ABS('ورودی نیروها'!I151) -> 24098.875 | H158: =ABS('ورودی نیروها'!J151) -> 4066587.417 | I158: =VLOOKUP(C158,'ورودی نیروها'!M$4:P$1000000,2,FALSE) -> 60 | J158: =VLOOKUP(C158,'ورودی نیروها'!M$4:P$1000000,3,FALSE) -> 45 | K158: =VLOOKUP(C158,'ورودی نیروها'!M$4:P$1000000,4,FALSE) -> 2 | L158: 150 | M158: 90 | N158: =IF(VLOOKUP(C158,'ورودی نیروها'!M$4:Q$1048576,5,FALSE)=0,IF(K158=1,2*L158+2*M158,IF(K158=2,L158+2*M158,IF(K158=3,2*L158+M158,L158+M158))),VLOOKUP(C158,'ورودی نیروها'!M$4:Q$1048576,5,FALSE)) -> 330 | O158: 1498500 | P158: 561937.5 | Q158: 1552500 | R158: 1674000 | S158: 1.333333333 | T158: 30 | U158: 12.5700537 | V158: 0.4625571539 | W158: 0.3405424266 | X158: 11147.10703 | Y158: 1384845.547 | Z158: 29700 | AA158: 5.3064439 | AB158: 0.4221496604 | AC158: - | AD158: - | AE158: - | AF158: - | AG158: -
B159: ='ورودی نیروها'!C152 -> BASE | C159: ='ورودی نیروها'!D152 -> 2 | D159: ='ورودی نیروها'!E152 -> ACIS56 | E159: 2 - ACIS56 | F159: =ABS('ورودی نیروها'!H152) -> 65732.39 | G159: =ABS('ورودی نیروها'!I152) -> 91518.266 | H159: =ABS('ورودی نیروها'!J152) -> 4034483.152 | I159: =VLOOKUP(C159,'ورودی نیروها'!M$4:P$1000000,2,FALSE) -> 60 | J159: =VLOOKUP(C159,'ورودی نیروها'!M$4:P$1000000,3,FALSE) -> 45 | K159: =VLOOKUP(C159,'ورودی نیروها'!M$4:P$1000000,4,FALSE) -> 2 | L159: 150 | M159: 90 | N159: =IF(VLOOKUP(C159,'ورودی نیروها'!M$4:Q$1048576,5,FALSE)=0,IF(K159=1,2*L159+2*M159,IF(K159=2,L159+2*M159,IF(K159=3,2*L159+M159,L159+M159))),VLOOKUP(C159,'ورودی نیروها'!M$4:Q$1048576,5,FALSE)) -> 330 | O159: 1498500 | P159: 561937.5 | Q159: 1552500 | R159: 1674000 | S159: 1.333333333 | T159: 30 | U159: 12.5700537 | V159: 0.4625571539 | W159: 0.3405424266 | X159: 42332.42865 | Y159: 1373912.683 | Z159: 29700 | AA159: 3.17351268 | AB159: 0.2524661195 | AC159: - | AD159: - | AE159: - | AF159: - | AG159: -
B160: ='ورودی نیروها'!C153 -> BASE | C160: ='ورودی نیروها'!D153 -> 2 | D160: ='ورودی نیروها'!E153 -> ACIS57 | E160: 2 - ACIS57 | F160: =ABS('ورودی نیروها'!H153) -> 214902.6 | G160: =ABS('ورودی نیروها'!I153) -> 640970.595 | H160: =ABS('ورودی نیروها'!J153) -> 4134359.97 | I160: =VLOOKUP(C160,'ورودی نیروها'!M$4:P$1000000,2,FALSE) -> 60 | J160: =VLOOKUP(C160,'ورودی نیروها'!M$4:P$1000000,3,FALSE) -> 45 | K160: =VLOOKUP(C160,'ورودی نیروها'!M$4:P$1000000,4,FALSE) -> 2 | L160: 150 | M160: 90 | N160: =IF(VLOOKUP(C160,'ورودی نیروها'!M$4:Q$1048576,5,FALSE)=0,IF(K160=1,2*L160+2*M160,IF(K160=2,L160+2*M160,IF(K160=3,2*L160+M160,L160+M160))),VLOOKUP(C160,'ورودی نیروها'!M$4:Q$1048576,5,FALSE)) -> 330 | O160: 1498500 | P160: 561937.5 | Q160: 1552500 | R160: 1674000 | S160: 1.333333333 | T160: 30 | U160: 12.5700537 | V160: 0.4625571539 | W160: 0.3405424266 | X160: 296485.5342 | Y160: 1407924.977 | Z160: 29700 | AA160: 8.670266776 | AB160: 0.6897557468 | AC160: - | AD160: - | AE160: - | AF160: - | AG160: -
B161: ='ورودی نیروها'!C154 -> BASE | C161: ='ورودی نیروها'!D154 -> 2 | D161: ='ورودی نیروها'!E154 -> ACIS58 | E161: 2 - ACIS58 | F161: =ABS('ورودی نیروها'!H154) -> 150115.46 | G161: =ABS('ورودی نیروها'!I154) -> 525353.454 | H161: =ABS('ورودی نیروها'!J154) -> 4166464.24 | I161: =VLOOKUP(C161,'ورودی نیروها'!M$4:P$1000000,2,FALSE) -> 60 | J161: =VLOOKUP(C161,'ورودی نیروها'!M$4:P$1000000,3,FALSE) -> 45 | K161: =VLOOKUP(C161,'ورودی نیروها'!M$4:P$1000000,4,FALSE) -> 2 | L161: 150 | M161: 90 | N161: =IF(VLOOKUP(C161,'ورودی نیروها'!M$4:Q$1048576,5,FALSE)=0,IF(K161=1,2*L161+2*M161,IF(K161=2,L161+2*M161,IF(K161=3,2*L161+M161,L161+M161))),VLOOKUP(C161,'ورودی نیروها'!M$4:Q$1048576,5,FALSE)) -> 330 | O161: 1498500 | P161: 561937.5 | Q161: 1552500 | R161: 1674000 | S161: 1.333333333 | T161: 30 | U161: 12.5700537 | V161: 0.4625571539 | W161: 0.3405424266 | X161: 243005.9985 | Y161: 1418857.843 | Z161: 29700 | AA161: 6.400753795 | AB161: 0.5092065593 | AC161: - | AD161: - | AE161: - | AF161: - | AG161: -
B162: ='ورودی نیروها'!C155 -> BASE | C162: ='ورودی نیروها'!D155 -> 2 | D162: ='ورودی نیروها'!E155 -> ACIS59 | E162: 2 - ACIS59 | F162: =ABS('ورودی نیروها'!H155) -> 207003.76 | G162: =ABS('ورودی نیروها'!I155) -> 156207.425 | H162: =ABS('ورودی نیروها'!J155) -> 4254496.41 | I162: =VLOOKUP(C162,'ورودی نیروها'!M$4:P$1000000,2,FALSE) -> 60 | J162: =VLOOKUP(C162,'ورودی نیروها'!M$4:P$1000000,3,FALSE) -> 45 | K162: =VLOOKUP(C162,'ورودی نیروها'!M$4:P$1000000,4,FALSE) -> 2 | L162: 150 | M162: 90 | N162: =IF(VLOOKUP(C162,'ورودی نیروها'!M$4:Q$1048576,5,FALSE)=0,IF(K162=1,2*L162+2*M162,IF(K162=2,L162+2*M162,IF(K162=3,2*L162+M162,L162+M162))),VLOOKUP(C162,'ورودی نیروها'!M$4:Q$1048576,5,FALSE)) -> 330 | O162: 1498500 | P162: 561937.5 | Q162: 1552500 | R162: 1674000 | S162: 1.333333333 | T162: 30 | U162: 12.5700537 | V162: 0.4625571539 | W162: 0.3405424266 | X162: 72254.86192 | Y162: 1448836.531 | Z162: 29700 | AA162: 8.031633278 | AB162: 0.6389497985 | AC162: - | AD162: - | AE162: - | AF162: - | AG162: -
B163: ='ورودی نیروها'!C156 -> BASE | C163: ='ورودی نیروها'!D156 -> 2 | D163: ='ورودی نیروها'!E156 -> ACIS60 | E163: 2 - ACIS60 | F163: =ABS('ورودی نیروها'!H156) -> 142216.62 | G163: =ABS('ورودی نیروها'!I156) -> 271824.566 | H163: =ABS('ورودی نیروها'!J156) -> 4286600.67 | I163: =VLOOKUP(C163,'ورودی نیروها'!M$4:P$1000000,2,FALSE) -> 60 | J163: =VLOOKUP(C163,'ورودی نیروها'!M$4:P$1000000,3,FALSE) -> 45 | K163: =VLOOKUP(C163,'ورودی نیروها'!M$4:P$1000000,4,FALSE) -> 2 | L163: 150 | M163: 90 | N163: =IF(VLOOKUP(C163,'ورودی نیروها'!M$4:Q$1048576,5,FALSE)=0,IF(K163=1,2*L163+2*M163,IF(K163=2,L163+2*M163,IF(K163=3,2*L163+M163,L163+M163))),VLOOKUP(C163,'ورودی نیروها'!M$4:Q$1048576,5,FALSE)) -> 330 | O163: 1498500 | P163: 561937.5 | Q163: 1552500 | R163: 1674000 | S163: 1.333333333 | T163: 30 | U163: 12.5700537 | V163: 0.4625571539 | W163: 0.3405424266 | X163: 125734.3976 | Y163: 1459769.394 | Z163: 29700 | AA163: 5.952460094 | AB163: 0.4735429328 | AC163: - | AD163: - | AE163: - | AF163: - | AG163: -
B164: ='ورودی نیروها'!C157 -> BASE | C164: ='ورودی نیروها'!D157 -> 2 | D164: ='ورودی نیروها'!E157 -> ACIS61 | E164: 2 - ACIS61 | F164: =ABS('ورودی نیروها'!H157) -> 135511 | G164: =ABS('ورودی نیروها'!I157) -> 767152.773 | H164: =ABS('ورودی نیروها'!J157) -> 4423230.929 | I164: =VLOOKUP(C164,'ورودی نیروها'!M$4:P$1000000,2,FALSE) -> 60 | J164: =VLOOKUP(C164,'ورودی نیروها'!M$4:P$1000000,3,FALSE) -> 45 | K164: =VLOOKUP(C164,'ورودی نیروها'!M$4:P$1000000,4,FALSE) -> 2 | L164: 150 | M164: 90 | N164: =IF(VLOOKUP(C164,'ورودی نیروها'!M$4:Q$1048576,5,FALSE)=0,IF(K164=1,2*L164+2*M164,IF(K164=2,L164+2*M164,IF(K164=3,2*L164+M164,L164+M164))),VLOOKUP(C164,'ورودی نیروها'!M$4:Q$1048576,5,FALSE)) -> 330 | O164: 1498500 | P164: 561937.5 | Q164: 1552500 | R164: 1674000 | S164: 1.333333333 | T164: 30 | U164: 12.5700537 | V164: 0.4625571539 | W164: 0.3405424266 | X164: 354852.0033 | Y164: 1506297.794 | Z164: 29700 | AA164: 6.164379543 | AB164: 0.4904020055 | AC164: - | AD164: - | AE164: - | AF164: - | AG164: -
B165: ='ورودی نیروها'!C158 -> BASE | C165: ='ورودی نیروها'!D158 -> 2 | D165: ='ورودی نیروها'!E158 -> ACIS62 | E165: 2 - ACIS62 | F165: =ABS('ورودی نیروها'!H158) -> 70723.86 | G165: =ABS('ورودی نیروها'!I158) -> 651535.632 | H165: =ABS('ورودی نیروها'!J158) -> 4391126.663 | I165: =VLOOKUP(C165,'ورودی نیروها'!M$4:P$1000000,2,FALSE) -> 60 | J165: =VLOOKUP(C165,'ورودی نیروها'!M$4:P$1000000,3,FALSE) -> 45 | K165: =VLOOKUP(C165,'ورودی نیروها'!M$4:P$1000000,4,FALSE) -> 2 | L165: 150 | M165: 90 | N165: =IF(VLOOKUP(C165,'ورودی نیروها'!M$4:Q$1048576,5,FALSE)=0,IF(K165=1,2*L165+2*M165,IF(K165=2,L165+2*M165,IF(K165=3,2*L165+M165,L165+M165))),VLOOKUP(C165,'ورودی نیروها'!M$4:Q$1048576,5,FALSE)) -> 330 | O165: 1498500 | P165: 561937.5 | Q165: 1552500 | R165: 1674000 | S165: 1.333333333 | T165: 30 | U165: 12.5700537 | V165: 0.4625571539 | W165: 0.3405424266 | X165: 301372.4676 | Y165: 1495364.929 | Z165: 29700 | AA165: 3.880782355 | AB165: 0.3087323609 | AC165: - | AD165: - | AE165: - | AF165: - | AG165: -
B166: ='ورودی نیروها'!C159 -> BASE | C166: ='ورودی نیروها'!D159 -> 2 | D166: ='ورودی نیروها'!E159 -> ACIS64 | E166: 2 - ACIS64 | F166: =ABS('ورودی نیروها'!H159) -> 127612.16 | G166: =ABS('ورودی نیروها'!I159) -> 30025.246 | H166: =ABS('ورودی نیروها'!J159) -> 4303094.49 | I166: =VLOOKUP(C166,'ورودی نیروها'!M$4:P$1000000,2,FALSE) -> 60 | J166: =VLOOKUP(C166,'ورودی نیروها'!M$4:P$1000000,3,FALSE) -> 45 | K166: =VLOOKUP(C166,'ورودی نیروها'!M$4:P$1000000,4,FALSE) -> 2 | L166: 150 | M166: 90 | N166: =IF(VLOOKUP(C166,'ورودی نیروها'!M$4:Q$1048576,5,FALSE)=0,IF(K166=1,2*L166+2*M166,IF(K166=2,L166+2*M166,IF(K166=3,2*L166+M166,L166+M166))),VLOOKUP(C166,'ورودی نیروها'!M$4:Q$1048576,5,FALSE)) -> 330 | O166: 1498500 | P166: 561937.5 | Q166: 1552500 | R166: 1674000 | S166: 1.333333333 | T166: 30 | U166: 12.5700537 | V166: 0.4625571539 | W166: 0.3405424266 | X166: 13888.39233 | Y166: 1465386.239 | Z166: 29700 | AA166: 5.265308991 | AB166: 0.4188772075 | AC166: - | AD166: - | AE166: - | AF166: - | AG166: -
B167: ='ورودی نیروها'!C160 -> BASE | C167: ='ورودی نیروها'!D160 -> 2 | D167: ='ورودی نیروها'!E160 -> ACIS65 | E167: 2 - ACIS65 | F167: =ABS('ورودی نیروها'!H160) -> 209087.86 | G167: =ABS('ورودی نیروها'!I160) -> 532722.351 | H167: =ABS('ورودی نیروها'!J160) -> 3661345.82 | I167: =VLOOKUP(C167,'ورودی نیروها'!M$4:P$1000000,2,FALSE) -> 60 | J167: =VLOOKUP(C167,'ورودی نیروها'!M$4:P$1000000,3,FALSE) -> 45 | K167: =VLOOKUP(C167,'ورودی نیروها'!M$4:P$1000000,4,FALSE) -> 2 | L167: 150 | M167: 90 | N167: =IF(VLOOKUP(C167,'ورودی نیروها'!M$4:Q$1048576,5,FALSE)=0,IF(K167=1,2*L167+2*M167,IF(K167=2,L167+2*M167,IF(K167=3,2*L167+M167,L167+M167))),VLOOKUP(C167,'ورودی نیروها'!M$4:Q$1048576,5,FALSE)) -> 330 | O167: 1498500 | P167: 561937.5 | Q167: 1552500 | R167: 1674000 | S167: 1.333333333 | T167: 30 | U167: 12.5700537 | V167: 0.4625571539 | W167: 0.3405424266 | X167: 246414.5345 | Y167: 1246843.59 | Z167: 29700 | AA167: 8.281623943 | AB167: 0.6588375946 | AC167: - | AD167: - | AE167: - | AF167: - | AG167: -
B168: ='ورودی نیروها'!C161 -> BASE | C168: ='ورودی نیروها'!D161 -> 2 | D168: ='ورودی نیروها'!E161 -> ACIS67 | E168: 2 - ACIS67 | F168: =ABS('ورودی نیروها'!H161) -> 144300.72 | G168: =ABS('ورودی نیروها'!I161) -> 417105.21 | H168: =ABS('ورودی نیروها'!J161) -> 3693450.09 | I168: =VLOOKUP(C168,'ورودی نیروها'!M$4:P$1000000,2,FALSE) -> 60 | J168: =VLOOKUP(C168,'ورودی نیروها'!M$4:P$1000000,3,FALSE) -> 45 | K168: =VLOOKUP(C168,'ورودی نیروها'!M$4:P$1000000,4,FALSE) -> 2 | L168: 150 | M168: 90 | N168: =IF(VLOOKUP(C168,'ورودی نیروها'!M$4:Q$1048576,5,FALSE)=0,IF(K168=1,2*L168+2*M168,IF(K168=2,L168+2*M168,IF(K168=3,2*L168+M168,L168+M168))),VLOOKUP(C168,'ورودی نیروها'!M$4:Q$1048576,5,FALSE)) -> 330 | O168: 1498500 | P168: 561937.5 | Q168: 1552500 | R168: 1674000 | S168: 1.333333333 | T168: 30 | U168: 12.5700537 | V168: 0.4625571539 | W168: 0.3405424266 | X168: 192934.9988 | Y168: 1257776.456 | Z168: 29700 | AA168: 6.012110962 | AB168: 0.4782884072 | AC168: - | AD168: - | AE168: - | AF168: - | AG168: -
B169: ='ورودی نیروها'!C162 -> BASE | C169: ='ورودی نیروها'!D162 -> 2 | D169: ='ورودی نیروها'!E162 -> ACIS68 | E169: 2 - ACIS68 | F169: =ABS('ورودی نیروها'!H162) -> 136401.89 | G169: =ABS('ورودی نیروها'!I162) -> 380072.81 | H169: =ABS('ورودی نیروها'!J162) -> 3813586.53 | I169: =VLOOKUP(C169,'ورودی نیروها'!M$4:P$1000000,2,FALSE) -> 60 | J169: =VLOOKUP(C169,'ورودی نیروها'!M$4:P$1000000,3,FALSE) -> 45 | K169: =VLOOKUP(C169,'ورودی نیروها'!M$4:P$1000000,4,FALSE) -> 2 | L169: 150 | M169: 90 | N169: =IF(VLOOKUP(C169,'ورودی نیروها'!M$4:Q$1048576,5,FALSE)=0,IF(K169=1,2*L169+2*M169,IF(K169=2,L169+2*M169,IF(K169=3,2*L169+M169,L169+M169))),VLOOKUP(C169,'ورودی نیروها'!M$4:Q$1048576,5,FALSE)) -> 330 | O169: 1498500 | P169: 561937.5 | Q169: 1552500 | R169: 1674000 | S169: 1.333333333 | T169: 30 | U169: 12.5700537 | V169: 0.4625571539 | W169: 0.3405424266 | X169: 175805.3973 | Y169: 1298688.011 | Z169: 29700 | AA169: 5.74202603 | AB169: 0.4568020286 | AC169: - | AD169: - | AE169: - | AF169: - | AG169: -
B170: ='ورودی نیروها'!C163 -> BASE | C170: ='ورودی نیروها'!D163 -> 2 | D170: ='ورودی نیروها'!E163 -> ACIS69 | E170: 2 - ACIS69 | F170: =ABS('ورودی نیروها'!H163) -> 141325.73 | G170: =ABS('ورودی نیروها'!I163) -> 875401.017 | H170: =ABS('ورودی نیروها'!J163) -> 3950216.784 | I170: =VLOOKUP(C170,'ورودی نیروها'!M$4:P$1000000,2,FALSE) -> 60 | J170: =VLOOKUP(C170,'ورودی نیروها'!M$4:P$1000000,3,FALSE) -> 45 | K170: =VLOOKUP(C170,'ورودی نیروها'!M$4:P$1000000,4,FALSE) -> 2 | L170: 150 | M170: 90 | N170: =IF(VLOOKUP(C170,'ورودی نیروها'!M$4:Q$1048576,5,FALSE)=0,IF(K170=1,2*L170+2*M170,IF(K170=2,L170+2*M170,IF(K170=3,2*L170+M170,L170+M170))),VLOOKUP(C170,'ورودی نیروها'!M$4:Q$1048576,5,FALSE)) -> 330 | O170: 1498500 | P170: 561937.5 | Q170: 1552500 | R170: 1674000 | S170: 1.333333333 | T170: 30 | U170: 12.5700537 | V170: 0.4625571539 | W170: 0.3405424266 | X170: 404923.0029 | Y170: 1345216.409 | Z170: 29700 | AA170: 6.345509787 | AB170: 0.504811669 | AC170: - | AD170: - | AE170: - | AF170: - | AG170: -
B171: ='ورودی نیروها'!C164 -> BASE | C171: ='ورودی نیروها'!D164 -> 2 | D171: ='ورودی نیروها'!E164 -> ACIS70 | E171: 2 - ACIS70 | F171: =ABS('ورودی نیروها'!H164) -> 76538.59 | G171: =ABS('ورودی نیروها'!I164) -> 759783.876 | H171: =ABS('ورودی نیروها'!J164) -> 3918112.519 | I171: =VLOOKUP(C171,'ورودی نیروها'!M$4:P$1000000,2,FALSE) -> 60 | J171: =VLOOKUP(C171,'ورودی نیروها'!M$4:P$1000000,3,FALSE) -> 45 | K171: =VLOOKUP(C171,'ورودی نیروها'!M$4:P$1000000,4,FALSE) -> 2 | L171: 150 | M171: 90 | N171: =IF(VLOOKUP(C171,'ورودی نیروها'!M$4:Q$1048576,5,FALSE)=0,IF(K171=1,2*L171+2*M171,IF(K171=2,L171+2*M171,IF(K171=3,2*L171+M171,L171+M171))),VLOOKUP(C171,'ورودی نیروها'!M$4:Q$1048576,5,FALSE)) -> 330 | O171: 1498500 | P171: 561937.5 | Q171: 1552500 | R171: 1674000 | S171: 1.333333333 | T171: 30 | U171: 12.5700537 | V171: 0.4625571539 | W171: 0.3405424266 | X171: 351443.4673 | Y171: 1334283.545 | Z171: 29700 | AA171: 4.061912599 | AB171: 0.3231420244 | AC171: - | AD171: - | AE171: - | AF171: - | AG171: -
B172: ='ورودی نیروها'!C165 -> BASE | C172: ='ورودی نیروها'!D165 -> 2 | D172: ='ورودی نیروها'!E165 -> ACIS71 | E172: 2 - ACIS71 | F172: =ABS('ورودی نیروها'!H165) -> 133426.9 | G172: =ABS('ورودی نیروها'!I165) -> 78222.997 | H172: =ABS('ورودی نیروها'!J165) -> 3830080.345 | I172: =VLOOKUP(C172,'ورودی نیروها'!M$4:P$1000000,2,FALSE) -> 60 | J172: =VLOOKUP(C172,'ورودی نیروها'!M$4:P$1000000,3,FALSE) -> 45 | K172: =VLOOKUP(C172,'ورودی نیروها'!M$4:P$1000000,4,FALSE) -> 2 | L172: 150 | M172: 90 | N172: =IF(VLOOKUP(C172,'ورودی نیروها'!M$4:Q$1048576,5,FALSE)=0,IF(K172=1,2*L172+2*M172,IF(K172=2,L172+2*M172,IF(K172=3,2*L172+M172,L172+M172))),VLOOKUP(C172,'ورودی نیروها'!M$4:Q$1048576,5,FALSE)) -> 330 | O172: 1498500 | P172: 561937.5 | Q172: 1552500 | R172: 1674000 | S172: 1.333333333 | T172: 30 | U172: 12.5700537 | V172: 0.4625571539 | W172: 0.3405424266 | X172: 36182.60686 | Y172: 1304304.855 | Z172: 29700 | AA172: 5.39700919 | AB172: 0.4293545055 | AC172: - | AD172: - | AE172: - | AF172: - | AG172: -
B173: ='ورودی نیروها'!C166 -> BASE | C173: ='ورودی نیروها'!D166 -> 2 | D173: ='ورودی نیروها'!E166 -> ACIS72 | E173: 2 - ACIS72 | F173: =ABS('ورودی نیروها'!H166) -> 68639.76 | G173: =ABS('ورودی نیروها'!I166) -> 37394.144 | H173: =ABS('ورودی نیروها'!J166) -> 3797976.079 | I173: =VLOOKUP(C173,'ورودی نیروها'!M$4:P$1000000,2,FALSE) -> 60 | J173: =VLOOKUP(C173,'ورودی نیروها'!M$4:P$1000000,3,FALSE) -> 45 | K173: =VLOOKUP(C173,'ورودی نیروها'!M$4:P$1000000,4,FALSE) -> 2 | L173: 150 | M173: 90 | N173: =IF(VLOOKUP(C173,'ورودی نیروها'!M$4:Q$1048576,5,FALSE)=0,IF(K173=1,2*L173+2*M173,IF(K173=2,L173+2*M173,IF(K173=3,2*L173+M173,L173+M173))),VLOOKUP(C173,'ورودی نیروها'!M$4:Q$1048576,5,FALSE)) -> 330 | O173: 1498500 | P173: 561937.5 | Q173: 1552500 | R173: 1674000 | S173: 1.333333333 | T173: 30 | U173: 12.5700537 | V173: 0.4625571539 | W173: 0.3405424266 | X173: 17296.92882 | Y173: 1293371.99 | Z173: 29700 | AA173: 3.174973756 | AB173: 0.2525823542 | AC173: - | AD173: - | AE173: - | AF173: - | AG173: -
B174: ='ورودی نیروها'!C167 -> BASE | C174: ='ورودی نیروها'!D167 -> 2 | D174: ='ورودی نیروها'!E167 -> ACIS73 | E174: 2 - ACIS73 | F174: =ABS('ورودی نیروها'!H167) -> 195458.63 | G174: =ABS('ورودی نیروها'!I167) -> 1598938.144 | H174: =ABS('ورودی نیروها'!J167) -> 928091.854 | I174: =VLOOKUP(C174,'ورودی نیروها'!M$4:P$1000000,2,FALSE) -> 60 | J174: =VLOOKUP(C174,'ورودی نیروها'!M$4:P$1000000,3,FALSE) -> 45 | K174: =VLOOKUP(C174,'ورودی نیروها'!M$4:P$1000000,4,FALSE) -> 2 | L174: 150 | M174: 90 | N174: =IF(VLOOKUP(C174,'ورودی نیروها'!M$4:Q$1048576,5,FALSE)=0,IF(K174=1,2*L174+2*M174,IF(K174=2,L174+2*M174,IF(K174=3,2*L174+M174,L174+M174))),VLOOKUP(C174,'ورودی نیروها'!M$4:Q$1048576,5,FALSE)) -> 330 | O174: 1498500 | P174: 561937.5 | Q174: 1552500 | R174: 1674000 | S174: 1.333333333 | T174: 30 | U174: 12.5700537 | V174: 0.4625571539 | W174: 0.3405424266 | X174: 739600.2771 | Y174: 316054.6521 | Z174: 29700 | AA174: 8.100837627 | AB174: 0.644455292 | AC174: - | AD174: - | AE174: - | AF174: - | AG174: -
B175: ='ورودی نیروها'!C168 -> BASE | C175: ='ورودی نیروها'!D168 -> 2 | D175: ='ورودی نیروها'!E168 -> ACIS74 | E175: 2 - ACIS74 | F175: =ABS('ورودی نیروها'!H168) -> 130671.49 | G175: =ABS('ورودی نیروها'!I168) -> 1483321.003 | H175: =ABS('ورودی نیروها'!J168) -> 960196.12 | I175: =VLOOKUP(C175,'ورودی نیروها'!M$4:P$1000000,2,FALSE) -> 60 | J175: =VLOOKUP(C175,'ورودی نیروها'!M$4:P$1000000,3,FALSE) -> 45 | K175: =VLOOKUP(C175,'ورودی نیروها'!M$4:P$1000000,4,FALSE) -> 2 | L175: 150 | M175: 90 | N175: =IF(VLOOKUP(C175,'ورودی نیروها'!M$4:Q$1048576,5,FALSE)=0,IF(K175=1,2*L175+2*M175,IF(K175=2,L175+2*M175,IF(K175=3,2*L175+M175,L175+M175))),VLOOKUP(C175,'ورودی نیروها'!M$4:Q$1048576,5,FALSE)) -> 330 | O175: 1498500 | P175: 561937.5 | Q175: 1552500 | R175: 1674000 | S175: 1.333333333 | T175: 30 | U175: 12.5700537 | V175: 0.4625571539 | W175: 0.3405424266 | X175: 686120.7415 | Y175: 326987.5167 | Z175: 29700 | AA175: 5.831324645 | AB175: 0.4639061045 | AC175: - | AD175: - | AE175: - | AF175: - | AG175: -
B176: ='ورودی نیروها'!C169 -> BASE | C176: ='ورودی نیروها'!D169 -> 2 | D176: ='ورودی نیروها'!E169 -> ACIS75 | E176: 2 - ACIS75 | F176: =ABS('ورودی نیروها'!H169) -> 173385.57 | G176: =ABS('ورودی نیروها'!I169) -> 1669267.27 | H176: =ABS('ورودی نیروها'!J169) -> 1497281.172 | I176: =VLOOKUP(C176,'ورودی نیروها'!M$4:P$1000000,2,FALSE) -> 60 | J176: =VLOOKUP(C176,'ورودی نیروها'!M$4:P$1000000,3,FALSE) -> 45 | K176: =VLOOKUP(C176,'ورودی نیروها'!M$4:P$1000000,4,FALSE) -> 2 | L176: 150 | M176: 90 | N176: =IF(VLOOKUP(C176,'ورودی نیروها'!M$4:Q$1048576,5,FALSE)=0,IF(K176=1,2*L176+2*M176,IF(K176=2,L176+2*M176,IF(K176=3,2*L176+M176,L176+M176))),VLOOKUP(C176,'ورودی نیروها'!M$4:Q$1048576,5,FALSE)) -> 330 | O176: 1498500 | P176: 561937.5 | Q176: 1552500 | R176: 1674000 | S176: 1.333333333 | T176: 30 | U176: 12.5700537 | V176: 0.4625571539 | W176: 0.3405424266 | X176: 772131.5175 | Y176: 509887.7636 | Z176: 29700 | AA176: 7.540380407 | AB176: 0.5998685914 | AC176: - | AD176: - | AE176: - | AF176: - | AG176: -
B177: ='ورودی نیروها'!C170 -> BASE | C177: ='ورودی نیروها'!D170 -> 2 | D177: ='ورودی نیروها'!E170 -> ACIS76 | E177: 2 - ACIS76 | F177: =ABS('ورودی نیروها'!H170) -> 108598.43 | G177: =ABS('ورودی نیروها'!I170) -> 1553650.129 | H177: =ABS('ورودی نیروها'!J170) -> 1465176.906 | I177: =VLOOKUP(C177,'ورودی نیروها'!M$4:P$1000000,2,FALSE) -> 60 | J177: =VLOOKUP(C177,'ورودی نیروها'!M$4:P$1000000,3,FALSE) -> 45 | K177: =VLOOKUP(C177,'ورودی نیروها'!M$4:P$1000000,4,FALSE) -> 2 | L177: 150 | M177: 90 | N177: =IF(VLOOKUP(C177,'ورودی نیروها'!M$4:Q$1048576,5,FALSE)=0,IF(K177=1,2*L177+2*M177,IF(K177=2,L177+2*M177,IF(K177=3,2*L177+M177,L177+M177))),VLOOKUP(C177,'ورودی نیروها'!M$4:Q$1048576,5,FALSE)) -> 330 | O177: 1498500 | P177: 561937.5 | Q177: 1552500 | R177: 1674000 | S177: 1.333333333 | T177: 30 | U177: 12.5700537 | V177: 0.4625571539 | W177: 0.3405424266 | X177: 718651.9818 | Y177: 498954.8989 | Z177: 29700 | AA177: 5.256783219 | AB177: 0.4181989469 | AC177: - | AD177: - | AE177: - | AF177: - | AG177: -
B178: ='ورودی نیروها'!C171 -> BASE | C178: ='ورودی نیروها'!D171 -> 2 | D178: ='ورودی نیروها'!E171 -> ACIS78 | E178: 2 - ACIS78 | F178: =ABS('ورودی نیروها'!H171) -> 169129.18 | G178: =ABS('ورودی نیروها'!I171) -> 1058321.922 | H178: =ABS('ورودی نیروها'!J171) -> 1328546.652 | I178: =VLOOKUP(C178,'ورودی نیروها'!M$4:P$1000000,2,FALSE) -> 60 | J178: =VLOOKUP(C178,'ورودی نیروها'!M$4:P$1000000,3,FALSE) -> 45 | K178: =VLOOKUP(C178,'ورودی نیروها'!M$4:P$1000000,4,FALSE) -> 2 | L178: 150 | M178: 90 | N178: =IF(VLOOKUP(C178,'ورودی نیروها'!M$4:Q$1048576,5,FALSE)=0,IF(K178=1,2*L178+2*M178,IF(K178=2,L178+2*M178,IF(K178=3,2*L178+M178,L178+M178))),VLOOKUP(C178,'ورودی نیروها'!M$4:Q$1048576,5,FALSE)) -> 330 | O178: 1498500 | P178: 561937.5 | Q178: 1552500 | R178: 1674000 | S178: 1.333333333 | T178: 30 | U178: 12.5700537 | V178: 0.4625571539 | W178: 0.3405424266 | X178: 489534.3761 | Y178: 452426.5007 | Z178: 29700 | AA178: 6.857157711 | AB178: 0.5455153872 | AC178: - | AD178: - | AE178: - | AF178: - | AG178: -
B179: ='ورودی نیروها'!C172 -> BASE | C179: ='ورودی نیروها'!D172 -> 2 | D179: ='ورودی نیروها'!E172 -> ACIS79 | E179: 2 - ACIS79 | F179: =ABS('ورودی نیروها'!H172) -> 147056.12 | G179: =ABS('ورودی نیروها'!I172) -> 987992.795 | H179: =ABS('ورودی نیروها'!J172) -> 1096826.374 | I179: =VLOOKUP(C179,'ورودی نیروها'!M$4:P$1000000,2,FALSE) -> 60 | J179: =VLOOKUP(C179,'ورودی نیروها'!M$4:P$1000000,3,FALSE) -> 45 | K179: =VLOOKUP(C179,'ورودی نیروها'!M$4:P$1000000,4,FALSE) -> 2 | L179: 150 | M179: 90 | N179: =IF(VLOOKUP(C179,'ورودی نیروها'!M$4:Q$1048576,5,FALSE)=0,IF(K179=1,2*L179+2*M179,IF(K179=2,L179+2*M179,IF(K179=3,2*L179+M179,L179+M179))),VLOOKUP(C179,'ورودی نیروها'!M$4:Q$1048576,5,FALSE)) -> 330 | O179: 1498500 | P179: 561937.5 | Q179: 1552500 | R179: 1674000 | S179: 1.333333333 | T179: 30 | U179: 12.5700537 | V179: 0.4625571539 | W179: 0.3405424266 | X179: 457003.1353 | Y179: 373515.9149 | Z179: 29700 | AA179: 6.005237755 | AB179: 0.477741615 | AC179: - | AD179: - | AE179: - | AF179: - | AG179: -
B180: ='ورودی نیروها'!C173 -> BASE | C180: ='ورودی نیروها'!D173 -> 2 | D180: ='ورودی نیروها'!E173 -> ACIS80 | E180: 2 - ACIS80 | F180: =ABS('ورودی نیروها'!H173) -> 82268.98 | G180: =ABS('ورودی نیروها'!I173) -> 1103609.936 | H180: =ABS('ورودی نیروها'!J173) -> 1064722.109 | I180: =VLOOKUP(C180,'ورودی نیروها'!M$4:P$1000000,2,FALSE) -> 60 | J180: =VLOOKUP(C180,'ورودی نیروها'!M$4:P$1000000,3,FALSE) -> 45 | K180: =VLOOKUP(C180,'ورودی نیروها'!M$4:P$1000000,4,FALSE) -> 2 | L180: 150 | M180: 90 | N180: =IF(VLOOKUP(C180,'ورودی نیروها'!M$4:Q$1048576,5,FALSE)=0,IF(K180=1,2*L180+2*M180,IF(K180=2,L180+2*M180,IF(K180=3,2*L180+M180,L180+M180))),VLOOKUP(C180,'ورودی نیروها'!M$4:Q$1048576,5,FALSE)) -> 330 | O180: 1498500 | P180: 561937.5 | Q180: 1552500 | R180: 1674000 | S180: 1.333333333 | T180: 30 | U180: 12.5700537 | V180: 0.4625571539 | W180: 0.3405424266 | X180: 510482.671 | Y180: 362583.0506 | Z180: 29700 | AA180: 3.911980367 | AB180: 0.3112142924 | AC180: - | AD180: - | AE180: - | AF180: - | AG180: -
B181: ='ورودی نیروها'!C174 -> BASE | C181: ='ورودی نیروها'!D174 -> 2 | D181: ='ورودی نیروها'!E174 -> ACIS81 | E181: 2 - ACIS81 | F181: =ABS('ورودی نیروها'!H174) -> 192069.93 | G181: =ABS('ورودی نیروها'!I174) -> 1536010.12 | H181: =ABS('ورودی نیروها'!J174) -> 653110.852 | I181: =VLOOKUP(C181,'ورودی نیروها'!M$4:P$1000000,2,FALSE) -> 60 | J181: =VLOOKUP(C181,'ورودی نیروها'!M$4:P$1000000,3,FALSE) -> 45 | K181: =VLOOKUP(C181,'ورودی نیروها'!M$4:P$1000000,4,FALSE) -> 2 | L181: 150 | M181: 90 | N181: =IF(VLOOKUP(C181,'ورودی نیروها'!M$4:Q$1048576,5,FALSE)=0,IF(K181=1,2*L181+2*M181,IF(K181=2,L181+2*M181,IF(K181=3,2*L181+M181,L181+M181))),VLOOKUP(C181,'ورودی نیروها'!M$4:Q$1048576,5,FALSE)) -> 330 | O181: 1498500 | P181: 561937.5 | Q181: 1552500 | R181: 1674000 | S181: 1.333333333 | T181: 30 | U181: 12.5700537 | V181: 0.4625571539 | W181: 0.3405424266 | X181: 710492.4695 | Y181: 222411.9544 | Z181: 29700 | AA181: 7.874623614 | AB181: 0.6264590273 | AC181: - | AD181: - | AE181: - | AF181: - | AG181: -
B182: ='ورودی نیروها'!C175 -> BASE | C182: ='ورودی نیروها'!D175 -> 2 | D182: ='ورودی نیروها'!E175 -> ACIS82 | E182: 2 - ACIS82 | F182: =ABS('ورودی نیروها'!H175) -> 127282.79 | G182: =ABS('ورودی نیروها'!I175) -> 1420392.979 | H182: =ABS('ورودی نیروها'!J175) -> 685215.118 | I182: =VLOOKUP(C182,'ورودی نیروها'!M$4:P$1000000,2,FALSE) -> 60 | J182: =VLOOKUP(C182,'ورودی نیروها'!M$4:P$1000000,3,FALSE) -> 45 | K182: =VLOOKUP(C182,'ورودی نیروها'!M$4:P$1000000,4,FALSE) -> 2 | L182: 150 | M182: 90 | N182: =IF(VLOOKUP(C182,'ورودی نیروها'!M$4:Q$1048576,5,FALSE)=0,IF(K182=1,2*L182+2*M182,IF(K182=2,L182+2*M182,IF(K182=3,2*L182+M182,L182+M182))),VLOOKUP(C182,'ورودی نیروها'!M$4:Q$1048576,5,FALSE)) -> 330 | O182: 1498500 | P182: 561937.5 | Q182: 1552500 | R182: 1674000 | S182: 1.333333333 | T182: 30 | U182: 12.5700537 | V182: 0.4625571539 | W182: 0.3405424266 | X182: 657012.9338 | Y182: 233344.819 | Z182: 29700 | AA182: 5.605110631 | AB182: 0.4459098398 | AC182: - | AD182: - | AE182: - | AF182: - | AG182: -
B183: ='ورودی نیروها'!C176 -> BASE | C183: ='ورودی نیروها'!D176 -> 2 | D183: ='ورودی نیروها'!E176 -> ACIS83 | E183: 2 - ACIS83 | F183: =ABS('ورودی نیروها'!H176) -> 169996.87 | G183: =ABS('ورودی نیروها'!I176) -> 1606339.247 | H183: =ABS('ورودی نیروها'!J176) -> 1772262.174 | I183: =VLOOKUP(C183,'ورودی نیروها'!M$4:P$1000000,2,FALSE) -> 60 | J183: =VLOOKUP(C183,'ورودی نیروها'!M$4:P$1000000,3,FALSE) -> 45 | K183: =VLOOKUP(C183,'ورودی نیروها'!M$4:P$1000000,4,FALSE) -> 2 | L183: 150 | M183: 90 | N183: =IF(VLOOKUP(C183,'ورودی نیروها'!M$4:Q$1048576,5,FALSE)=0,IF(K183=1,2*L183+2*M183,IF(K183=2,L183+2*M183,IF(K183=3,2*L183+M183,L183+M183))),VLOOKUP(C183,'ورودی نیروها'!M$4:Q$1048576,5,FALSE)) -> 330 | O183: 1498500 | P183: 561937.5 | Q183: 1552500 | R183: 1674000 | S183: 1.333333333 | T183: 30 | U183: 12.5700537 | V183: 0.4625571539 | W183: 0.3405424266 | X183: 743023.7103 | Y183: 603530.4613 | Z183: 29700 | AA183: 7.43480111 | AB183: 0.5914693197 | AC183: - | AD183: - | AE183: - | AF183: - | AG183: -
B184: ='ورودی نیروها'!C177 -> BASE | C184: ='ورودی نیروها'!D177 -> 2 | D184: ='ورودی نیروها'!E177 -> ACIS84 | E184: 2 - ACIS84 | F184: =ABS('ورودی نیروها'!H177) -> 105209.74 | G184: =ABS('ورودی نیروها'!I177) -> 1490722.106 | H184: =ABS('ورودی نیروها'!J177) -> 1740157.909 | I184: =VLOOKUP(C184,'ورودی نیروها'!M$4:P$1000000,2,FALSE) -> 60 | J184: =VLOOKUP(C184,'ورودی نیروها'!M$4:P$1000000,3,FALSE) -> 45 | K184: =VLOOKUP(C184,'ورودی نیروها'!M$4:P$1000000,4,FALSE) -> 2 | L184: 150 | M184: 90 | N184: =IF(VLOOKUP(C184,'ورودی نیروها'!M$4:Q$1048576,5,FALSE)=0,IF(K184=1,2*L184+2*M184,IF(K184=2,L184+2*M184,IF(K184=3,2*L184+M184,L184+M184))),VLOOKUP(C184,'ورودی نیروها'!M$4:Q$1048576,5,FALSE)) -> 330 | O184: 1498500 | P184: 561937.5 | Q184: 1552500 | R184: 1674000 | S184: 1.333333333 | T184: 30 | U184: 12.5700537 | V184: 0.4625571539 | W184: 0.3405424266 | X184: 689544.1746 | Y184: 592597.597 | Z184: 29700 | AA184: 5.151204258 | AB184: 0.4097997019 | AC184: - | AD184: - | AE184: - | AF184: - | AG184: -
B185: ='ورودی نیروها'!C178 -> BASE | C185: ='ورودی نیروها'!D178 -> 2 | D185: ='ورودی نیروها'!E178 -> ACIS85 | E185: 2 - ACIS85 | F185: =ABS('ورودی نیروها'!H178) -> 172517.88 | G185: =ABS('ورودی نیروها'!I178) -> 995393.899 | H185: =ABS('ورودی نیروها'!J178) -> 1603527.654 | I185: =VLOOKUP(C185,'ورودی نیروها'!M$4:P$1000000,2,FALSE) -> 60 | J185: =VLOOKUP(C185,'ورودی نیروها'!M$4:P$1000000,3,FALSE) -> 45 | K185: =VLOOKUP(C185,'ورودی نیروها'!M$4:P$1000000,4,FALSE) -> 2 | L185: 150 | M185: 90 | N185: =IF(VLOOKUP(C185,'ورودی نیروها'!M$4:Q$1048576,5,FALSE)=0,IF(K185=1,2*L185+2*M185,IF(K185=2,L185+2*M185,IF(K185=3,2*L185+M185,L185+M185))),VLOOKUP(C185,'ورودی نیروها'!M$4:Q$1048576,5,FALSE)) -> 330 | O185: 1498500 | P185: 561937.5 | Q185: 1552500 | R185: 1674000 | S185: 1.333333333 | T185: 30 | U185: 12.5700537 | V185: 0.4625571539 | W185: 0.3405424266 | X185: 460426.5689 | Y185: 546069.1984 | Z185: 29700 | AA185: 6.9797737 | AB185: 0.5552699986 | AC185: - | AD185: - | AE185: - | AF185: - | AG185: -
B186: ='ورودی نیروها'!C179 -> BASE | C186: ='ورودی نیروها'!D179 -> 2 | D186: ='ورودی نیروها'!E179 -> ACIS86 | E186: 2 - ACIS86 | F186: =ABS('ورودی نیروها'!H179) -> 107730.74 | G186: =ABS('ورودی نیروها'!I179) -> 1111011.04 | H186: =ABS('ورودی نیروها'!J179) -> 1635631.92 | I186: =VLOOKUP(C186,'ورودی نیروها'!M$4:P$1000000,2,FALSE) -> 60 | J186: =VLOOKUP(C186,'ورودی نیروها'!M$4:P$1000000,3,FALSE) -> 45 | K186: =VLOOKUP(C186,'ورودی نیروها'!M$4:P$1000000,4,FALSE) -> 2 | L186: 150 | M186: 90 | N186: =IF(VLOOKUP(C186,'ورودی نیروها'!M$4:Q$1048576,5,FALSE)=0,IF(K186=1,2*L186+2*M186,IF(K186=2,L186+2*M186,IF(K186=3,2*L186+M186,L186+M186))),VLOOKUP(C186,'ورودی نیروها'!M$4:Q$1048576,5,FALSE)) -> 330 | O186: 1498500 | P186: 561937.5 | Q186: 1552500 | R186: 1674000 | S186: 1.333333333 | T186: 30 | U186: 12.5700537 | V186: 0.4625571539 | W186: 0.3405424266 | X186: 513906.1046 | Y186: 557002.063 | Z186: 29700 | AA186: 4.900600517 | AB186: 0.389863133 | AC186: - | AD186: - | AE186: - | AF186: - | AG186: -
B187: ='ورودی نیروها'!C180 -> BASE | C187: ='ورودی نیروها'!D180 -> 2 | D187: ='ورودی نیروها'!E180 -> ACIS87 | E187: 2 - ACIS87 | F187: =ABS('ورودی نیروها'!H180) -> 150444.82 | G187: =ABS('ورودی نیروها'!I180) -> 925064.772 | H187: =ABS('ورودی نیروها'!J180) -> 821845.372 | I187: =VLOOKUP(C187,'ورودی نیروها'!M$4:P$1000000,2,FALSE) -> 60 | J187: =VLOOKUP(C187,'ورودی نیروها'!M$4:P$1000000,3,FALSE) -> 45 | K187: =VLOOKUP(C187,'ورودی نیروها'!M$4:P$1000000,4,FALSE) -> 2 | L187: 150 | M187: 90 | N187: =IF(VLOOKUP(C187,'ورودی نیروها'!M$4:Q$1048576,5,FALSE)=0,IF(K187=1,2*L187+2*M187,IF(K187=2,L187+2*M187,IF(K187=3,2*L187+M187,L187+M187))),VLOOKUP(C187,'ورودی نیروها'!M$4:Q$1048576,5,FALSE)) -> 330 | O187: 1498500 | P187: 561937.5 | Q187: 1552500 | R187: 1674000 | S187: 1.333333333 | T187: 30 | U187: 12.5700537 | V187: 0.4625571539 | W187: 0.3405424266 | X187: 427895.3281 | Y187: 279873.2173 | Z187: 29700 | AA187: 6.007219028 | AB187: 0.4778992335 | AC187: - | AD187: - | AE187: - | AF187: - | AG187: -
B188: ='ورودی نیروها'!C181 -> BASE | C188: ='ورودی نیروها'!D181 -> 2 | D188: ='ورودی نیروها'!E181 -> ACIS88 | E188: 2 - ACIS88 | F188: =ABS('ورودی نیروها'!H181) -> 85657.68 | G188: =ABS('ورودی نیروها'!I181) -> 1040681.913 | H188: =ABS('ورودی نیروها'!J181) -> 789741.106 | I188: =VLOOKUP(C188,'ورودی نیروها'!M$4:P$1000000,2,FALSE) -> 60 | J188: =VLOOKUP(C188,'ورودی نیروها'!M$4:P$1000000,3,FALSE) -> 45 | K188: =VLOOKUP(C188,'ورودی نیروها'!M$4:P$1000000,4,FALSE) -> 2 | L188: 150 | M188: 90 | N188: =IF(VLOOKUP(C188,'ورودی نیروها'!M$4:Q$1048576,5,FALSE)=0,IF(K188=1,2*L188+2*M188,IF(K188=2,L188+2*M188,IF(K188=3,2*L188+M188,L188+M188))),VLOOKUP(C188,'ورودی نیروها'!M$4:Q$1048576,5,FALSE)) -> 330 | O188: 1498500 | P188: 561937.5 | Q188: 1552500 | R188: 1674000 | S188: 1.333333333 | T188: 30 | U188: 12.5700537 | V188: 0.4625571539 | W188: 0.3405424266 | X188: 481374.8638 | Y188: 268940.3526 | Z188: 29700 | AA188: 3.91396164 | AB188: 0.3113719109 | AC188: - | AD188: - | AE188: - | AF188: - | AG188: -
B189: ='ورودی نیروها'!C182 -> BASE | C189: ='ورودی نیروها'!D182 -> 2 | D189: ='ورودی نیروها'!E182 -> ACIS89 | E189: 2 - ACIS89 | F189: =ABS('ورودی نیروها'!H182) -> 198847.33 | G189: =ABS('ورودی نیروها'!I182) -> 1661866.167 | H189: =ABS('ورودی نیروها'!J182) -> 1203072.856 | I189: =VLOOKUP(C189,'ورودی نیروها'!M$4:P$1000000,2,FALSE) -> 60 | J189: =VLOOKUP(C189,'ورودی نیروها'!M$4:P$1000000,3,FALSE) -> 45 | K189: =VLOOKUP(C189,'ورودی نیروها'!M$4:P$1000000,4,FALSE) -> 2 | L189: 150 | M189: 90 | N189: =IF(VLOOKUP(C189,'ورودی نیروها'!M$4:Q$1048576,5,FALSE)=0,IF(K189=1,2*L189+2*M189,IF(K189=2,L189+2*M189,IF(K189=3,2*L189+M189,L189+M189))),VLOOKUP(C189,'ورودی نیروها'!M$4:Q$1048576,5,FALSE)) -> 330 | O189: 1498500 | P189: 561937.5 | Q189: 1552500 | R189: 1674000 | S189: 1.333333333 | T189: 30 | U189: 12.5700537 | V189: 0.4625571539 | W189: 0.3405424266 | X189: 768708.0844 | Y189: 409697.3497 | Z189: 29700 | AA189: 8.32705164 | AB189: 0.6624515566 | AC189: - | AD189: - | AE189: - | AF189: - | AG189: -
B190: ='ورودی نیروها'!C183 -> BASE | C190: ='ورودی نیروها'!D183 -> 2 | D190: ='ورودی نیروها'!E183 -> ACIS90 | E190: 2 - ACIS90 | F190: =ABS('ورودی نیروها'!H183) -> 134060.19 | G190: =ABS('ورودی نیروها'!I183) -> 1546249.026 | H190: =ABS('ورودی نیروها'!J183) -> 1235177.122 | I190: =VLOOKUP(C190,'ورودی نیروها'!M$4:P$1000000,2,FALSE) -> 60 | J190: =VLOOKUP(C190,'ورودی نیروها'!M$4:P$1000000,3,FALSE) -> 45 | K190: =VLOOKUP(C190,'ورودی نیروها'!M$4:P$1000000,4,FALSE) -> 2 | L190: 150 | M190: 90 | N190: =IF(VLOOKUP(C190,'ورودی نیروها'!M$4:Q$1048576,5,FALSE)=0,IF(K190=1,2*L190+2*M190,IF(K190=2,L190+2*M190,IF(K190=3,2*L190+M190,L190+M190))),VLOOKUP(C190,'ورودی نیروها'!M$4:Q$1048576,5,FALSE)) -> 330 | O190: 1498500 | P190: 561937.5 | Q190: 1552500 | R190: 1674000 | S190: 1.333333333 | T190: 30 | U190: 12.5700537 | V190: 0.4625571539 | W190: 0.3405424266 | X190: 715228.5487 | Y190: 420630.2144 | Z190: 29700 | AA190: 6.057538657 | AB190: 0.4819023691 | AC190: - | AD190: - | AE190: - | AF190: - | AG190: -
B191: ='ورودی نیروها'!C184 -> BASE | C191: ='ورودی نیروها'!D184 -> 2 | D191: ='ورودی نیروها'!E184 -> ACIS91 | E191: 2 - ACIS91 | F191: =ABS('ورودی نیروها'!H184) -> 176774.27 | G191: =ABS('ورودی نیروها'!I184) -> 1732195.294 | H191: =ABS('ورودی نیروها'!J184) -> 1222300.17 | I191: =VLOOKUP(C191,'ورودی نیروها'!M$4:P$1000000,2,FALSE) -> 60 | J191: =VLOOKUP(C191,'ورودی نیروها'!M$4:P$1000000,3,FALSE) -> 45 | K191: =VLOOKUP(C191,'ورودی نیروها'!M$4:P$1000000,4,FALSE) -> 2 | L191: 150 | M191: 90 | N191: =IF(VLOOKUP(C191,'ورودی نیروها'!M$4:Q$1048576,5,FALSE)=0,IF(K191=1,2*L191+2*M191,IF(K191=2,L191+2*M191,IF(K191=3,2*L191+M191,L191+M191))),VLOOKUP(C191,'ورودی نیروها'!M$4:Q$1048576,5,FALSE)) -> 330 | O191: 1498500 | P191: 561937.5 | Q191: 1552500 | R191: 1674000 | S191: 1.333333333 | T191: 30 | U191: 12.5700537 | V191: 0.4625571539 | W191: 0.3405424266 | X191: 801239.3252 | Y191: 416245.0659 | Z191: 29700 | AA191: 7.645959705 | AB191: 0.6082678633 | AC191: - | AD191: - | AE191: - | AF191: - | AG191: -
B192: ='ورودی نیروها'!C185 -> BASE | C192: ='ورودی نیروها'!D185 -> 2 | D192: ='ورودی نیروها'!E185 -> ACIS92 | E192: 2 - ACIS92 | F192: =ABS('ورودی نیروها'!H185) -> 111987.13 | G192: =ABS('ورودی نیروها'!I185) -> 1616578.153 | H192: =ABS('ورودی نیروها'!J185) -> 1190195.904 | I192: =VLOOKUP(C192,'ورودی نیروها'!M$4:P$1000000,2,FALSE) -> 60 | J192: =VLOOKUP(C192,'ورودی نیروها'!M$4:P$1000000,3,FALSE) -> 45 | K192: =VLOOKUP(C192,'ورودی نیروها'!M$4:P$1000000,4,FALSE) -> 2 | L192: 150 | M192: 90 | N192: =IF(VLOOKUP(C192,'ورودی نیروها'!M$4:Q$1048576,5,FALSE)=0,IF(K192=1,2*L192+2*M192,IF(K192=2,L192+2*M192,IF(K192=3,2*L192+M192,L192+M192))),VLOOKUP(C192,'ورودی نیروها'!M$4:Q$1048576,5,FALSE)) -> 330 | O192: 1498500 | P192: 561937.5 | Q192: 1552500 | R192: 1674000 | S192: 1.333333333 | T192: 30 | U192: 12.5700537 | V192: 0.4625571539 | W192: 0.3405424266 | X192: 747759.7895 | Y192: 405312.2013 | Z192: 29700 | AA192: 5.362362517 | AB192: 0.4265982187 | AC192: - | AD192: - | AE192: - | AF192: - | AG192: -
B193: ='ورودی نیروها'!C186 -> BASE | C193: ='ورودی نیروها'!D186 -> 2 | D193: ='ورودی نیروها'!E186 -> ACIS93 | E193: 2 - ACIS93 | F193: =ABS('ورودی نیروها'!H186) -> 165740.48 | G193: =ABS('ورودی نیروها'!I186) -> 1121249.945 | H193: =ABS('ورودی نیروها'!J186) -> 1053565.65 | I193: =VLOOKUP(C193,'ورودی نیروها'!M$4:P$1000000,2,FALSE) -> 60 | J193: =VLOOKUP(C193,'ورودی نیروها'!M$4:P$1000000,3,FALSE) -> 45 | K193: =VLOOKUP(C193,'ورودی نیروها'!M$4:P$1000000,4,FALSE) -> 2 | L193: 150 | M193: 90 | N193: =IF(VLOOKUP(C193,'ورودی نیروها'!M$4:Q$1048576,5,FALSE)=0,IF(K193=1,2*L193+2*M193,IF(K193=2,L193+2*M193,IF(K193=3,2*L193+M193,L193+M193))),VLOOKUP(C193,'ورودی نیروها'!M$4:Q$1048576,5,FALSE)) -> 330 | O193: 1498500 | P193: 561937.5 | Q193: 1552500 | R193: 1674000 | S193: 1.333333333 | T193: 30 | U193: 12.5700537 | V193: 0.4625571539 | W193: 0.3405424266 | X193: 518642.1834 | Y193: 358783.803 | Z193: 29700 | AA193: 6.734541722 | AB193: 0.5357607758 | AC193: - | AD193: - | AE193: - | AF193: - | AG193: -
B194: ='ورودی نیروها'!C187 -> BASE | C194: ='ورودی نیروها'!D187 -> 2 | D194: ='ورودی نیروها'!E187 -> ACIS94 | E194: 2 - ACIS94 | F194: =ABS('ورودی نیروها'!H187) -> 100953.34 | G194: =ABS('ورودی نیروها'!I187) -> 1236867.086 | H194: =ABS('ورودی نیروها'!J187) -> 1085669.915 | I194: =VLOOKUP(C194,'ورودی نیروها'!M$4:P$1000000,2,FALSE) -> 60 | J194: =VLOOKUP(C194,'ورودی نیروها'!M$4:P$1000000,3,FALSE) -> 45 | K194: =VLOOKUP(C194,'ورودی نیروها'!M$4:P$1000000,4,FALSE) -> 2 | L194: 150 | M194: 90 | N194: =IF(VLOOKUP(C194,'ورودی نیروها'!M$4:Q$1048576,5,FALSE)=0,IF(K194=1,2*L194+2*M194,IF(K194=2,L194+2*M194,IF(K194=3,2*L194+M194,L194+M194))),VLOOKUP(C194,'ورودی نیروها'!M$4:Q$1048576,5,FALSE)) -> 330 | O194: 1498500 | P194: 561937.5 | Q194: 1552500 | R194: 1674000 | S194: 1.333333333 | T194: 30 | U194: 12.5700537 | V194: 0.4625571539 | W194: 0.3405424266 | X194: 572121.719 | Y194: 369716.6673 | Z194: 29700 | AA194: 4.655368539 | AB194: 0.3703539102 | AC194: - | AD194: - | AE194: - | AF194: - | AG194: -
B195: ='ورودی نیروها'!C188 -> BASE | C195: ='ورودی نیروها'!D188 -> 2 | D195: ='ورودی نیروها'!E188 -> ACIS95 | E195: 2 - ACIS95 | F195: =ABS('ورودی نیروها'!H188) -> 143667.42 | G195: =ABS('ورودی نیروها'!I188) -> 1050920.819 | H195: =ABS('ورودی نیروها'!J188) -> 1371807.376 | I195: =VLOOKUP(C195,'ورودی نیروها'!M$4:P$1000000,2,FALSE) -> 60 | J195: =VLOOKUP(C195,'ورودی نیروها'!M$4:P$1000000,3,FALSE) -> 45 | K195: =VLOOKUP(C195,'ورودی نیروها'!M$4:P$1000000,4,FALSE) -> 2 | L195: 150 | M195: 90 | N195: =IF(VLOOKUP(C195,'ورودی نیروها'!M$4:Q$1048576,5,FALSE)=0,IF(K195=1,2*L195+2*M195,IF(K195=2,L195+2*M195,IF(K195=3,2*L195+M195,L195+M195))),VLOOKUP(C195,'ورودی نیروها'!M$4:Q$1048576,5,FALSE)) -> 330 | O195: 1498500 | P195: 561937.5 | Q195: 1552500 | R195: 1674000 | S195: 1.333333333 | T195: 30 | U195: 12.5700537 | V195: 0.4625571539 | W195: 0.3405424266 | X195: 486110.943 | Y195: 467158.6126 | Z195: 29700 | AA195: 6.003256482 | AB195: 0.4775839965 | AC195: - | AD195: - | AE195: - | AF195: - | AG195: -
B196: ='ورودی نیروها'!C189 -> BASE | C196: ='ورودی نیروها'!D189 -> 2 | D196: ='ورودی نیروها'!E189 -> ACIS96 | E196: 2 - ACIS96 | F196: =ABS('ورودی نیروها'!H189) -> 78880.28 | G196: =ABS('ورودی نیروها'!I189) -> 1166537.96 | H196: =ABS('ورودی نیروها'!J189) -> 1339703.111 | I196: =VLOOKUP(C196,'ورودی نیروها'!M$4:P$1000000,2,FALSE) -> 60 | J196: =VLOOKUP(C196,'ورودی نیروها'!M$4:P$1000000,3,FALSE) -> 45 | K196: =VLOOKUP(C196,'ورودی نیروها'!M$4:P$1000000,4,FALSE) -> 2 | L196: 150 | M196: 90 | N196: =IF(VLOOKUP(C196,'ورودی نیروها'!M$4:Q$1048576,5,FALSE)=0,IF(K196=1,2*L196+2*M196,IF(K196=2,L196+2*M196,IF(K196=3,2*L196+M196,L196+M196))),VLOOKUP(C196,'ورودی نیروها'!M$4:Q$1048576,5,FALSE)) -> 330 | O196: 1498500 | P196: 561937.5 | Q196: 1552500 | R196: 1674000 | S196: 1.333333333 | T196: 30 | U196: 12.5700537 | V196: 0.4625571539 | W196: 0.3405424266 | X196: 539590.4787 | Y196: 456225.7483 | Z196: 29700 | AA196: 3.909999094 | AB196: 0.3110566739 | AC196: - | AD196: - | AE196: - | AF196: - | AG196: -
B197: ='ورودی نیروها'!C190 -> BASE | C197: ='ورودی نیروها'!D190 -> 3 | D197: ='ورودی نیروها'!E190 -> ACIB01 | E197: 3 - ACIB01 | F197: =ABS('ورودی نیروها'!H190) -> 215231.66 | G197: =ABS('ورودی نیروها'!I190) -> 394668.922 | H197: =ABS('ورودی نیروها'!J190) -> 89759.703 | I197: =VLOOKUP(C197,'ورودی نیروها'!M$4:P$1000000,2,FALSE) -> 60 | J197: =VLOOKUP(C197,'ورودی نیروها'!M$4:P$1000000,3,FALSE) -> 45 | K197: =VLOOKUP(C197,'ورودی نیروها'!M$4:P$1000000,4,FALSE) -> 2 | L197: 150 | M197: 90 | N197: =IF(VLOOKUP(C197,'ورودی نیروها'!M$4:Q$1048576,5,FALSE)=0,IF(K197=1,2*L197+2*M197,IF(K197=2,L197+2*M197,IF(K197=3,2*L197+M197,L197+M197))),VLOOKUP(C197,'ورودی نیروها'!M$4:Q$1048576,5,FALSE)) -> 330 | O197: 1498500 | P197: 561937.5 | Q197: 1552500 | R197: 1674000 | S197: 1.333333333 | T197: 30 | U197: 12.5700537 | V197: 0.4625571539 | W197: 0.3405424266 | X197: 182556.9333 | Y197: 30566.98707 | Z197: 29700 | AA197: 7.591416649 | AB197: 0.6039287366 | AC197: - | AD197: - | AE197: - | AF197: - | AG197: -
B198: ='ورودی نیروها'!C191 -> BASE | C198: ='ورودی نیروها'!D191 -> 3 | D198: ='ورودی نیروها'!E191 -> ACIB02 | E198: 3 - ACIB02 | F198: =ABS('ورودی نیروها'!H191) -> 238183.19 | G198: =ABS('ورودی نیروها'!I191) -> 511631.719 | H198: =ABS('ورودی نیروها'!J191) -> 51844.85 | I198: =VLOOKUP(C198,'ورودی نیروها'!M$4:P$1000000,2,FALSE) -> 60 | J198: =VLOOKUP(C198,'ورودی نیروها'!M$4:P$1000000,3,FALSE) -> 45 | K198: =VLOOKUP(C198,'ورودی نیروها'!M$4:P$1000000,4,FALSE) -> 2 | L198: 150 | M198: 90 | N198: =IF(VLOOKUP(C198,'ورودی نیروها'!M$4:Q$1048576,5,FALSE)=0,IF(K198=1,2*L198+2*M198,IF(K198=2,L198+2*M198,IF(K198=3,2*L198+M198,L198+M198))),VLOOKUP(C198,'ورودی نیروها'!M$4:Q$1048576,5,FALSE)) -> 330 | O198: 1498500 | P198: 561937.5 | Q198: 1552500 | R198: 1674000 | S198: 1.333333333 | T198: 30 | U198: 12.5700537 | V198: 0.4625571539 | W198: 0.3405424266 | X198: 236658.9118 | Y198: 17655.37102 | Z198: 29700 | AA198: 8.452156349 | AB198: 0.672404156 | AC198: - | AD198: - | AE198: - | AF198: - | AG198: -
B199: ='ورودی نیروها'!C192 -> BASE | C199: ='ورودی نیروها'!D192 -> 3 | D199: ='ورودی نیروها'!E192 -> ACIS01 | E199: 3 - ACIS01 | F199: =ABS('ورودی نیروها'!H192) -> 218984.94 | G199: =ABS('ورودی نیروها'!I192) -> 1033643.868 | H199: =ABS('ورودی نیروها'!J192) -> 4097980.67 | I199: =VLOOKUP(C199,'ورودی نیروها'!M$4:P$1000000,2,FALSE) -> 60 | J199: =VLOOKUP(C199,'ورودی نیروها'!M$4:P$1000000,3,FALSE) -> 45 | K199: =VLOOKUP(C199,'ورودی نیروها'!M$4:P$1000000,4,FALSE) -> 2 | L199: 150 | M199: 90 | N199: =IF(VLOOKUP(C199,'ورودی نیروها'!M$4:Q$1048576,5,FALSE)=0,IF(K199=1,2*L199+2*M199,IF(K199=2,L199+2*M199,IF(K199=3,2*L199+M199,L199+M199))),VLOOKUP(C199,'ورودی نیروها'!M$4:Q$1048576,5,FALSE)) -> 330 | O199: 1498500 | P199: 561937.5 | Q199: 1552500 | R199: 1674000 | S199: 1.333333333 | T199: 30 | U199: 12.5700537 | V199: 0.4625571539 | W199: 0.3405424266 | X199: 478119.3657 | Y199: 1395536.281 | Z199: 29700 | AA199: 9.122967283 | AB199: 0.725769953 | AC199: - | AD199: - | AE199: - | AF199: - | AG199: -
B200: ='ورودی نیروها'!C193 -> BASE | C200: ='ورودی نیروها'!D193 -> 3 | D200: ='ورودی نیروها'!E193 -> ACIS02 | E200: 3 - ACIS02 | F200: =ABS('ورودی نیروها'!H193) -> 154411.38 | G200: =ABS('ورودی نیروها'!I193) -> 915288.854 | H200: =ABS('ورودی نیروها'!J193) -> 4071308.99 | I200: =VLOOKUP(C200,'ورودی نیروها'!M$4:P$1000000,2,FALSE) -> 60 | J200: =VLOOKUP(C200,'ورودی نیروها'!M$4:P$1000000,3,FALSE) -> 45 | K200: =VLOOKUP(C200,'ورودی نیروها'!M$4:P$1000000,4,FALSE) -> 2 | L200: 150 | M200: 90 | N200: =IF(VLOOKUP(C200,'ورودی نیروها'!M$4:Q$1048576,5,FALSE)=0,IF(K200=1,2*L200+2*M200,IF(K200=2,L200+2*M200,IF(K200=3,2*L200+M200,L200+M200))),VLOOKUP(C200,'ورودی نیروها'!M$4:Q$1048576,5,FALSE)) -> 330 | O200: 1498500 | P200: 561937.5 | Q200: 1552500 | R200: 1674000 | S200: 1.333333333 | T200: 30 | U200: 12.5700537 | V200: 0.4625571539 | W200: 0.3405424266 | X200: 423373.4073 | Y200: 1386453.443 | Z200: 29700 | AA200: 6.845499312 | AB200: 0.5445879131 | AC200: - | AD200: - | AE200: - | AF200: - | AG200: -
B201: ='ورودی نیروها'!C194 -> BASE | C201: ='ورودی نیروها'!D194 -> 3 | D201: ='ورودی نیروها'!E194 -> ACIS03 | E201: 3 - ACIS03 | F201: =ABS('ورودی نیروها'!H194) -> 208050.2 | G201: =ABS('ورودی نیروها'!I194) -> 201206.463 | H201: =ABS('ورودی نیروها'!J194) -> 4133813.44 | I201: =VLOOKUP(C201,'ورودی نیروها'!M$4:P$1000000,2,FALSE) -> 60 | J201: =VLOOKUP(C201,'ورودی نیروها'!M$4:P$1000000,3,FALSE) -> 45 | K201: =VLOOKUP(C201,'ورودی نیروها'!M$4:P$1000000,4,FALSE) -> 2 | L201: 150 | M201: 90 | N201: =IF(VLOOKUP(C201,'ورودی نیروها'!M$4:Q$1048576,5,FALSE)=0,IF(K201=1,2*L201+2*M201,IF(K201=2,L201+2*M201,IF(K201=3,2*L201+M201,L201+M201))),VLOOKUP(C201,'ورودی نیروها'!M$4:Q$1048576,5,FALSE)) -> 330 | O201: 1498500 | P201: 561937.5 | Q201: 1552500 | R201: 1674000 | S201: 1.333333333 | T201: 30 | U201: 12.5700537 | V201: 0.4625571539 | W201: 0.3405424266 | X201: 93069.48887 | Y201: 1407738.86 | Z201: 29700 | AA201: 8.07743584 | AB201: 0.6425935826 | AC201: - | AD201: - | AE201: - | AF201: - | AG201: -
B202: ='ورودی نیروها'!C195 -> BASE | C202: ='ورودی نیروها'!D195 -> 3 | D202: ='ورودی نیروها'!E195 -> ACIS04 | E202: 3 - ACIS04 | F202: =ABS('ورودی نیروها'!H195) -> 143476.64 | G202: =ABS('ورودی نیروها'!I195) -> 82851.449 | H202: =ABS('ورودی نیروها'!J195) -> 4107141.76 | I202: =VLOOKUP(C202,'ورودی نیروها'!M$4:P$1000000,2,FALSE) -> 60 | J202: =VLOOKUP(C202,'ورودی نیروها'!M$4:P$1000000,3,FALSE) -> 45 | K202: =VLOOKUP(C202,'ورودی نیروها'!M$4:P$1000000,4,FALSE) -> 2 | L202: 150 | M202: 90 | N202: =IF(VLOOKUP(C202,'ورودی نیروها'!M$4:Q$1048576,5,FALSE)=0,IF(K202=1,2*L202+2*M202,IF(K202=2,L202+2*M202,IF(K202=3,2*L202+M202,L202+M202))),VLOOKUP(C202,'ورودی نیروها'!M$4:Q$1048576,5,FALSE)) -> 330 | O202: 1498500 | P202: 561937.5 | Q202: 1552500 | R202: 1674000 | S202: 1.333333333 | T202: 30 | U202: 12.5700537 | V202: 0.4625571539 | W202: 0.3405424266 | X202: 38323.53045 | Y202: 1398656.021 | Z202: 29700 | AA202: 5.799967869 | AB202: 0.4614115427 | AC202: - | AD202: - | AE202: - | AF202: - | AG202: -
... 1482 more rows

Sheet ریز محاسبات برش دو طرفه تک گره
B2: کنترل تنش برشی دو طرفه بر اساس آیین‏نامه ACI 318-08
J4: 2 - ACI1C2 | N4: گره - ترکیب بار:
X5: تهیه کننده:
N6: مشخصات مقطع برش دوطرفه | X6: شرو وارتومیان
B7: f'c= | C7: ='محاسبات برش دو طرفه گره(ها)'!C4 -> 250 | D7: Kg/cm2 | N7: مقاومت فشاری مشخصه نمونه استوانه استاندارد | X7: کارشناس ارشد عمران - سازه
B8: φ= | C8: ='محاسبات برش دو طرفه گره(ها)'!C5 -> 0.75 | N8: ضریب کاهش مقاومت برشی | X8: تلفن همراه: 3831738-912-98+
B9: d= | C9: ='محاسبات برش دو طرفه گره(ها)'!C6 -> 90 | D9: cm | N9: عمق موثر (فاصله دورترین تار فشاری بتن تا محور میلگردهای کششی) | X9: Email: sh.vartoumian@gmail.com
N11: نیروهای نهایی موجود
B13: Vu= | C13: =VLOOKUP(J4,'محاسبات برش دو طرفه گره(ها)'!E11:AG1048576,2,FALSE) ->  | E13: Kgf | N13: نیروی برشی نهایی ضریبدار
B14: Mux= | C14: =VLOOKUP(J4,'محاسبات برش دو طرفه گره(ها)'!E11:AG1048576,3,FALSE) ->  | E14: Kgf.cm | N14: لنگر خمشی نهایی ضریبدار در جهت X
B15: Muy= | C15: =VLOOKUP(J4,'محاسبات برش دو طرفه گره(ها)'!E11:AG1048576,4,FALSE) ->  | E15: Kgf.cm | N15: لنگر خمشی نهایی ضریبدار در جهت Y
N17: محاسبه مشخصات هندسی مقطع برش دوطرفه
B19: Lx= | C19: =VLOOKUP(J4,'محاسبات برش دو طرفه گره(ها)'!E11:AG1048576,5,FALSE) ->  | D19: cm | N19: بعد ناحیه برش دوطرفه در جهت X
B20: Ly= | C20: =VLOOKUP(J4,'محاسبات برش دو طرفه گره(ها)'!E11:AG1048576,6,FALSE) ->  | D20: cm | N20: بعد ناحیه برش دوطرفه در جهت Y
B21: ="=حالت" -> =حالت | C21: =VLOOKUP(J4,'محاسبات برش دو طرفه گره(ها)'!E11:AG1048576,7,FALSE) ->  | D21: =IF(C21=1,"میانی",IF(C21=2,"کناری یک سمت محدود در جهت Y",IF(C21=3,"کناری یک سمت محدود در جهت X","گوشه"))) ->  | N21: حالت ناحیه برش دوطرفه
B22: bx= | C22: =IF(OR(C21=1,C21=2),C19+C9,C19+(C9/2)) ->  | D22: cm | N22: بعد مقطع بحرانی برش دوطرفه (سطح تکیه‏گاهی یا سطح اثر بار) در جهت X
B23: by= | C23: =IF(OR(C21=1,C21=3),C20+C9,C20+(C9/2)) ->  | D23: cm | N23: بعد مقطع بحرانی برش دوطرفه (سطح تکیه‏گاهی یا سطح اثر بار) در جهت Y
B24: b0= | C24: =IF(C21=1,2*C22+2*C23,IF(C21=2,C22+2*C23,IF(C21=3,2*C22+C23,C22+C23))) ->  | D24: cm | N24: محیط مقطع بحرانی برش دوطرفه
B25: Cx= | C25: =IF(C21=1,C22/2,IF(C21=2,C22/2,IF(C21=3,C22^2/(2*C22+C23),C22^2/(2*(C22+C23))))) ->  | D25: cm | N25: فاصله مرکز هندسی تکیه‏گاه از یک سمت مقطع در امتداد عمود بر بردار لنگر خمشی جهت X
B26: C'x= | C26: =IF(C21=1,C22/2,IF(C21=2,C22/2,IF(C21=3,C22*(C23+C22)/(2*C22+C23),C22*(C22+2*C23)/(2*(C22+C23))))) ->  | D26: cm | N26: فاصله مرکز هندسی تکیه‏گاه از سمت دیگر مقطع در امتداد عمود بر بردار لنگر خمشی جهت X
B27: Cy= | C27: =IF(C21=1,C23/2,IF(C21=2,C23^2/(2*C23+C22),IF(C21=3,C23/2,C23^2/(2*(C22+C23))))) ->  | D27: cm | N27: فاصله مرکز هندسی تکیه‏گاه از یک سمت مقطع در امتداد عمود بر بردار لنگر خمشی جهت Y
B28: C'y= | C28: =IF(C21=1,C23/2,IF(C21=2,C23*(C22+C23)/(2*C23+C22),IF(C21=3,C23/2,C23*(C23+2*C22)/(2*(C22+C23))))) ->  | D28: cm | N28: فاصله مرکز هندسی تکیه‏گاه از سمت دیگر مقطع در امتداد عمود بر بردار لنگر خمشی جهت Y
B29: Jcx/Cy= | C29: =IF(C21=1,(C22*C9*(C22+3*C23)+C9^3)/3,IF(C21=2,(2*C23^2*C9*(C23+2*C22)+C9^3*(2*C23+C22))/(6*C23),IF(C21=3,C23*C9*(C23+6*C22)/6,(C9*(C22+4*C23)+C9^3*(C22+C23))/(6*C22)))) ->  | E29: cm4 | N29: نسبت مدول پیچشی جهت X به Cy
B30: Jcx/C'y= | C30: =IF(C21=1,(C22*C9*(C22+3*C23)+C9^3)/3,IF(C21=2,(2*C23^2*C9*(C23+2*C22)+C9^3*(2*C23+C22))/(6*(C22+C23)),IF(C21=3,(C23*C9*(C23+6*C22)+C9^3)/6,(C22^2*C9*(C22+4*C23)+C9^3*(C22+C23))/(6*(C22+2*C23))))) ->  | E30: cm4 | N30: نسبت مدول پیچشی جهت X به C'y
B31: Jcy/Cx= | C31: =IF(C21=1,(C23*C9*(C23+3*C22)+C9^3)/3,IF(C21=2,C22*C9*(C22+6*C23)/6,IF(C21=3,(2*C22^2*C9*(C22+2*C23)+C9^3*(2*C22+C23))/(6*C22),(C9*(C23+4*C22)+C9^3*(C23+C22))/(6*C23)))) ->  | E31: cm4 | N31: نسبت مدول پیچشی جهت Y به Cx
B32: Jcy/C'x= | C32: =IF(C21=1,(C23*C9*(C23+3*C22)+C9^3)/3,IF(C21=2,(C22*C9*(C22+6*C23)+C9^3)/6,IF(C21=3,(2*C22^2*C9*(C22+2*C23)+C9^3*(2*C22+C23))/(6*(C23+C22)),(C23^2*C9*(C23+4*C22)+C9^3*(C23+C22))/(6*(C23+2*C22))))) ->  | E32: cm4 | N32: نسبت مدول پیچشی جهت Y به C'x
N45: محاسبه مقاومت برشی بتن
B47: βc=Max(Lx,Ly)/Min(Lx,Ly)= | F47: =MAX(B20:C20)/MIN(B20:C20) -> 
N48: نسبت بعد بزرگ به بعد کوچک مقطع بحرانی برش دوطرفه (سطح تکیه‏گاهی یا سطح اثر بار)
B49: αs= | C49: =IF(C21=1,40,IF(C21=4,20,30)) ->  | N49: ضریب حالت ستون (40=ستون میانی ، 30=ستون کناری و 20=ستون گوشه)
C51: 0.53φ(1+2/βc)f'c1/2= | F51: =0.53*C8*(1+(2/F47))*SQRT(C7) ->  | G51: Kg/cm2
B52: vc=Min | C52: 0.53φ(1+αsd/2b0)f'c1/2= | G52: =0.53*C8*(1+((C49*C9)/(2*C24)))*SQRT(C7) ->  | H52: Kg/cm2 | J52: → | K52: vc= | L52: =MIN(F51,G52,E53) ->  | M52: Kg/cm2
C53: 1.06φf'c1/2= | E53: =1.06*C8*SQRT(C7) -> 12.5700537 | F53: Kg/cm2
N55: محاسبه تنش برشی حداکثر موجود
B57: γvx= | C57: =1-(1/((1+(2/3)*SQRT(C22/C23)))) ->  | N57: ضریب لنگر متعادل نشده در جهت X
B58: γvy= | C58: =1-(1/((1+(2/3)*SQRT(C23/C22)))) ->  | N58: ضریب لنگر متعادل نشده در جهت Y
B59: Muvx=γvxMux= | D59: =C57*C14 ->  | F59: Kgf.cm | N59: لنگر خمشی نهایی منتقل شده توسط برش در جهت X
B60: Muvy=γvyMuy= | D60: =C58*C15 ->  | F60: Kgf.cm | N60: لنگر خمشی نهایی منتقل شده توسط برش در جهت Y
B61: Ac= | C61: =C24*C9 ->  | E61: cm2 | N61: سطح مقطع بحرانی برش دوطرفه
B62: vu=Vu/Ac+MuvxCy/Jcx+MuvyCx/Jcy= | G62: =(C13/C61)+(D59/MIN(C29:D30))+(D60/MIN(C31:D32)) ->  | H62: Kg/cm2 | N62: تنش برشی حداکثر موجود
N64: کنترل برش دوطرفه
B66: Ratio=vu/vc= | D66: =G62/L52 ->  | E66: → | F66: =IF(D66<=1,"OK","NOT OK") -> 
N68: طراحی آرماتور برشی
N70: کنترل اجازه استفاده از آرماتور برشی
B71: Vn=Vu/φ= | D71: =IF(D66<=1,"-",C13/C8) ->  | F71: Kgf
B72: Vc=vcb0d/φ= | D72: =IF(D66<=1,"-",L52*C24*C9/C8) ->  | F72: Kgf
B73: 3Vc= | C73: =IF(D66<=1,"-",3*D72) ->  | E73: Kgf
B74: Vn | C74: =IF(D71<=C73,"≤",">") ->  | D74: 3Vc | E74: → | F74: =IF(D66<=1,"-",IF(D71<=C73,"OK","NOT OK")) -> 
B76: dbs= | C76: ='محاسبات برش دو طرفه گره(ها)'!C8 -> 20 | D76: mm | M76: قطر میلگردهای عرضی
B77: 16dbs= | C77: =16*C76/10 -> 32 | D77: cm
B78: d | C78: =IF(OR(C9>=C77,C9>=15),"≥","<") -> ≥ | D78: 16dbs OR 15cm | G78: → | H78: =IF(D66<=1,"-",IF(OR(C9>=C77,C9>=15),"OK","NOT OK")) -> 
N79: =IF(D66<=1,"نیازی به استفاده از آرماتور برشی نیست",IF(AND(F74="OK",H78="OK"),"← اجازه استفاده از آرماتور برشی وجود دارد","← اجازه استفاده از آرماتور برشی وجود ندارد")) -> 
B81: fys= | C81: ='محاسبات برش دو طرفه گره(ها)'!C7 -> 4000 | D81: Kg/cm2 | N81: مقاومت مشخصه میلگردهای عرضی
B82: (Av/S)req=(vu-vc)b0/φfys= | F82: =IF(D66<=1,"-",(G62-L52)*C24/(C8*C81)) -> 
